Local authority department which incurred the expenditure,Service Division,Cost Centre,Summary of the Purpose of Expenditure,Expense Type,Expense Code,Detailed Expense Type,Date of Transaction,Transaction Number,Beneficiary,Merchant Category Number,Merchant Category,Gross Amount,VAT,Net Amount
Dedicated Schools Grant BG0015,DSG Schools Block,349102,Blue Coat CE Aided Junior - Extended School Services,Supplies and Services,384075,Miscellaneous Expenses,01-Feb-2022,000007951589874,SAINSBURYS.CO.UK,5411,Catering - School Breakfast Club,67.15,0.00,67.15
Adult and Health Services,Head of Adults,055643,Hawthorn House LD Respite Unit,Supplies and Services,324117,Provisions E324,01-Feb-2022,000007951590048,CO-OP GROUP 010465,5411,Catering costs - provisions,3.92,0.00,3.92
Regeneration Economy and Growth,Culture Sport and Tourism,011263,Louisa Centre 011263,Supplies and Services,304221,Equipment and Materials,01-Feb-2022,000007951590104,SCREWFIX DIRECT,5211,Direct materials,319.99,0.00,319.99
Neighbourhoods and Climate Change,Environmental Services,011060,C&G - Hardwick Park Catering,Supplies and Services,324117,Provisions E324,01-Feb-2022,000007951642020,BATLEYS PERTH,5300,Catering costs - provisions,63.12,10.52,52.60
Neighbourhoods and Climate Change,Environmental Services,011060,C&G - Hardwick Park Catering,Supplies and Services,324117,Provisions E324,01-Feb-2022,000007951642020 - 1,BATLEYS PERTH,5300,Catering costs - provisions,167.94,,167.94
Neighbourhoods and Climate Change,Environmental Services,011060,C&G - Hardwick Park Catering,Supplies and Services,324117,Provisions E324,01-Feb-2022,000007951642022,BATLEYS PERTH,5300,Catering costs - provisions,22.98,0.00,22.98
Regeneration Economy and Growth,Corporate Property and Land,021234,Catering - Locomotion,Supplies and Services,324117,Provisions E324,01-Feb-2022,000007951642026,BATLEYS PERTH,5300,Catering costs - provisions,263.94,43.99,219.95
Regeneration Economy and Growth,Corporate Property and Land,021234,Catering - Locomotion,Supplies and Services,324117,Provisions E324,01-Feb-2022,000007951642026 - 1,BATLEYS PERTH,5300,Catering costs - provisions,94.19,,94.19
Regeneration Economy and Growth,Culture Sport and Tourism,054798,dli Museum - WW1 Education Programme,Supplies and Services,304259,Equipment and Materials,01-Feb-2022,000007955915680,SURPLUS AND OUTDOORS,5941,Equipment-purchase and rental,24.98,0.00,24.98
Regeneration Economy and Growth,Communications Management,060270,Communications and Marketing,Supplies and Services,372009,Subscriptions E372,01-Feb-2022,000009907170933,LINKEDIN IRELAND,7311,Subscriptions 372009,53.95,0.00,53.95
Regeneration Economy and Growth,Business Durham CL0850,030689,Inward Investment and Aftercare,Supplies and Services,304999,Equipment and Materials,01-Feb-2022,000009910324045,ENVATO 61301676,5815,Misc equipment tools and materials,39.45,0.00,39.45
Regeneration Economy and Growth,Business Durham CL0850,030689,Inward Investment and Aftercare,Supplies and Services,304403,Equipment and Materials,01-Feb-2022,000009910324047,CLOUD CAMPAIGN,5734,Other consumables,148.67,0.00,148.67
Regeneration Economy and Growth,Business Durham CL0850,030689,Inward Investment and Aftercare,Supplies and Services,336005,Advertising E336,01-Feb-2022,000009910324049,LINKEDIN-750 7074114,7311,Advertising other than for staff,79.09,0.00,79.09
Regeneration Economy and Growth,Business Durham CL0850,030689,Inward Investment and Aftercare,Supplies and Services,336005,Advertising E336,01-Feb-2022,000009910324051,LINKEDIN-750 8202694,7311,Advertising other than for staff,32.75,0.00,32.75
Regeneration Economy and Growth,Culture Sport and Tourism,054798,dli Museum - WW1 Education Programme,Supplies and Services,304259,Equipment and Materials,01-Feb-2022,000009910324081,JOHNBULLCLOTHING,5941,Equipment-purchase and rental,16.50,2.75,13.75
Regeneration Economy and Growth,Culture Sport and Tourism,054798,dli Museum - WW1 Education Programme,Supplies and Services,304259,Equipment and Materials,01-Feb-2022,000009910324081 - 1,JOHNBULLCLOTHING,5941,Equipment-purchase and rental,1.94,,1.94
Regeneration Economy and Growth,Culture Sport and Tourism,054798,dli Museum - WW1 Education Programme,Supplies and Services,304259,Equipment and Materials,01-Feb-2022,000009910324083,WWW.TTS-GROUPS.CO.UK,5943,Equipment-purchase and rental,29.93,4.99,24.94
Regeneration Economy and Growth,Culture Sport and Tourism,054798,dli Museum - WW1 Education Programme,Supplies and Services,304259,Equipment and Materials,01-Feb-2022,000009910324085,THE HISTORY BUNKER LTD,5611,Equipment-purchase and rental,523.48,0.00,523.48
Neighbourhoods and Climate Change,Environmental Services,010367,C&G - South Grounds Maintenance,Supplies and Services,304403,Equipment and Materials,01-Feb-2022,000009910324189,TIMPSON LTD,5999,Other consumables,24.00,0.00,24.00
Children and Young Peoples Services,Head of Childrens Social Care,085358,Orchard House Sacriston Solo Home,Supplies and Services,324117,Provisions E324,01-Feb-2022,000009910324197,ASDA GROCERIES ONLINE,5411,Catering costs - provisions,-0.35,0.00,-0.35
Regeneration Economy and Growth,Development and Housing,030771,Durham Advance Flexible Fund,Supplies and Services,348037,Subsistence E348,01-Feb-2022,000009910324225,ZTL REfUSE C.I.C.,5812,Subsistence,1.00,0.00,1.00
Regeneration Economy and Growth,Development and Housing,030771,Durham Advance Flexible Fund,Transport,235057,Public Transport,01-Feb-2022,000009910324227,WWW.GONORTHEAST.CO.UK,4111,Staff travelling,4.50,0.00,4.50
Regeneration Economy and Growth,Development and Housing,030771,Durham Advance Flexible Fund,Transport,235057,Public Transport,01-Feb-2022,000009910324229,WWW.GONORTHEAST.CO.UK,4111,Staff travelling,4.50,0.00,4.50
Resources BK0010,People & Talent Management,010984,Training and Development,Employees,040149,Recruitment Instruction and Training,01-Feb-2022,000009910324253,PAYPAL NPORS LTD,8699,Training-all costs,96.00,0.00,96.00
Dedicated Schools Grant BG0015,DSG Schools Block,418504,Belmont Community School 004185 - Geography,Supplies and Services,304403,Equipment and Materials,01-Feb-2022,000009910324309,AMZNMktplace,5999,Other consumables,22.99,0.00,22.99
Children and Young Peoples Services,Head of Childrens Social Care,085537,Full Circle,Supplies and Services,324117,Provisions E324,01-Feb-2022,000009910324461,ASDA STORES,5411,Catering costs - provisions,15.49,0.00,15.49
Regeneration Economy and Growth,Culture Sport and Tourism,054812,Gala Theatre - Catering etc,Supplies and Services,324117,Provisions E324,01-Feb-2022,000009910390425,JR HOLLAND FOODSERVICE,5499,Catering costs - provisions,50.47,0.00,50.47
Children and Young Peoples Services,Head of Childrens Social Care,085612,Families First Consett,Supplies and Services,338045,Services,01-Feb-2022,7951589788,WWW.DURHAM.GOV.UK,9399,Legal expenses 338045,11.00,0.00,11.00
Children and Young Peoples Services,Head of Childrens Social Care,085341,High Etherley Satelite Home,Supplies and Services,348037,Subsistence E348,01-Feb-2022,7951589828,MCDONALDS,5812,Subsistence,31.50,0.00,31.50
Children and Young Peoples Services,Head of Childrens Social Care,085341,High Etherley Satelite Home,Supplies and Services,348037,Subsistence E348,01-Feb-2022,7951589862,MCDONALDS,5812,Subsistence,2.38,0.00,2.38
Children and Young Peoples Services,Head of Childrens Social Care,085331,New Lea Childrens Home,Supplies and Services,324117,Provisions E324,01-Feb-2022,7951590008,ALDI 11 774,5411,Catering costs - provisions,16.41,0.00,16.41
Children and Young Peoples Services,Head of Childrens Social Care,085331,New Lea Childrens Home,Supplies and Services,324117,Provisions E324,01-Feb-2022,7951590010,ALDI 11 774,5411,Catering costs - provisions,12.29,0.00,12.29
Children and Young Peoples Services,Head of Childrens Social Care,085614,Families First Durham West,Supplies and Services,328041,Clothing uniforms and laundry E328,01-Feb-2022,7951590312,ARGOS LTD,5310,Clothing uniforms and laundry,45.00,0.00,45.00
Children and Young Peoples Services,Head of Education and Skills,076001,Music Service,Employees,040149,Recruitment Instruction and Training,01-Feb-2022,7951590314,ABRSM.ORG,8398,Training-all costs,76.00,0.00,76.00
Children and Young Peoples Services,Head of Early Help Inclusion & Vulnerable Children.,088115,Young Parents Programme 088115,Supplies and Services,384302,Miscellaneous Expenses,01-Feb-2022,9907170829,Amazon.co.uk 981667H65,5969,Activity expenses,63.60,10.60,53.00
Children and Young Peoples Services,Head of Early Help Inclusion & Vulnerable Children.,088115,Young Parents Programme 088115,Supplies and Services,384302,Miscellaneous Expenses,01-Feb-2022,9907170829 - 1,Amazon.co.uk 981667H65,5969,Activity expenses,0.20,,0.20
Children and Young Peoples Services,Head of Childrens Social Care,085612,Families First Consett,Supplies and Services,338045,Services,01-Feb-2022,9910324061,BRADFORD MET COUNCIL,9399,Legal expenses 338045,11.00,0.00,11.00
Children and Young Peoples Services,Head of Childrens Social Care,085334,West Rainton Satelite Home,Supplies and Services,324117,Provisions E324,01-Feb-2022,9910324111,TESCO STORES 2371,5411,Catering costs - provisions,65.11,0.00,65.11
Children and Young Peoples Services,Head of Childrens Social Care,085341,High Etherley Satelite Home,Supplies and Services,348037,Subsistence E348,01-Feb-2022,9910324115,CASTLEGATE CAFE,5812,Subsistence,6.00,0.00,6.00
Children and Young Peoples Services,Head of Childrens Social Care,085341,High Etherley Satelite Home,Supplies and Services,304403,Equipment and Materials,01-Feb-2022,9910324117,CARD FACTORY,5947,Other consumables,5.63,0.00,5.63
Children and Young Peoples Services,Head of Early Help Inclusion & Vulnerable Children.,079599,Psychological-HQ,Employees,040149,Recruitment Instruction and Training,01-Feb-2022,9910324155,LEAD TO READ,8299,Training-all costs,297.35,0.00,297.35
Children and Young Peoples Services,Head of Early Help Inclusion & Vulnerable Children.,085952,Secure Education,Supplies and Services,384999,Miscellaneous Expenses,01-Feb-2022,9910324159,AMZ Frederick Hyde t,5945,Other expenses,311.40,0.00,311.40
Children and Young Peoples Services,Head of Early Help Inclusion & Vulnerable Children.,085952,Secure Education,Supplies and Services,324117,Provisions E324,01-Feb-2022,9910324161,TESCO STORES 6329,5411,Catering costs - provisions,142.10,0.00,142.10
Children and Young Peoples Services,Head of Childrens Social Care,085511,Emergency Duty Team,Supplies and Services,352001,Conference Expenses,01-Feb-2022,9910324163,THE HONEST LAWYER,7011,Conferencesseminars fees etc,89.95,0.00,89.95
Children and Young Peoples Services,Head of Childrens Social Care,085358,Orchard House Sacriston Solo Home,Supplies and Services,324117,Provisions E324,01-Feb-2022,9910324195,ASDA GROCERIES ONLINE,5411,Catering costs - provisions,160.06,0.00,160.06
Children and Young Peoples Services,Head of Early Help Inclusion & Vulnerable Children.,085962,Aycliffe Secure - Durham,Transfer Payments,515002,Social Services Clients,01-Feb-2022,9910324231,M and M Direct Ltd,5941,Pocket money,31.98,0.00,31.98
Children and Young Peoples Services,Head of Early Help Inclusion & Vulnerable Children.,085962,Aycliffe Secure - Durham,Transfer Payments,515002,Social Services Clients,01-Feb-2022,9910324233,BOOHOO.COM,5691,Pocket money,21.00,0.00,21.00
Children and Young Peoples Services,Head of Childrens Social Care,085331,New Lea Childrens Home,Supplies and Services,324117,Provisions E324,01-Feb-2022,9910324277,B&M 519 - CONSETT,5399,Catering costs - provisions,2.70,0.00,2.70
Children and Young Peoples Services,Head of Childrens Social Care,085331,New Lea Childrens Home,Supplies and Services,324117,Provisions E324,01-Feb-2022,9910324279,B&M 519 - CONSETT,5399,Catering costs - provisions,3.98,0.00,3.98
Children and Young Peoples Services,Head of Childrens Social Care,085331,New Lea Childrens Home,Supplies and Services,324117,Provisions E324,01-Feb-2022,9910324281,ICELAND,5411,Catering costs - provisions,3.00,0.00,3.00
Children and Young Peoples Services,Head of Childrens Social Care,085623,Families First Bishop Auckland,Supplies and Services,384999,Miscellaneous Expenses,01-Feb-2022,9910324313,Amazon.co.uk SN4AB4SM5,5969,Other expenses,28.95,0.00,28.95
Children and Young Peoples Services,Head of Childrens Social Care,085364,Children Looked After Team 1,Supplies and Services,304259,Equipment and Materials,01-Feb-2022,9910324315,HM PASSPORT OFFICE,9399,Equipment-purchase and rental,49.00,0.00,49.00
Children and Young Peoples Services,Head of Childrens Social Care,085364,Children Looked After Team 1,Supplies and Services,304259,Equipment and Materials,01-Feb-2022,9910324317,HM PASSPORT OFFICE,9399,Equipment-purchase and rental,49.00,0.00,49.00
Children and Young Peoples Services,Head of Early Help Inclusion & Vulnerable Children.,088115,Young Parents Programme 088115,Supplies and Services,384302,Miscellaneous Expenses,01-Feb-2022,9910324321,ASDA GROCERIES ONLINE,5411,Activity expenses,76.90,0.00,76.90
Children and Young Peoples Services,Head of Early Help Inclusion & Vulnerable Children.,088115,Young Parents Programme 088115,Supplies and Services,324117,Provisions E324,01-Feb-2022,9910324323,ASDA GROCERIES ONLINE,5411,Catering costs - provisions,-1.00,0.00,-1.00
Children and Young Peoples Services,Head of Childrens Social Care,085333,Coxhoe Satelite Home,Supplies and Services,324117,Provisions E324,01-Feb-2022,9910324347,ASDA SUPERSTORE 4987,5411,Catering costs - provisions,115.90,0.00,115.90
Children and Young Peoples Services,Head of Childrens Social Care,085351,Framwellgate Moor CU,Supplies and Services,304403,Equipment and Materials,01-Feb-2022,9910324359,SumUp Gary Bolton Be,5999,Other consumables,280.00,0.00,280.00
Children and Young Peoples Services,Head of Childrens Social Care,085351,Framwellgate Moor CU,Supplies and Services,324117,Provisions E324,01-Feb-2022,9910324361,ASDA GROCERIES ONLINE,5411,Catering costs - provisions,84.89,0.00,84.89
Children and Young Peoples Services,Head of Childrens Social Care,085351,Framwellgate Moor CU,Supplies and Services,324117,Provisions E324,01-Feb-2022,9910324363,ASDA GROCERIES ONLINE,5411,Catering costs - provisions,38.66,0.00,38.66
Children and Young Peoples Services,Head of Early Help Inclusion & Vulnerable Children.,088110,Easington & Peterlee Intensive Family Support Team,Supplies and Services,364301,Grants to Voluntary Organisations,01-Feb-2022,9910324425,ASDA STORES LTD,5411,Hardship,35.10,0.00,35.10
Children and Young Peoples Services,Head of Childrens Social Care,085551,Short Break Services-Park Hse Sher,Supplies and Services,324117,Provisions E324,01-Feb-2022,9910324533,ICELAND FOODS,5411,Catering costs - provisions,-4.55,0.00,-4.55
Children and Young Peoples Services,Head of Early Help Inclusion & Vulnerable Children.,088101,Bullion Lane & Brandon Family Centre,Supplies and Services,324117,Provisions E324,01-Feb-2022,9910324549,WILKO.COM,5399,Catering costs - provisions,88.15,0.00,88.15
Children and Young Peoples Services,Head of Early Help Inclusion & Vulnerable Children.,088101,Bullion Lane & Brandon Family Centre,Supplies and Services,324117,Provisions E324,01-Feb-2022,9910324551,WILKO.COM,5399,Catering costs - provisions,87.50,0.00,87.50
Regeneration Economy and Growth,Business Durham CL0850,030689,Inward Investment and Aftercare,Supplies and Services,304403,Equipment and Materials,02-Feb-2022,000007951589778,ADOBE CREATIVE CLOUD,5734,Other consumables,49.94,0.00,49.94
Regeneration Economy and Growth,Business Durham CL0850,030689,Inward Investment and Aftercare,Supplies and Services,342222,Computers and Communications,02-Feb-2022,000007951589780,FASTHOSTS INTERNET,4816,Comp hardware purch-network servers,64.74,0.00,64.74
Regeneration Economy and Growth,Business Durham CL0850,030689,Inward Investment and Aftercare,Supplies and Services,342222,Computers and Communications,02-Feb-2022,000007951589782,FASTHOSTS INTERNET,4816,Comp hardware purch-network servers,105.06,0.00,105.06
Dedicated Schools Grant BG0015,DSG Schools Block,417611,Greenfield Community College 004176 - Technology,Supplies and Services,304403,Equipment and Materials,02-Feb-2022,000007951589816,ASDA GROCERIES ONLINE,5411,Other consumables,147.53,0.00,147.53
Dedicated Schools Grant BG0015,DSG Schools Block,417611,Greenfield Community College 004176 - Technology,Supplies and Services,304403,Equipment and Materials,02-Feb-2022,000007951589818,ASDA GROCERIES ONLINE,5411,Other consumables,-15.35,0.00,-15.35
Children and Young Peoples Services,Head of Childrens Social Care,085357,LAC Bespoke Placements,Supplies and Services,352001,Conference Expenses,02-Feb-2022,000007951589826,Hotel at Booking.com,7011,Conferencesseminars fees etc,"2,192.16",0.00,2192.16
Regeneration Economy and Growth,Development and Housing,030773,CLLD North,Supplies and Services,348037,Subsistence E348,02-Feb-2022,000007951589836,iZ REfUSE C I C,5812,Subsistence,2.90,0.00,2.90
Regeneration Economy and Growth,Development and Housing,030773,CLLD North,Transport,235057,Public Transport,02-Feb-2022,000007951589838,LOCAL PARKING SECURITY,7523,Staff travelling,1.00,0.00,1.00
Regeneration Economy and Growth,Development and Housing,030773,CLLD North,Supplies and Services,348037,Subsistence E348,02-Feb-2022,000007951589840,ZTL REfUSE C.I.C.,5812,Subsistence,2.40,0.00,2.40
Regeneration Economy and Growth,Culture Sport and Tourism,030712,VCD - Project Delivery,Supplies and Services,384199,Miscellaneous Expenses,02-Feb-2022,000007951589844,MAILCHIMP MISC,5968,Other hired and contracted services,236.36,0.00,236.36
Regeneration Economy and Growth,Culture Sport and Tourism,054233,Bishop Auckland Town Hall Library,Supplies and Services,304403,Equipment and Materials,02-Feb-2022,000007951589878,AMZNMktplace,5999,Other consumables,17.96,3.00,14.96
Regeneration Economy and Growth,Development and Housing,030771,Durham Advance Flexible Fund,Supplies and Services,328041,Clothing uniforms and laundry E328,02-Feb-2022,000007951589880,BOOHOO.COM,5691,Clothing uniforms and laundry,94.54,0.00,94.54
Regeneration Economy and Growth,Development and Housing,030771,Durham Advance Flexible Fund,Supplies and Services,328041,Clothing uniforms and laundry E328,02-Feb-2022,000007951589882,BOOHOO.COM,5691,Clothing uniforms and laundry,23.59,0.00,23.59
Adult and Health Services,Head of Adults,052953,Training - Social Work,Supplies and Services,384999,Miscellaneous Expenses,02-Feb-2022,000007951589964,Amazon.co.uk 8A7QG0XA5,5969,Other expenses,22.63,0.00,22.63
Adult and Health Services,Head of Adults,052953,Training - Social Work,Supplies and Services,384999,Miscellaneous Expenses,02-Feb-2022,000007951589966,Amazon.co.uk LR5KQ4YC5,5969,Other expenses,22.63,0.00,22.63
Adult and Health Services,Head of Adults,052953,Training - Social Work,Supplies and Services,384999,Miscellaneous Expenses,02-Feb-2022,000007951589968,Amazon.co.uk RI36193J5,5969,Other expenses,22.63,0.00,22.63
Regeneration Economy and Growth,Development and Housing,030771,Durham Advance Flexible Fund,Transport,235057,Public Transport,02-Feb-2022,000007951589982,WWW.GONORTHEAST.CO.UK,4111,Staff travelling,6.00,0.00,6.00
Resources BK0010,People & Talent Management,010984,Training and Development,Employees,040149,Recruitment Instruction and Training,02-Feb-2022,000007951590004,THE INSTITUTION OF,8699,Training-all costs,"1,836.00",0.00,1836.00
Neighbourhoods and Climate Change,Environmental Services,010367,C&G - South Grounds Maintenance,Supplies and Services,304221,Equipment and Materials,02-Feb-2022,000007951590044,CARRS BILLINGTON SPENN,5599,Direct materials,17.58,0.00,17.58
Regeneration Economy and Growth,Corporate Property and Land,020082,Bldg Serv - R&M Div 82- Lifts,Transport,235057,Public Transport,02-Feb-2022,000007951590056,CITY OF NEWCASTLE INTE,9399,Staff travelling,246.00,0.00,246.00
Resources BK0010,Digital and Customer Services,065335,School Services - Implementations,Supplies and Services,304639,Equipment and Materials,02-Feb-2022,000007951590114,LAPTOP-LCD-SCREEN,5732,Technicians-supplies,144.16,0.00,144.16
Resources BK0010,Digital and Customer Services,065335,School Services - Implementations,Supplies and Services,304639,Equipment and Materials,02-Feb-2022,000007951590116,AMZ MOBILE STUFF LIMIT,5999,Technicians-supplies,-29.90,-4.98,-24.92
Resources BK0010,Digital and Customer Services,065335,School Services - Implementations,Supplies and Services,304303,Equipment and Materials,02-Feb-2022,000007951590118,AMZ ShuOne Tech Offici,5999,Network for resale,-138.54,-23.09,-115.45
Regeneration Economy and Growth,Transport and Contracted Services,031704,Care Connect - CCTV Countywide,Supplies and Services,384956,Miscellaneous Expenses,02-Feb-2022,000007951590200,SECURITY INDUSTRY AUTH,9399,Licences,190.00,0.00,190.00
Regeneration Economy and Growth,Culture Sport and Tourism,054233,Bishop Auckland Town Hall Library,Supplies and Services,324117,Provisions E324,02-Feb-2022,000007951590254,HERON FOODS,5411,Catering costs - provisions,17.50,0.00,17.50
Neighbourhoods and Climate Change,Environmental Services,010367,C&G - South Grounds Maintenance,Supplies and Services,304999,Equipment and Materials,02-Feb-2022,000007951590328,Snowballs,5251,Misc equipment tools and materials,102.00,0.00,102.00
Neighbourhoods and Climate Change,Partnerships & Community Engagement Div.,060472,Humanitarian Support programme,Supplies and Services,304405,Equipment and Materials,02-Feb-2022,000007951590330,PAYPAL biogroup,8071,Medical supplies,86.00,0.00,86.00
Neighbourhoods and Climate Change,Partnerships & Community Engagement Div.,060472,Humanitarian Support programme,Supplies and Services,304405,Equipment and Materials,02-Feb-2022,000007951590332,PAYPAL BIOGROUP,8071,Medical supplies,344.00,0.00,344.00
Regeneration Economy and Growth,Corporate Property and Land,030691,Catering - Durham Dales Centre,Supplies and Services,324117,Provisions E324,02-Feb-2022,000007951642014,JR HOLLAND FOODSERVICE,5499,Catering costs - provisions,153.35,0.00,153.35
Regeneration Economy and Growth,Corporate Property and Land,030691,Catering - Durham Dales Centre,Supplies and Services,324117,Provisions E324,02-Feb-2022,000007951642016,JR HOLLAND FOODSERVICE,5499,Catering costs - provisions,25.95,0.00,25.95
Adult and Health Services,Head of Adults,055643,Hawthorn House LD Respite Unit,Supplies and Services,324117,Provisions E324,02-Feb-2022,000007951642018,JR HOLLAND FOODSERVICE,5499,Catering costs - provisions,11.50,0.00,11.50
Neighbourhoods and Climate Change,Environmental Services,011060,C&G - Hardwick Park Catering,Supplies and Services,324117,Provisions E324,02-Feb-2022,000007951642024,JR HOLLAND FOODSERVICE,5499,Catering costs - provisions,13.09,0.00,13.09
Regeneration Economy and Growth,Development and Housing,030773,CLLD North,Supplies and Services,304221,Equipment and Materials,02-Feb-2022,000007955915662,SCREWFIX DIRECT,5211,Direct materials,69.95,0.00,69.95
Regeneration Economy and Growth,Culture Sport and Tourism,011230,Operations Locality 2,Supplies and Services,304259,Equipment and Materials,02-Feb-2022,000007955916224,AMZNMKTPLACE AMAZON.CO,5999,Equipment-purchase and rental,47.96,8.00,39.96
Adult and Health Services,Head of Adults,052229,Countywide AMHP Team,Supplies and Services,338048,Services,02-Feb-2022,000007955916372,HMCTS GRIMSBY&SCUNTHOR,9222,Court costs 338048,81.00,0.00,81.00
Regeneration Economy and Growth,Business Durham CL0850,030694,Plexus 2,Supplies and Services,324117,Provisions E324,02-Feb-2022,000007955916640,SAINSBURYS S/MKTS,5411,Catering costs - provisions,7.00,0.00,7.00
Regeneration Economy and Growth,Culture Sport and Tourism,054812,Gala Theatre - Catering etc,Supplies and Services,384999,Miscellaneous Expenses,02-Feb-2022,000007956012118,G M PACKAGING UK LIMIT,5046,Other expenses,338.33,0.00,338.33
Regeneration Economy and Growth,Transport and Contracted Services,031701,Care Connect All Localities,Transport,215995,Running Costs of Vehicles,02-Feb-2022,000007960706598,JET CHILTON,5541,Vehicle running expenses,43.90,0.00,43.90
Regeneration Economy and Growth,Business Durham CL0850,030689,Inward Investment and Aftercare,Supplies and Services,304999,Equipment and Materials,02-Feb-2022,000009910324053,ENVATO 61301676,5815,Misc equipment tools and materials,1.08,0.00,1.08
Regeneration Economy and Growth,Business Durham CL0850,030689,Inward Investment and Aftercare,Supplies and Services,304403,Equipment and Materials,02-Feb-2022,000009910324055,CLOUD CAMPAIGN,5734,Other consumables,4.09,0.00,4.09
Children and Young Peoples Services,Head of Childrens Social Care,085364,Children Looked After Team 1,Supplies and Services,338045,Services,02-Feb-2022,7951589790,HM PASSPORT OFFICE,9399,Legal expenses 338045,49.00,0.00,49.00
Children and Young Peoples Services,Head of Childrens Social Care,085364,Children Looked After Team 1,Supplies and Services,338045,Services,02-Feb-2022,7951589792,HM PASSPORT OFFICE,9399,Legal expenses 338045,49.00,0.00,49.00
Children and Young Peoples Services,Head of Childrens Social Care,085364,Children Looked After Team 1,Supplies and Services,338045,Services,02-Feb-2022,7951589794,HM PASSPORT OFFICE,9399,Legal expenses 338045,49.00,0.00,49.00
Children and Young Peoples Services,Head of Education and Skills,071801,Selby Cottage Childcare Centre,Supplies and Services,304403,Equipment and Materials,02-Feb-2022,7951589802,AMZNMktplace,5999,Other consumables,7.95,1.33,6.62
Children and Young Peoples Services,Head of Education and Skills,071801,Selby Cottage Childcare Centre,Supplies and Services,304403,Equipment and Materials,02-Feb-2022,7951589804,AMZNMktplace,5999,Other consumables,12.59,2.10,10.49
Children and Young Peoples Services,Head of Education and Skills,071801,Selby Cottage Childcare Centre,Supplies and Services,304403,Equipment and Materials,02-Feb-2022,7951589806,AMZNMktplace,5999,Other consumables,3.00,0.50,2.50
Children and Young Peoples Services,Head of Education and Skills,071801,Selby Cottage Childcare Centre,Supplies and Services,304403,Equipment and Materials,02-Feb-2022,7951589808,AMZNMktplace,5999,Other consumables,50.97,8.50,42.47
Children and Young Peoples Services,Head of Education and Skills,071801,Selby Cottage Childcare Centre,Supplies and Services,304403,Equipment and Materials,02-Feb-2022,7951589810,AMZNMktplace,5999,Other consumables,12.59,2.10,10.49
Children and Young Peoples Services,Head of Education and Skills,071801,Selby Cottage Childcare Centre,Supplies and Services,304403,Equipment and Materials,02-Feb-2022,7951589812,AMZNMktplace,5999,Other consumables,31.61,5.27,26.34
Children and Young Peoples Services,Head of Childrens Social Care,085341,High Etherley Satelite Home,Supplies and Services,324117,Provisions E324,02-Feb-2022,7951589830,TESCO STORES 6329,5411,Catering costs - provisions,25.98,0.00,25.98
Children and Young Peoples Services,Head of Childrens Social Care,085342,16 Hickstead Rise (previously 9 Cedar Ave),Supplies and Services,324117,Provisions E324,02-Feb-2022,7951589846,TESCO STORES 2916,5411,Catering costs - provisions,97.27,0.00,97.27
Children and Young Peoples Services,Head of Childrens Social Care,085332,Middlestone Moor CU,Supplies and Services,304999,Equipment and Materials,02-Feb-2022,7951589848,Connect Distribution S,5722,Misc equipment tools and materials,10.81,0.00,10.81
Children and Young Peoples Services,Head of Childrens Social Care,085332,Middlestone Moor CU,Supplies and Services,324117,Provisions E324,02-Feb-2022,7951589850,HOME BARGAINS,5251,Catering costs - provisions,12.94,0.00,12.94
Children and Young Peoples Services,Head of Early Help Inclusion & Vulnerable Children.,085956,Lumley,Supplies and Services,304403,Equipment and Materials,02-Feb-2022,7951589906,AMZNMKTPLACE AMAZON.CO,5999,Other consumables,319.92,53.36,266.56
Children and Young Peoples Services,Head of Education and Skills,071732,Dean Bank Childcare,Supplies and Services,324117,Provisions E324,02-Feb-2022,7951589960,B&M 147 - FERRYHILL,5399,Catering costs - provisions,20.97,0.00,20.97
Children and Young Peoples Services,Head of Early Help Inclusion & Vulnerable Children.,085957,Secure Management,Supplies and Services,304245,Equipment and Materials,02-Feb-2022,7951589984,AMZNMktplace,5999,Materials,33.27,5.55,27.72
Children and Young Peoples Services,Head of Early Help Inclusion & Vulnerable Children.,085962,Aycliffe Secure - Durham,Transfer Payments,515002,Social Services Clients,02-Feb-2022,7951589986,BOOHOO.COM,5691,Pocket money,47.40,0.00,47.40
Children and Young Peoples Services,Head of Early Help Inclusion & Vulnerable Children.,085962,Aycliffe Secure - Durham,Supplies and Services,324117,Provisions E324,02-Feb-2022,7951589988,TESCO STORES 6329,5411,Catering costs - provisions,95.44,0.00,95.44
Children and Young Peoples Services,Head of Early Help Inclusion & Vulnerable Children.,085956,Lumley,Supplies and Services,338057,Services,02-Feb-2022,7951589990,SPECSAVERS,8043,Medical fees 338057,89.00,0.00,89.00
Children and Young Peoples Services,Head of Education and Skills,075025,DurhamDirections Central Funding,Supplies and Services,364301,Grants to Voluntary Organisations,02-Feb-2022,7951590002,WWW.GONORTHEAST.CO.UK,4111,Hardship,5.00,0.00,5.00
Children and Young Peoples Services,Head of Childrens Social Care,085364,Children Looked After Team 1,Supplies and Services,338045,Services,02-Feb-2022,7951590040,HM PASSPORT OFFICE,9399,Legal expenses 338045,49.00,0.00,49.00
Children and Young Peoples Services,Head of Childrens Social Care,085367,Children Looked After Team 4,Supplies and Services,338045,Services,02-Feb-2022,7951590042,HM PASSPORT OFFICE,9399,Legal expenses 338045,49.00,0.00,49.00
Children and Young Peoples Services,Head of Education and Skills,071802,Louisa Cent Nursery,Supplies and Services,304403,Equipment and Materials,02-Feb-2022,7951590054,AMZNMktplace,5999,Other consumables,29.90,5.00,24.90
Children and Young Peoples Services,Head of Childrens Social Care,085333,Coxhoe Satelite Home,Supplies and Services,324117,Provisions E324,02-Feb-2022,7951590058,TESCO STORES 2371,5411,Catering costs - provisions,276.73,0.00,276.73
Children and Young Peoples Services,Head of Childrens Social Care,085333,Coxhoe Satelite Home,Supplies and Services,324117,Provisions E324,02-Feb-2022,7951590060,TESCO STORES 2371,5411,Catering costs - provisions,81.43,0.00,81.43
Children and Young Peoples Services,Head of Childrens Social Care,085333,Coxhoe Satelite Home,Supplies and Services,324117,Provisions E324,02-Feb-2022,7951590062,TESCO STORES 2371,5411,Catering costs - provisions,57.10,0.00,57.10
Resources BK0010,Procurement Sales & Business Services,065502,Business Support - Crook,Supplies and Services,304999,Equipment and Materials,02-Feb-2022,7951590108,HOME BARGAINS,5251,Misc equipment tools and materials,2.97,0.00,2.97
Children and Young Peoples Services,Head of Early Help Inclusion & Vulnerable Children.,079581,Emotional Wellbeing Team,Supplies and Services,304403,Equipment and Materials,02-Feb-2022,7951590196,AMZNMktplace,5999,Other consumables,7.99,1.33,6.66
Children and Young Peoples Services,Head of Childrens Social Care,085333,Coxhoe Satelite Home,Supplies and Services,328041,Clothing uniforms and laundry E328,02-Feb-2022,7951590210,PRETTYLITTLETHING.COM,5691,Clothing uniforms and laundry,19.99,0.00,19.99
Children and Young Peoples Services,Head of Early Help Inclusion & Vulnerable Children.,085801,CDYJS - Support,Supplies and Services,384237,Miscellaneous Expenses,02-Feb-2022,7951590212,HTTPS://WWW.DURHAMKART,7999,Recreational exps outings parties,45.00,0.00,45.00
Children and Young Peoples Services,Head of Early Help Inclusion & Vulnerable Children.,085962,Aycliffe Secure - Durham,Supplies and Services,384999,Miscellaneous Expenses,02-Feb-2022,7951590250,Amazon.co.uk QI4UH68S5,5969,Other expenses,4.95,0.00,4.95
Children and Young Peoples Services,Head of Early Help Inclusion & Vulnerable Children.,085962,Aycliffe Secure - Durham,Supplies and Services,304403,Equipment and Materials,02-Feb-2022,7951590252,AMZNMktplace,5999,Other consumables,11.90,1.98,9.92
Children and Young Peoples Services,Head of Childrens Social Care,085551,Short Break Services-Park Hse Sher,Supplies and Services,324117,Provisions E324,02-Feb-2022,7951590318,B&M 681 - DURHAM,5399,Catering costs - provisions,7.00,0.00,7.00
Children and Young Peoples Services,Head of Childrens Social Care,085551,Short Break Services-Park Hse Sher,Supplies and Services,304999,Equipment and Materials,02-Feb-2022,7951590320,HOME BARGAINS SPENNYMO,5251,Misc equipment tools and materials,3.67,0.00,3.67
Children and Young Peoples Services,Head of Childrens Social Care,085551,Short Break Services-Park Hse Sher,Supplies and Services,324117,Provisions E324,02-Feb-2022,7951590322,ASDA SUPERSTORE 4987,5411,Catering costs - provisions,42.51,0.00,42.51
Children and Young Peoples Services,Head of Childrens Social Care,085551,Short Break Services-Park Hse Sher,Supplies and Services,324117,Provisions E324,02-Feb-2022,7951590324,TESCO STORES 2371,5411,Catering costs - provisions,33.50,0.00,33.50
Children and Young Peoples Services,Head of Childrens Social Care,085364,Children Looked After Team 1,Supplies and Services,338045,Services,02-Feb-2022,7955915612,GEN REGISTER OFFICE,9399,Legal expenses 338045,11.00,0.00,11.00
Children and Young Peoples Services,Head of Childrens Social Care,085332,Middlestone Moor CU,Supplies and Services,324117,Provisions E324,02-Feb-2022,7955915716,SAINSBURYS S/MKTS,5411,Catering costs - provisions,48.34,0.00,48.34
Children and Young Peoples Services,Head of Childrens Social Care,085332,Middlestone Moor CU,Supplies and Services,304999,Equipment and Materials,02-Feb-2022,7955915718,SAINSBURYS S/MKTS,5411,Misc equipment tools and materials,27.50,0.00,27.50
Children and Young Peoples Services,Head of Childrens Social Care,085332,Middlestone Moor CU,Supplies and Services,344033,Telephones,02-Feb-2022,7955915768,THREE,4814,Telephones general-all costs,10.00,0.00,10.00
Resources BK0010,Procurement Sales & Business Services,065503,Business Support - Spectrum,Supplies and Services,304259,Equipment and Materials,02-Feb-2022,7955915824,GEN REGISTER OFFICE,9399,Equipment-purchase and rental,22.00,0.00,22.00
Resources BK0010,Procurement Sales & Business Services,065503,Business Support - Spectrum,Supplies and Services,304259,Equipment and Materials,02-Feb-2022,7955915832,GEN REGISTER OFFICE,9399,Equipment-purchase and rental,11.00,0.00,11.00
Children and Young Peoples Services,Head of Early Help Inclusion & Vulnerable Children.,085956,Lumley,Supplies and Services,308011,Furniture,02-Feb-2022,7955915966,Dunelm,5712,Furniture repair and replacement,165.00,0.00,165.00
Children and Young Peoples Services,Head of Childrens Social Care,085333,Coxhoe Satelite Home,Supplies and Services,328041,Clothing uniforms and laundry E328,02-Feb-2022,7955916398,PAYPAL BOOHOO COM,5621,Clothing uniforms and laundry,39.24,0.00,39.24
Children and Young Peoples Services,Head of Childrens Social Care,085551,Short Break Services-Park Hse Sher,Supplies and Services,328041,Clothing uniforms and laundry E328,02-Feb-2022,7955916604,ARGOS LTD,5310,Clothing uniforms and laundry,321.96,0.00,321.96
Children and Young Peoples Services,Head of Early Help Inclusion & Vulnerable Children.,079599,Psychological-HQ,Employees,040149,Recruitment Instruction and Training,02-Feb-2022,9910324157,LEAD TO READ,8299,Training-all costs,8.18,0.00,8.18
Children and Young Peoples Services,Head of Childrens Social Care,085404,COMF bid Targeted interventions for CYPS,Supplies and Services,384999,Miscellaneous Expenses,03-Feb-2022,000007951589814,Amazon.co.uk 1R6BB7I45,5969,Other expenses,119.50,0.00,119.50
Resources BK0010,Digital and Customer Services,065350,Project Management Office,Supplies and Services,304403,Equipment and Materials,03-Feb-2022,000007955915630,ACF,5734,Other consumables,36.32,0.00,36.32
Dedicated Schools Grant BG0015,DSG Schools Block,417607,Greenfield Community College 004176 - Performing Arts,Supplies and Services,304403,Equipment and Materials,03-Feb-2022,000007955915640,AMZNMKTPLACE AMAZON.CO,5999,Other consumables,89.98,15.00,74.98
Children and Young Peoples Services,Head of Childrens Social Care,085501,Child Care Cases Legal Expenses,Supplies and Services,304403,Equipment and Materials,03-Feb-2022,000007955915656,SUNDERLAND CC,7523,Other consumables,22.00,0.00,22.00
Regeneration Economy and Growth,Culture Sport and Tourism,011265,Empire Theatre (Operations),Supplies and Services,304259,Equipment and Materials,03-Feb-2022,000007955915674,AMZNMktplace,5999,Equipment-purchase and rental,109.74,18.30,91.44
Regeneration Economy and Growth,Culture Sport and Tourism,054820,Gala Theatre - Overheads,Supplies and Services,304252,Equipment and Materials,03-Feb-2022,000007955915678,CARTRIDGEPEOPLE.COM,5111,Equipment-repairsserviceinsurance,113.76,18.96,94.80
Regeneration Economy and Growth,Culture Sport and Tourism,054820,Gala Theatre - Overheads,Supplies and Services,304252,Equipment and Materials,03-Feb-2022,000007955915678 - 1,CARTRIDGEPEOPLE.COM,5111,Equipment-repairsserviceinsurance,0.03,,0.03
Regeneration Economy and Growth,Culture Sport and Tourism,030705,Visit County Durham 030705,Supplies and Services,304259,Equipment and Materials,03-Feb-2022,000007955915686,FASTHOSTS INTERNET,4816,Equipment-purchase and rental,7.54,1.26,6.28
Regeneration Economy and Growth,Development and Housing,030771,Durham Advance Flexible Fund,Supplies and Services,304259,Equipment and Materials,03-Feb-2022,000007955915764,CURRYS ONLINE,5732,Equipment-purchase and rental,378.99,0.00,378.99
Regeneration Economy and Growth,Development and Housing,030771,Durham Advance Flexible Fund,Supplies and Services,348037,Subsistence E348,03-Feb-2022,000007955915938,iZ The Fox s Tale,5812,Subsistence,3.90,0.00,3.90
Regeneration Economy and Growth,Development and Housing,031623,Rough Sleeping,Transport,235073,Public Transport,03-Feb-2022,000007955915946,SumUp Blueline taxis,4121,Travel-clients/students/children,28.00,0.00,28.00
Neighbourhoods and Climate Change,Environmental Services,031228,North Pennines - Fellfoot Forward,Supplies and Services,348037,Subsistence E348,03-Feb-2022,000007955915992,SHEPHERDS INN,5812,Subsistence,81.10,0.00,81.10
Adult and Health Services,Head of Adults,053812,Maple Court Extra,Supplies and Services,328041,Clothing uniforms and laundry E328,03-Feb-2022,000007955915998,EBAY COMMERCE UK LTD,5311,Clothing uniforms and laundry,5.86,0.00,5.86
Regeneration Economy and Growth,Development and Housing,030771,Durham Advance Flexible Fund,Supplies and Services,304403,Equipment and Materials,03-Feb-2022,000007955916090,AMZNMktplace,5999,Other consumables,201.87,33.65,168.22
Neighbourhoods and Climate Change,Environmental Services,010367,C&G - South Grounds Maintenance,Supplies and Services,304221,Equipment and Materials,03-Feb-2022,000007955916138,CARRS BILLINGTON SPENN,5599,Direct materials,171.03,0.00,171.03
Neighbourhoods and Climate Change,Environmental Services,010367,C&G - South Grounds Maintenance,Supplies and Services,304999,Equipment and Materials,03-Feb-2022,000007955916142,Snowballs,5251,Misc equipment tools and materials,99.43,0.00,99.43
Neighbourhoods and Climate Change,Environmental Services,010367,C&G - South Grounds Maintenance,Supplies and Services,304999,Equipment and Materials,03-Feb-2022,000007955916144,Snowballs,5251,Misc equipment tools and materials,198.00,0.00,198.00
Adult and Health Services,Head of Adults,055643,Hawthorn House LD Respite Unit,Supplies and Services,328041,Clothing uniforms and laundry E328,03-Feb-2022,000007955916194,AMZ The SafetySupply,5699,Clothing uniforms and laundry,23.28,0.00,23.28
Regeneration Economy and Growth,Culture Sport and Tourism,011230,Operations Locality 2,Supplies and Services,304259,Equipment and Materials,03-Feb-2022,000007955916230,AMZNMKTPLACE AMAZON.CO,5999,Equipment-purchase and rental,195.00,32.50,162.50
Regeneration Economy and Growth,Culture Sport and Tourism,011263,Louisa Centre 011263,Supplies and Services,304259,Equipment and Materials,03-Feb-2022,000007955916296,CURRYS ONLINE,5732,Equipment-purchase and rental,301.97,0.00,301.97
Resources BK0010,Digital and Customer Services,065335,School Services - Implementations,Supplies and Services,304639,Equipment and Materials,03-Feb-2022,000007955916338,AMZNMktplace,5999,Technicians-supplies,8.49,1.42,7.07
Regeneration Economy and Growth,Development and Housing,030544,Rural Employability - Client Engagement,Employees,040149,Recruitment Instruction and Training,03-Feb-2022,000007955916402,NCS CITB EXAM,8299,Training-all costs,22.00,0.00,22.00
Regeneration Economy and Growth,Development and Housing,030776,LINKCD Flexible Fund,Employees,040149,Recruitment Instruction and Training,03-Feb-2022,000007955916516,PAYPAL CIEH,8398,Training-all costs,31.50,0.00,31.50
Resources BK0010,Resources Management CK0450,069000,Resources Management 069000,Supplies and Services,332047,Printing Stationery and Gen Off Exps,03-Feb-2022,000007955916552,AMZNMktplace,5999,Stationery,25.49,4.25,21.24
Resources BK0010,Digital and Customer Services,011103,Digital Solutions,Supplies and Services,372009,Subscriptions E372,03-Feb-2022,000007955916556,DRI MSP360TM,5734,Subscriptions 372009,28.80,0.00,28.80
Regeneration Economy and Growth,Development and Housing,031634,LOCAL LETTINGS AGENCY,Supplies and Services,304999,Equipment and Materials,03-Feb-2022,000007955916582,R DEFTY,5251,Misc equipment tools and materials,5.00,0.00,5.00
Regeneration Economy and Growth,Culture Sport and Tourism,011265,Empire Theatre (Operations),Supplies and Services,324117,Provisions E324,03-Feb-2022,000007955916626,BEVERIDGES FLOWER SHOP,5399,Catering costs - provisions,43.95,0.00,43.95
Regeneration Economy and Growth,Development and Housing,030771,Durham Advance Flexible Fund,Employees,040149,Recruitment Instruction and Training,03-Feb-2022,000007955916636,SIMPLE CPC,8249,Training-all costs,216.00,0.00,216.00
Regeneration Economy and Growth,Culture Sport and Tourism,054235,Bishop Auckland Town Hall Cafe,Supplies and Services,324117,Provisions E324,03-Feb-2022,000007956012112,JR HOLLAND FOODSERVICE,5499,Catering costs - provisions,243.46,0.00,243.46
Adult and Health Services,Head of Adults,055643,Hawthorn House LD Respite Unit,Supplies and Services,324117,Provisions E324,03-Feb-2022,000007956012114,JR HOLLAND FOODSERVICE,5499,Catering costs - provisions,25.33,0.00,25.33
Neighbourhoods and Climate Change,Environmental Services,011060,C&G - Hardwick Park Catering,Supplies and Services,324117,Provisions E324,03-Feb-2022,000007956012116,JR HOLLAND FOODSERVICE,5499,Catering costs - provisions,144.47,0.00,144.47
Resources BK0010,Digital and Customer Services,065481,Technical Services 065481,Supplies and Services,304403,Equipment and Materials,03-Feb-2022,000007960706080,RS COMPONENTS,5065,Other consumables,99.56,0.00,99.56
Neighbourhoods and Climate Change,Environmental Services,011060,C&G - Hardwick Park Catering,Supplies and Services,304083,Equipment and Materials,03-Feb-2022,000007960706344,AMZNMKTPLACE AMAZON.CO,5999,Catering equipment,10.99,1.83,9.16
Neighbourhoods and Climate Change,Environmental Services,010314,Nei.Prot - Bereavement Services,Supplies and Services,304259,Equipment and Materials,03-Feb-2022,000007960706348,Durham County CNCL,9399,Equipment-purchase and rental,11.00,0.00,11.00
Neighbourhoods and Climate Change,Environmental Services,010301,C&G - North Grounds Maintenance,Supplies and Services,304221,Equipment and Materials,03-Feb-2022,000007960706368,BREWERS,5211,Direct materials,202.26,0.00,202.26
Neighbourhoods and Climate Change,Environmental Services,010301,C&G - North Grounds Maintenance,Supplies and Services,304221,Equipment and Materials,03-Feb-2022,000007960706370,BREWERS,5211,Direct materials,7.85,0.00,7.85
Adult and Health Services,Head of Adults,055643,Hawthorn House LD Respite Unit,Supplies and Services,324117,Provisions E324,03-Feb-2022,000007960706470,SAINSBURYS S/MKTS,5411,Catering costs - provisions,22.40,0.00,22.40
Adult and Health Services,Head of Adults,055309,Peterlee Pathways,Supplies and Services,304403,Equipment and Materials,03-Feb-2022,000007960706786,AMZNMKTPLACE AMAZON.CO,5999,Other consumables,59.72,9.95,49.77
Regeneration Economy and Growth,Development and Housing,030544,Rural Employability - Client Engagement,Employees,040149,Recruitment Instruction and Training,03-Feb-2022,000007967883968,NCS CITB EXAM,8299,Training-all costs,22.00,0.00,22.00
Regeneration Economy and Growth,Development and Housing,030544,Rural Employability - Client Engagement,Employees,040149,Recruitment Instruction and Training,03-Feb-2022,000007967883972,NCS CITB EXAM,8299,Training-all costs,22.00,0.00,22.00
Children and Young Peoples Services,Head of Childrens Social Care,085611,Families First Stanley,Supplies and Services,304259,Equipment and Materials,03-Feb-2022,7955915592,Amazon.co.uk 5X2AN62S5,5969,Equipment-purchase and rental,20.99,0.00,20.99
Children and Young Peoples Services,Head of Early Help Inclusion & Vulnerable Children.,088115,Young Parents Programme 088115,Supplies and Services,384302,Miscellaneous Expenses,03-Feb-2022,7955915596,AMZNMktplace,5999,Activity expenses,23.76,3.96,19.80
Children and Young Peoples Services,Head of Early Help Inclusion & Vulnerable Children.,088115,Young Parents Programme 088115,Supplies and Services,384302,Miscellaneous Expenses,03-Feb-2022,7955915596 - 1,AMZNMktplace,5999,Activity expenses,0.18,,0.18
Children and Young Peoples Services,Head of Early Help Inclusion & Vulnerable Children.,088115,Young Parents Programme 088115,Supplies and Services,384302,Miscellaneous Expenses,03-Feb-2022,7955915600,AMZNMktplace,5999,Activity expenses,20.70,3.45,17.25
Children and Young Peoples Services,Head of Early Help Inclusion & Vulnerable Children.,088115,Young Parents Programme 088115,Supplies and Services,384302,Miscellaneous Expenses,03-Feb-2022,7955915604,AMZNMktplace,5999,Activity expenses,51.26,8.57,42.69
Children and Young Peoples Services,Head of Early Help Inclusion & Vulnerable Children.,088115,Young Parents Programme 088115,Supplies and Services,384302,Miscellaneous Expenses,03-Feb-2022,7955915608,WILKO.COM,5399,Activity expenses,29.00,0.00,29.00
Children and Young Peoples Services,Head of Early Help Inclusion & Vulnerable Children.,088115,Young Parents Programme 088115,Supplies and Services,384302,Miscellaneous Expenses,03-Feb-2022,7955915614,AMZNMktplace,5999,Activity expenses,7.64,1.28,6.36
Children and Young Peoples Services,Head of Early Help Inclusion & Vulnerable Children.,088115,Young Parents Programme 088115,Supplies and Services,384302,Miscellaneous Expenses,03-Feb-2022,7955915616,AMZNMktplace,5999,Activity expenses,29.27,4.89,24.38
Children and Young Peoples Services,Head of Education and Skills,071801,Selby Cottage Childcare Centre,Supplies and Services,324117,Provisions E324,03-Feb-2022,7955915626,TESCO STORES 2278,5411,Catering costs - provisions,16.33,0.00,16.33
Children and Young Peoples Services,Head of Childrens Social Care,085341,High Etherley Satelite Home,Supplies and Services,324117,Provisions E324,03-Feb-2022,7955915652,TESCO STORES 6329,5411,Catering costs - provisions,60.02,0.00,60.02
Dedicated Schools Grant BG0015,DSG High Needs Block,079050,SENSS-Sensory,Supplies and Services,304403,Equipment and Materials,03-Feb-2022,7955915696,AMZNMktplace,5999,Other consumables,7.29,1.22,6.07
Dedicated Schools Grant BG0015,DSG High Needs Block,079050,SENSS-Sensory,Supplies and Services,304403,Equipment and Materials,03-Feb-2022,7955915700,AMZNMktplace,5999,Other consumables,21.50,3.58,17.92
Dedicated Schools Grant BG0015,DSG High Needs Block,079050,SENSS-Sensory,Supplies and Services,304403,Equipment and Materials,03-Feb-2022,7955915704,AMZNMktplace,5999,Other consumables,6.99,0.00,6.99
Dedicated Schools Grant BG0015,DSG High Needs Block,079050,SENSS-Sensory,Supplies and Services,304403,Equipment and Materials,03-Feb-2022,7955915708,AMZNMktplace,5999,Other consumables,25.82,4.31,21.51
Children and Young Peoples Services,Head of Childrens Social Care,085334,West Rainton Satelite Home,Supplies and Services,304403,Equipment and Materials,03-Feb-2022,7955915720,AMZNMKTPLACE AMAZON.CO,5999,Other consumables,29.98,0.00,29.98
Children and Young Peoples Services,Head of Early Help Inclusion & Vulnerable Children.,085952,Secure Education,Employees,040149,Recruitment Instruction and Training,03-Feb-2022,7955915804,WWW.PSHE-ASSOCIATION.O,8398,Training-all costs,125.00,0.00,125.00
Children and Young Peoples Services,Head of Early Help Inclusion & Vulnerable Children.,085957,Secure Management,Supplies and Services,304403,Equipment and Materials,03-Feb-2022,7955915810,AMZNMktplace,5999,Other consumables,12.30,2.05,10.25
Children and Young Peoples Services,Head of Childrens Social Care,085511,Emergency Duty Team,Supplies and Services,352001,Conference Expenses,03-Feb-2022,7955915814,TRAVELODGE,3615,Conferencesseminars fees etc,33.99,0.00,33.99
Children and Young Peoples Services,Head of Education and Skills,071732,Dean Bank Childcare,Supplies and Services,304403,Equipment and Materials,03-Feb-2022,7955915894,AMZNMktplace,5999,Other consumables,29.99,0.00,29.99
Children and Young Peoples Services,Head of Education and Skills,071732,Dean Bank Childcare,Supplies and Services,304403,Equipment and Materials,03-Feb-2022,7955915898,AMZNMKTPLACE AMAZON.CO,5999,Other consumables,29.99,0.00,29.99
Children and Young Peoples Services,Head of Early Help Inclusion & Vulnerable Children.,085957,Secure Management,Supplies and Services,304259,Equipment and Materials,03-Feb-2022,7955915960,PAYPAL TOTALSTORES ON,5732,Equipment-purchase and rental,494.25,0.00,494.25
Children and Young Peoples Services,Head of Early Help Inclusion & Vulnerable Children.,085962,Aycliffe Secure - Durham,Supplies and Services,332047,Printing Stationery and Gen Off Exps,03-Feb-2022,7955915964,AMZNMktplace,5999,Stationery,125.97,21.01,104.96
Children and Young Peoples Services,Head of Early Help Inclusion & Vulnerable Children.,085957,Secure Management,Supplies and Services,304245,Equipment and Materials,03-Feb-2022,7955915970,FAST KEY SERVICES LIMI,7399,Materials,7.33,0.00,7.33
Children and Young Peoples Services,Head of Education and Skills,073911,Pupil Premium,Supplies and Services,384999,Miscellaneous Expenses,03-Feb-2022,7955916050,Amazon.co.uk G84876MI5,5969,Other expenses,29.98,5.00,24.98
Children and Young Peoples Services,Head of Childrens Social Care,085367,Children Looked After Team 4,Supplies and Services,340001,Postages E340,03-Feb-2022,7955916106,POST OFFICE COUNTER,9402,Postages,2.06,0.00,2.06
Children and Young Peoples Services,Head of Childrens Social Care,085368,Children Looked After Team 5,Supplies and Services,340001,Postages E340,03-Feb-2022,7955916110,POST OFFICE COUNTER,9402,Postages,2.06,0.00,2.06
Children and Young Peoples Services,Head of Childrens Social Care,085364,Children Looked After Team 1,Supplies and Services,340001,Postages E340,03-Feb-2022,7955916114,POST OFFICE COUNTER,9402,Postages,6.48,0.00,6.48
Children and Young Peoples Services,Head of Childrens Social Care,085347,Solo Home The Manse,Supplies and Services,304259,Equipment and Materials,03-Feb-2022,7955916118,AMZNMktplace,5999,Equipment-purchase and rental,269.99,45.00,224.99
Children and Young Peoples Services,Head of Childrens Social Care,085367,Children Looked After Team 4,Supplies and Services,338045,Services,03-Feb-2022,7955916120,HM PASSPORT OFFICE,9399,Legal expenses 338045,49.00,0.00,49.00
Children and Young Peoples Services,Head of Childrens Social Care,085367,Children Looked After Team 4,Supplies and Services,338045,Services,03-Feb-2022,7955916124,HM PASSPORT OFFICE,9399,Legal expenses 338045,49.00,0.00,49.00
Children and Young Peoples Services,Head of Childrens Social Care,085367,Children Looked After Team 4,Supplies and Services,304259,Equipment and Materials,03-Feb-2022,7955916126,HM PASSPORT OFFICE,9399,Equipment-purchase and rental,49.00,0.00,49.00
Children and Young Peoples Services,Head of Early Help Inclusion & Vulnerable Children.,088105,W/Close and Willington Family Centre,Supplies and Services,384302,Miscellaneous Expenses,03-Feb-2022,7955916130,ASDA GEORGE COM LEEDS,5411,Activity expenses,322.45,0.00,322.45
Children and Young Peoples Services,Head of Childrens Social Care,085333,Coxhoe Satelite Home,Supplies and Services,324117,Provisions E324,03-Feb-2022,7955916202,ASDA SUPERSTORE 4987,5411,Catering costs - provisions,110.68,0.00,110.68
Children and Young Peoples Services,Head of Childrens Social Care,085333,Coxhoe Satelite Home,Supplies and Services,304403,Equipment and Materials,03-Feb-2022,7955916206,CARD FACTORY,5947,Other consumables,23.30,0.00,23.30
Children and Young Peoples Services,Head of Childrens Social Care,085334,West Rainton Satelite Home,Supplies and Services,324117,Provisions E324,03-Feb-2022,7955916304,B&M 681 - DURHAM,5399,Catering costs - provisions,63.00,0.00,63.00
Children and Young Peoples Services,Head of Childrens Social Care,085334,West Rainton Satelite Home,Supplies and Services,324117,Provisions E324,03-Feb-2022,7955916308,TESCO STORES 2371,5411,Catering costs - provisions,193.17,0.00,193.17
Children and Young Peoples Services,Head of Early Help Inclusion & Vulnerable Children.,079581,Emotional Wellbeing Team,Supplies and Services,304403,Equipment and Materials,03-Feb-2022,7955916378,AMZNMktplace,5999,Other consumables,51.60,0.00,51.60
Children and Young Peoples Services,Head of Childrens Social Care,085351,Framwellgate Moor CU,Transport,235057,Public Transport,03-Feb-2022,7955916420,THE RIVERWALK CAR PARK,7523,Staff travelling,1.50,0.00,1.50
Children and Young Peoples Services,Head of Childrens Social Care,085351,Framwellgate Moor CU,Supplies and Services,324117,Provisions E324,03-Feb-2022,7955916424,TESCO STORES 2916,5411,Catering costs - provisions,50.00,0.00,50.00
Children and Young Peoples Services,Head of Childrens Social Care,085351,Framwellgate Moor CU,Supplies and Services,304999,Equipment and Materials,03-Feb-2022,7955916428,SUPERDRUG STORES PLC,5912,Misc equipment tools and materials,16.00,0.00,16.00
Children and Young Peoples Services,Head of Childrens Social Care,085351,Framwellgate Moor CU,Supplies and Services,304403,Equipment and Materials,03-Feb-2022,7955916432,CARD FACTORY,5947,Other consumables,12.81,0.00,12.81
Children and Young Peoples Services,Head of Childrens Social Care,085332,Middlestone Moor CU,Supplies and Services,348037,Subsistence E348,03-Feb-2022,7955916476,Pizza Hut,5812,Subsistence,5.54,0.00,5.54
Children and Young Peoples Services,Head of Childrens Social Care,085332,Middlestone Moor CU,Supplies and Services,348037,Subsistence E348,03-Feb-2022,7955916480,KFC WEST AUCKLAND,5814,Subsistence,7.98,0.00,7.98
Children and Young Peoples Services,Head of Early Help Inclusion & Vulnerable Children.,085962,Aycliffe Secure - Durham,Supplies and Services,304403,Equipment and Materials,03-Feb-2022,7955916492,AMZNMktplace,5999,Other consumables,9.99,1.67,8.32
Children and Young Peoples Services,Head of Early Help Inclusion & Vulnerable Children.,085962,Aycliffe Secure - Durham,Supplies and Services,304403,Equipment and Materials,03-Feb-2022,7955916496,AMZNMktplace,5999,Other consumables,11.99,2.00,9.99
Children and Young Peoples Services,Head of Childrens Social Care,085612,Families First Consett,Supplies and Services,364301,Grants to Voluntary Organisations,03-Feb-2022,7960706046,ARGOS LTD,5310,Hardship,49.00,0.00,49.00
Children and Young Peoples Services,Head of Childrens Social Care,085611,Families First Stanley,Supplies and Services,338045,Services,03-Feb-2022,7960706056,GEN REGISTER OFFICE,9399,Legal expenses 338045,28.00,0.00,28.00
Children and Young Peoples Services,Head of Childrens Social Care,085333,Coxhoe Satelite Home,Supplies and Services,324117,Provisions E324,03-Feb-2022,7960706476,SAINSBURYS S/MKTS,5411,Catering costs - provisions,36.70,0.00,36.70
Resources BK0010,Procurement Sales & Business Services,065503,Business Support - Spectrum,Supplies and Services,352001,Conference Expenses,03-Feb-2022,7960706594,TVLICENSING.CO.UK,7392,Conferencesseminars fees etc,159.00,0.00,159.00
Children and Young Peoples Services,Head of Childrens Social Care,085332,Middlestone Moor CU,Supplies and Services,348037,Subsistence E348,03-Feb-2022,7960706616,MCDONALDS,5812,Subsistence,3.47,0.00,3.47
Children and Young Peoples Services,Head of Childrens Social Care,085352,New Childrens Home (previously Tow Law),Supplies and Services,304259,Equipment and Materials,03-Feb-2022,7960706704,JD SPORTS INTERNET,5941,Equipment-purchase and rental,10.49,0.00,10.49
Resources BK0010,Procurement Sales & Business Services,065503,Business Support - Spectrum,Supplies and Services,328041,Clothing uniforms and laundry E328,03-Feb-2022,7960706828,ARGOS LTD,5310,Clothing uniforms and laundry,15.94,0.00,15.94
Children and Young Peoples Services,Head of Childrens Social Care,085611,Families First Stanley,Supplies and Services,338045,Services,03-Feb-2022,9964281393,GEN REGISTER OFFICE,9399,Legal expenses 338045,-7.50,0.00,-7.50
Resources BK0010,Digital and Customer Services,065350,Project Management Office,Supplies and Services,304403,Equipment and Materials,04-Feb-2022,000007955915634,ACF,5734,Other consumables,1.00,0.00,1.00
Regeneration Economy and Growth,Business Durham CL0850,030689,Inward Investment and Aftercare,Supplies and Services,336005,Advertising E336,04-Feb-2022,000007960706030,Google ADS6853017821,7311,Advertising other than for staff,109.15,0.00,109.15
Regeneration Economy and Growth,Business Durham CL0850,030689,Inward Investment and Aftercare,Supplies and Services,336005,Advertising E336,04-Feb-2022,000007960706032,LINKEDIN-751 9411414,7311,Advertising other than for staff,108.55,0.00,108.55
Regeneration Economy and Growth,Business Durham CL0850,030689,Inward Investment and Aftercare,Supplies and Services,342222,Computers and Communications,04-Feb-2022,000007960706036,FASTHOSTS INTERNET,4816,Comp hardware purch-network servers,7.54,0.00,7.54
Dedicated Schools Grant BG0015,DSG Schools Block,417629,Greenfield Community College 004176 - Sport Centre,Supplies and Services,304403,Equipment and Materials,04-Feb-2022,000007960706090,AMZNMKTPLACE AMAZON.CO,5999,Other consumables,159.99,26.67,133.32
Regeneration Economy and Growth,Development and Housing,030773,CLLD North,Transport,235057,Public Transport,04-Feb-2022,000007960706104,WWW.GONORTHEAST.CO.UK,4111,Staff travelling,95.00,0.00,95.00
Regeneration Economy and Growth,Culture Sport and Tourism,054502,HM Prison Frankland,Supplies and Services,304259,Equipment and Materials,04-Feb-2022,000007960706114,ARGOS LTD,5310,Equipment-purchase and rental,138.95,23.16,115.79
Children and Young Peoples Services,Head of Childrens Social Care,085357,LAC Bespoke Placements,Supplies and Services,304999,Equipment and Materials,04-Feb-2022,000007960706146,YPS BIRTLEYS HIDDEN GE,6513,Misc equipment tools and materials,500.00,0.00,500.00
Regeneration Economy and Growth,Culture Sport and Tourism,054233,Bishop Auckland Town Hall Library,Supplies and Services,324117,Provisions E324,04-Feb-2022,000007960706190,TESCO STORES 2971,5411,Catering costs - provisions,14.00,0.00,14.00
Neighbourhoods and Climate Change,Environmental Services,010367,C&G - South Grounds Maintenance,Supplies and Services,304999,Equipment and Materials,04-Feb-2022,000007960706296,BLACK & DECKER,5251,Misc equipment tools and materials,319.00,0.00,319.00
Children and Young Peoples Services,Head of Childrens Social Care,085520,Rapid Response Team CYPS,Supplies and Services,308011,Furniture,04-Feb-2022,000007960706362,IKEA LTD SHOP ONLINE,5712,Furniture repair and replacement,28.00,0.00,28.00
Children and Young Peoples Services,Head of Childrens Social Care,085520,Rapid Response Team CYPS,Supplies and Services,308011,Furniture,04-Feb-2022,000007960706364,IKEA LTD SHOP ONLINE,5712,Furniture repair and replacement,36.00,0.00,36.00
Neighbourhoods and Climate Change,Environmental Services,010367,C&G - South Grounds Maintenance,Supplies and Services,304221,Equipment and Materials,04-Feb-2022,000007960706392,MKM PETERLEE,5211,Direct materials,184.42,0.00,184.42
Resources BK0010,People & Talent Management,010984,Training and Development,Supplies and Services,304999,Equipment and Materials,04-Feb-2022,000007960706400,WESTMINSTER INSIGHT,5815,Misc equipment tools and materials,351.00,0.00,351.00
Regeneration Economy and Growth,Development and Housing,030771,Durham Advance Flexible Fund,Supplies and Services,304221,Equipment and Materials,04-Feb-2022,000007960706424,PARTNERS& LIMITED,6300,Direct materials,79.36,0.00,79.36
Regeneration Economy and Growth,Development and Housing,030554,International Relations 030554,Transport,235057,Public Transport,04-Feb-2022,000007960706444,PRINCE BISHOP SHOPPING,7523,Staff travelling,3.30,0.00,3.30
Regeneration Economy and Growth,Development and Housing,030554,International Relations 030554,Supplies and Services,304221,Equipment and Materials,04-Feb-2022,000007960706446,HOMEBASE LTD 219,5200,Direct materials,9.95,0.00,9.95
Neighbourhoods and Climate Change,Environmental Services,010367,C&G - South Grounds Maintenance,Supplies and Services,304999,Equipment and Materials,04-Feb-2022,000007960706464,Snowballs,5251,Misc equipment tools and materials,72.00,0.00,72.00
Neighbourhoods and Climate Change,Environmental Services,031200,North Pennines Core,Supplies and Services,384999,Miscellaneous Expenses,04-Feb-2022,000007960706516,THE RABY ESTATES,5970,Other expenses,25.60,0.00,25.60
Regeneration Economy and Growth,Culture Sport and Tourism,054399,Local Delivery-Libraries,Supplies and Services,312009,Newspapers books and periodicals E312,04-Feb-2022,000007960706520,AMZNMKTPLACE AMAZON.CO,5999,Newspapers books and periodicals,21.13,0.00,21.13
Resources BK0010,Digital and Customer Services,065335,School Services - Implementations,Supplies and Services,304639,Equipment and Materials,04-Feb-2022,000007960706554,REPLACEBASE,5732,Technicians-supplies,16.48,0.00,16.48
Children and Young Peoples Services,Head of Education and Skills,071802,Louisa Cent Nursery,Supplies and Services,324117,Provisions E324,04-Feb-2022,000007960706658,ASDA GROCERIES ONLINE,5411,Catering costs - provisions,204.92,0.00,204.92
Regeneration Economy and Growth,Development and Housing,030554,International Relations 030554,Transport,235057,Public Transport,04-Feb-2022,000007960706670,PRINCE BISHOP SHOPPING,7523,Staff travelling,3.30,0.00,3.30
Regeneration Economy and Growth,Development and Housing,030554,International Relations 030554,Transport,235057,Public Transport,04-Feb-2022,000007960706672,WALKERGATE CAR PAR,7523,Staff travelling,2.00,0.00,2.00
Regeneration Economy and Growth,Culture Sport and Tourism,054233,Bishop Auckland Town Hall Library,Supplies and Services,324117,Provisions E324,04-Feb-2022,000007960706686,WILKO RETAIL LIMITED,5399,Catering costs - provisions,10.30,0.00,10.30
Regeneration Economy and Growth,Corporate Property and Land,011275,Catering -Durham Leadership Centre,Supplies and Services,324117,Provisions E324,04-Feb-2022,000007960790892,HOPWELLS LTD,5811,Catering costs - provisions,293.58,0.00,293.58
Regeneration Economy and Growth,Corporate Property and Land,011275,Catering -Durham Leadership Centre,Supplies and Services,324117,Provisions E324,04-Feb-2022,000007960790894,HOPWELLS LTD,5811,Catering costs - provisions,-18.61,0.00,-18.61
Regeneration Economy and Growth,Corporate Property and Land,030691,Catering - Durham Dales Centre,Supplies and Services,324117,Provisions E324,04-Feb-2022,000007960790896,FREEMAN CATERING BUTCH,5422,Catering costs - provisions,46.05,0.00,46.05
Regeneration Economy and Growth,Corporate Property and Land,030691,Catering - Durham Dales Centre,Supplies and Services,324117,Provisions E324,04-Feb-2022,000007960790898,HOPWELLS LTD,5811,Catering costs - provisions,180.73,0.00,180.73
Regeneration Economy and Growth,Corporate Property and Land,030691,Catering - Durham Dales Centre,Supplies and Services,324117,Provisions E324,04-Feb-2022,000007960790900,JR HOLLAND FOODSERVICE,5499,Catering costs - provisions,110.76,0.00,110.76
Adult and Health Services,Head of Adults,055643,Hawthorn House LD Respite Unit,Supplies and Services,324117,Provisions E324,04-Feb-2022,000007960790902,FREEMAN CATERING BUTCH,5422,Catering costs - provisions,59.50,0.00,59.50
Adult and Health Services,Head of Adults,055643,Hawthorn House LD Respite Unit,Supplies and Services,324117,Provisions E324,04-Feb-2022,000007960790904,JR HOLLAND FOODSERVICE,5499,Catering costs - provisions,23.40,0.00,23.40
Neighbourhoods and Climate Change,Environmental Services,011060,C&G - Hardwick Park Catering,Supplies and Services,324117,Provisions E324,04-Feb-2022,000007960790906,FREEMAN CATERING BUTCH,5422,Catering costs - provisions,66.65,0.00,66.65
Neighbourhoods and Climate Change,Environmental Services,011060,C&G - Hardwick Park Catering,Supplies and Services,324117,Provisions E324,04-Feb-2022,000007960790908,HOPWELLS LTD,5811,Catering costs - provisions,169.91,0.00,169.91
Regeneration Economy and Growth,Corporate Property and Land,021234,Catering - Locomotion,Supplies and Services,324117,Provisions E324,04-Feb-2022,000007960790910,FREEMAN CATERING BUTCH,5422,Catering costs - provisions,54.42,0.00,54.42
Regeneration Economy and Growth,Corporate Property and Land,021234,Catering - Locomotion,Supplies and Services,324117,Provisions E324,04-Feb-2022,000007960790912,JR HOLLAND FOODSERVICE,5499,Catering costs - provisions,48.92,0.00,48.92
Regeneration Economy and Growth,Corporate Property and Land,021235,Catering - Wharton Park,Supplies and Services,324117,Provisions E324,04-Feb-2022,000007960790914,JR HOLLAND FOODSERVICE,5499,Catering costs - provisions,15.91,0.00,15.91
Regeneration Economy and Growth,Culture Sport and Tourism,054812,Gala Theatre - Catering etc,Supplies and Services,324117,Provisions E324,04-Feb-2022,000007960790916,JR HOLLAND FOODSERVICE,5499,Catering costs - provisions,45.66,0.00,45.66
Adult and Health Services,Head of Adults,055643,Hawthorn House LD Respite Unit,Supplies and Services,324117,Provisions E324,04-Feb-2022,000007967941242,BATLEYS PERTH,5300,Catering costs - provisions,33.90,5.65,28.25
Adult and Health Services,Head of Adults,055643,Hawthorn House LD Respite Unit,Supplies and Services,324117,Provisions E324,04-Feb-2022,000007967941242 - 1,BATLEYS PERTH,5300,Catering costs - provisions,135.57,,135.57
Children and Young Peoples Services,Head of Early Help Inclusion & Vulnerable Children.,085956,Lumley,Supplies and Services,308011,Furniture,04-Feb-2022,7955915972,AMZNMktplace,5999,Furniture repair and replacement,39.51,6.59,32.92
Children and Young Peoples Services,Head of Early Help Inclusion & Vulnerable Children.,085962,Aycliffe Secure - Durham,Supplies and Services,304403,Equipment and Materials,04-Feb-2022,7955916498,AMZNMktplace,5999,Other consumables,23.98,4.00,19.98
Children and Young Peoples Services,Head of Early Help Inclusion & Vulnerable Children.,088115,Young Parents Programme 088115,Supplies and Services,384302,Miscellaneous Expenses,04-Feb-2022,7960706048,AMZNMktplace,5999,Activity expenses,25.74,4.32,21.42
Children and Young Peoples Services,Head of Early Help Inclusion & Vulnerable Children.,088100,Durham & CLS Intensive Family Support Team,Supplies and Services,364301,Grants to Voluntary Organisations,04-Feb-2022,7960706050,AMZNMktplace,5999,Hardship,18.99,3.17,15.82
Children and Young Peoples Services,Head of Early Help Inclusion & Vulnerable Children.,088100,Durham & CLS Intensive Family Support Team,Supplies and Services,364301,Grants to Voluntary Organisations,04-Feb-2022,7960706052,AMZNMktplace,5999,Hardship,35.99,6.00,29.99
Children and Young Peoples Services,Head of Early Help Inclusion & Vulnerable Children.,088115,Young Parents Programme 088115,Supplies and Services,384302,Miscellaneous Expenses,04-Feb-2022,7960706054,AMZNMktplace,5999,Activity expenses,296.46,49.41,247.05
Children and Young Peoples Services,Head of Early Help Inclusion & Vulnerable Children.,088115,Young Parents Programme 088115,Supplies and Services,384302,Miscellaneous Expenses,04-Feb-2022,7960706058,AMZNMktplace,5999,Activity expenses,237.66,39.61,198.05
Children and Young Peoples Services,Head of Early Help Inclusion & Vulnerable Children.,088115,Young Parents Programme 088115,Supplies and Services,384302,Miscellaneous Expenses,04-Feb-2022,7960706058 - 1,AMZNMktplace,5999,Activity expenses,0.17,,0.17
Children and Young Peoples Services,Head of Early Help Inclusion & Vulnerable Children.,088100,Durham & CLS Intensive Family Support Team,Supplies and Services,364301,Grants to Voluntary Organisations,04-Feb-2022,7960706064,ARGOS LTD,5310,Hardship,53.00,0.00,53.00
Children and Young Peoples Services,Head of Childrens Social Care,085341,High Etherley Satelite Home,Supplies and Services,324117,Provisions E324,04-Feb-2022,7960706148,TESCO STORES 6329,5411,Catering costs - provisions,71.93,0.00,71.93
Children and Young Peoples Services,Head of Early Help Inclusion & Vulnerable Children.,085957,Secure Management,Supplies and Services,304999,Equipment and Materials,04-Feb-2022,7960706220,Microsoft Xbox,5816,Misc equipment tools and materials,35.99,0.00,35.99
Children and Young Peoples Services,Head of Early Help Inclusion & Vulnerable Children.,085952,Secure Education,Employees,040149,Recruitment Instruction and Training,04-Feb-2022,7960706222,TALK FOR WRITING,8299,Training-all costs,38.19,0.00,38.19
Children and Young Peoples Services,Head of Early Help Inclusion & Vulnerable Children.,085957,Secure Management,Supplies and Services,304999,Equipment and Materials,04-Feb-2022,7960706224,WWW.SUPERTUFFEUROPE.CO,5072,Misc equipment tools and materials,199.20,0.00,199.20
Children and Young Peoples Services,Head of Early Help Inclusion & Vulnerable Children.,085957,Secure Management,Supplies and Services,304999,Equipment and Materials,04-Feb-2022,7960706228,MICROSOFT XBOX,5816,Misc equipment tools and materials,17.49,0.00,17.49
Children and Young Peoples Services,Head of Early Help Inclusion & Vulnerable Children.,085957,Secure Management,Supplies and Services,304221,Equipment and Materials,04-Feb-2022,7960706230,SCREWFIX DIRECT,5211,Direct materials,18.98,0.00,18.98
Children and Young Peoples Services,Head of Childrens Social Care,085511,Emergency Duty Team,Employees,040149,Recruitment Instruction and Training,04-Feb-2022,7960706244,PREMIER INN,3811,Training-all costs,264.97,0.00,264.97
Children and Young Peoples Services,Head of Education and Skills,071732,Dean Bank Childcare,Supplies and Services,324117,Provisions E324,04-Feb-2022,7960706336,Wm Morrisons Store Pic,5411,Catering costs - provisions,8.00,0.00,8.00
Children and Young Peoples Services,Head of Early Help Inclusion & Vulnerable Children.,085956,Lumley,Supplies and Services,308011,Furniture,04-Feb-2022,7960706380,AMZNMktplace,5999,Furniture repair and replacement,6.99,1.17,5.82
Children and Young Peoples Services,Head of Early Help Inclusion & Vulnerable Children.,085965,Barnard,Supplies and Services,324117,Provisions E324,04-Feb-2022,7960706382,TESCO STORES 6329,5411,Catering costs - provisions,78.51,0.00,78.51
Children and Young Peoples Services,Head of Childrens Social Care,085365,Children Looked After Team 2,Supplies and Services,338045,Services,04-Feb-2022,7960706450,GEN REGISTER OFFICE,9399,Legal expenses 338045,11.00,0.00,11.00
Children and Young Peoples Services,Head of Childrens Social Care,085351,Framwellgate Moor CU,Supplies and Services,324117,Provisions E324,04-Feb-2022,7960706490,ASDA GROCERIES ONLINE,5411,Catering costs - provisions,104.91,0.00,104.91
Children and Young Peoples Services,Head of Childrens Social Care,085334,West Rainton Satelite Home,Supplies and Services,324117,Provisions E324,04-Feb-2022,7960706532,B&M 681 - DURHAM,5399,Catering costs - provisions,11.99,0.00,11.99
Resources BK0010,Procurement Sales & Business Services,065502,Business Support - Crook,Supplies and Services,312009,Newspapers books and periodicals E312,04-Feb-2022,7960706540,HAPPY CONFIDENT COMP,5192,Newspapers books and periodicals,44.95,0.00,44.95
Resources BK0010,Procurement Sales & Business Services,065502,Business Support - Crook,Supplies and Services,324117,Provisions E324,04-Feb-2022,7960706542,THE FAIRY GIFT SHOP,5399,Catering costs - provisions,344.70,0.00,344.70
Resources BK0010,Procurement Sales & Business Services,065502,Business Support - Crook,Transport,235057,Public Transport,04-Feb-2022,7960706544,SUNDERLAND CC,7523,Staff travelling,11.00,0.00,11.00
Resources BK0010,Procurement Sales & Business Services,065502,Business Support - Crook,Supplies and Services,324117,Provisions E324,04-Feb-2022,7960706546,BESTWAY WHOLESALE,5451,Catering costs - provisions,18.28,0.00,18.28
Children and Young Peoples Services,Head of Early Help Inclusion & Vulnerable Children.,088111,Easington Horden & Seascape Family Centre,Supplies and Services,304259,Equipment and Materials,04-Feb-2022,7960706596,ASDA GROCERIES ONLINE,5411,Equipment-purchase and rental,101.98,0.00,101.98
Children and Young Peoples Services,Head of Childrens Social Care,085333,Coxhoe Satelite Home,Supplies and Services,324117,Provisions E324,04-Feb-2022,7960706626,TESCO STORES 2371,5411,Catering costs - provisions,35.98,0.00,35.98
Children and Young Peoples Services,Head of Childrens Social Care,085333,Coxhoe Satelite Home,Supplies and Services,304403,Equipment and Materials,04-Feb-2022,7960706628,AMZNMktplace,5999,Other consumables,125.62,0.00,125.62
Children and Young Peoples Services,Head of Childrens Social Care,085351,Framwellgate Moor CU,Supplies and Services,324117,Provisions E324,04-Feb-2022,7960706640,SAINSBURYS LOCAL,5411,Catering costs - provisions,15.60,0.00,15.60
Children and Young Peoples Services,Head of Childrens Social Care,085333,Coxhoe Satelite Home,Supplies and Services,324117,Provisions E324,04-Feb-2022,7960706646,TESCO STORES 2916,5411,Catering costs - provisions,104.35,0.00,104.35
Children and Young Peoples Services,Head of Early Help Inclusion & Vulnerable Children.,088113,Seaham & Laurel Avenue Family Centre,Supplies and Services,304999,Equipment and Materials,04-Feb-2022,7960706824,HOME BARGAINS,5251,Misc equipment tools and materials,33.69,0.00,33.69
Regeneration Economy and Growth,Culture Sport and Tourism,054798,dli Museum - WW1 Education Programme,Supplies and Services,304259,Equipment and Materials,05-Feb-2022,000007960706112,AMZNMKTPLACE AMAZON.CO,5999,Equipment-purchase and rental,56.69,0.00,56.69
Regeneration Economy and Growth,Development and Housing,030772,CLLD South,Supplies and Services,304259,Equipment and Materials,05-Feb-2022,000007960706260,RECYKE Y`BIKE LTD,5940,Equipment-purchase and rental,140.00,0.00,140.00
Neighbourhoods and Climate Change,Environmental Services,011060,C&G - Hardwick Park Catering,Supplies and Services,304083,Equipment and Materials,05-Feb-2022,000007960706346,CLEANING SUPPLIES 4 U,2842,Catering equipment,43.09,0.00,43.09
Dedicated Schools Grant BG0015,DSG Schools Block,418516,Belmont Community School 004185 - Non Curriculum,Vehicles Equipment Furniture and Fittings,912521,Purchase-furniture and fittings,05-Feb-2022,000007960706440,WILKO RETAIL LIMITED,5399,Purchase-furniture and fittings,18.00,0.00,18.00
Dedicated Schools Grant BG0015,DSG Schools Block,418517,Belmont Community School 004185 - Pupil Premium,Supplies and Services,364301,Grants to Voluntary Organisations,05-Feb-2022,000007960706442,TESCO STORES 2916,5411,Hardship,8.93,0.00,8.93
Regeneration Economy and Growth,Development and Housing,030554,International Relations 030554,Transport,235057,Public Transport,05-Feb-2022,000007960706448,PRINCE BISHOP SHOPPING,7523,Staff travelling,11.50,0.00,11.50
Regeneration Economy and Growth,Development and Housing,030554,International Relations 030554,Transport,235057,Public Transport,05-Feb-2022,000007960706674,PRINCE BISHOP SHOPPING,7523,Staff travelling,11.50,0.00,11.50
Regeneration Economy and Growth,Culture Sport and Tourism,054233,Bishop Auckland Town Hall Library,Supplies and Services,324117,Provisions E324,05-Feb-2022,000007960706688,HERON FOODS,5411,Catering costs - provisions,5.00,0.00,5.00
Regeneration Economy and Growth,Culture Sport and Tourism,054233,Bishop Auckland Town Hall Library,Supplies and Services,324117,Provisions E324,05-Feb-2022,000007960706690,HERON FOODS,5411,Catering costs - provisions,15.50,0.00,15.50
Regeneration Economy and Growth,Communications Management,060270,Communications and Marketing,Supplies and Services,372009,Subscriptions E372,05-Feb-2022,000007960706748,LINKEDIN-729 4712823,7311,Subscriptions 372009,95.57,0.00,95.57
Children and Young Peoples Services,Head of Early Help Inclusion & Vulnerable Children.,088115,Young Parents Programme 088115,Supplies and Services,384302,Miscellaneous Expenses,05-Feb-2022,7960706060,AMZNMktplace,5999,Activity expenses,57.33,9.57,47.76
Children and Young Peoples Services,Head of Childrens Social Care,085342,16 Hickstead Rise (previously 9 Cedar Ave),Supplies and Services,328041,Clothing uniforms and laundry E328,05-Feb-2022,7960706126,TK MAXX,5331,Clothing uniforms and laundry,20.19,0.00,20.19
Children and Young Peoples Services,Head of Childrens Social Care,085342,16 Hickstead Rise (previously 9 Cedar Ave),Supplies and Services,324117,Provisions E324,05-Feb-2022,7960706128,STARBUCKS BISHOP AUCKL,5499,Catering costs - provisions,5.45,0.00,5.45
Children and Young Peoples Services,Head of Childrens Social Care,085342,16 Hickstead Rise (previously 9 Cedar Ave),Supplies and Services,324117,Provisions E324,05-Feb-2022,7960706130,SAINSBURYS LOCAL,5411,Catering costs - provisions,2.68,0.00,2.68
Children and Young Peoples Services,Head of Childrens Social Care,085341,High Etherley Satelite Home,Supplies and Services,328041,Clothing uniforms and laundry E328,05-Feb-2022,7960706150,POUNDLAND LTD 1554,5310,Clothing uniforms and laundry,13.00,0.00,13.00
Children and Young Peoples Services,Head of Early Help Inclusion & Vulnerable Children.,085965,Barnard,Supplies and Services,328041,Clothing uniforms and laundry E328,05-Feb-2022,7960706226,Nike GBP,5655,Clothing uniforms and laundry,99.95,0.00,99.95
Children and Young Peoples Services,Head of Early Help Inclusion & Vulnerable Children.,085956,Lumley,Supplies and Services,324117,Provisions E324,05-Feb-2022,7960706232,TESCO STORES 6329,5411,Catering costs - provisions,60.29,0.00,60.29
Children and Young Peoples Services,Head of Childrens Social Care,085511,Emergency Duty Team,Supplies and Services,352001,Conference Expenses,05-Feb-2022,7960706240,Hotel at Booking.com,7011,Conferencesseminars fees etc,395.60,0.00,395.60
Children and Young Peoples Services,Head of Childrens Social Care,085511,Emergency Duty Team,Transport,235057,Public Transport,05-Feb-2022,7960706242,BLUE LINE TAXIS,4121,Staff travelling,20.60,0.00,20.60
Children and Young Peoples Services,Head of Childrens Social Care,085358,Orchard House Sacriston Solo Home,Supplies and Services,348037,Subsistence E348,05-Feb-2022,7960706302,Just Eat,5814,Subsistence,36.30,0.00,36.30
Children and Young Peoples Services,Head of Childrens Social Care,085342,16 Hickstead Rise (previously 9 Cedar Ave),Supplies and Services,348037,Subsistence E348,05-Feb-2022,7960706328,WWW.TAKEAWAY.JE,5812,Subsistence,29.30,0.00,29.30
Children and Young Peoples Services,Head of Education and Skills,071732,Dean Bank Childcare,Supplies and Services,304403,Equipment and Materials,05-Feb-2022,7960706334,AMZNMKTPLACE AMAZON.CO,5999,Other consumables,39.98,0.00,39.98
Children and Young Peoples Services,Head of Childrens Social Care,085341,High Etherley Satelite Home,Supplies and Services,308011,Furniture,05-Feb-2022,7960706454,IKEA LTD 143 GATESHEAD,5712,Furniture repair and replacement,22.75,0.00,22.75
Children and Young Peoples Services,Head of Childrens Social Care,085334,West Rainton Satelite Home,Supplies and Services,332047,Printing Stationery and Gen Off Exps,05-Feb-2022,7960706534,ODEON CINEMAS,7832,Stationery,21.50,0.00,21.50
Children and Young Peoples Services,Head of Childrens Social Care,085551,Short Break Services-Park Hse Sher,Supplies and Services,324117,Provisions E324,05-Feb-2022,7960706798,CO-OP GROUP 010486,5411,Catering costs - provisions,16.40,0.00,16.40
Regeneration Economy and Growth,Business Durham CL0850,030689,Inward Investment and Aftercare,Supplies and Services,342033,Computers and Communications,06-Feb-2022,000007960706034,STK Shutterstock,7333,Computer hardware,19.00,0.00,19.00
Regeneration Economy and Growth,Business Durham CL0850,030689,Inward Investment and Aftercare,Supplies and Services,342222,Computers and Communications,06-Feb-2022,000007960706038,FASTHOSTS INTERNET,4816,Comp hardware purch-network servers,254.89,0.00,254.89
Regeneration Economy and Growth,Business Durham CL0850,030689,Inward Investment and Aftercare,Supplies and Services,342222,Computers and Communications,06-Feb-2022,000007960706040,FASTHOSTS INTERNET,4816,Comp hardware purch-network servers,44.38,0.00,44.38
Children and Young Peoples Services,Head of Childrens Social Care,085561,Social Work Academy,Supplies and Services,384999,Miscellaneous Expenses,06-Feb-2022,000007960706084,Amazon.co.uk K75FH7PA5,5969,Other expenses,52.08,8.68,43.40
Children and Young Peoples Services,Head of Childrens Social Care,085561,Social Work Academy,Supplies and Services,384999,Miscellaneous Expenses,06-Feb-2022,000007960706086,Amazon.co.uk 3G8XF9215,5969,Other expenses,96.72,16.12,80.60
Neighbourhoods and Climate Change,Environmental Services,031200,North Pennines Core,Supplies and Services,342033,Computers and Communications,06-Feb-2022,000007960706666,SendinBlue,7372,Computer hardware,27.60,0.00,27.60
Regeneration Economy and Growth,Communications Management,060270,Communications and Marketing,Supplies and Services,372009,Subscriptions E372,06-Feb-2022,000007960706750,FACEBK XFPV69F4B2,7311,Subscriptions 372009,500.00,0.00,500.00
Resources BK0010,Resources Management CK0450,069000,Resources Management 069000,Supplies and Services,332047,Printing Stationery and Gen Off Exps,06-Feb-2022,000007960706752,AMZNMktplace,5999,Stationery,12.99,2.17,10.82
Dedicated Schools Grant BG0015,DSG Schools Block,417602,Greenfield Community College 004176 - Science,Supplies and Services,304403,Equipment and Materials,06-Feb-2022,000007967883196,AMZNMKTPLACE AMAZON.CO,5999,Other consumables,42.78,7.13,35.65
Dedicated Schools Grant BG0015,DSG Schools Block,417602,Greenfield Community College 004176 - Science,Supplies and Services,304403,Equipment and Materials,06-Feb-2022,000007967883196 - 1,AMZNMKTPLACE AMAZON.CO,5999,Other consumables,89.86,,89.86
Neighbourhoods and Climate Change,Environmental Services,011060,C&G - Hardwick Park Catering,Supplies and Services,324117,Provisions E324,06-Feb-2022,000007967941246,BATLEYS PERTH,5300,Catering costs - provisions,112.68,18.78,93.90
Neighbourhoods and Climate Change,Environmental Services,011060,C&G - Hardwick Park Catering,Supplies and Services,324117,Provisions E324,06-Feb-2022,000007967941246 - 1,BATLEYS PERTH,5300,Catering costs - provisions,193.44,,193.44
Children and Young Peoples Services,Head of Childrens Social Care,085611,Families First Stanley,Supplies and Services,304259,Equipment and Materials,06-Feb-2022,7960706062,Amazon.co.uk W90TA1DO5,5969,Equipment-purchase and rental,21.99,0.00,21.99
Children and Young Peoples Services,Head of Early Help Inclusion & Vulnerable Children.,088115,Young Parents Programme 088115,Supplies and Services,384302,Miscellaneous Expenses,06-Feb-2022,7960706066,AMZNMktplace,5999,Activity expenses,49.95,8.35,41.60
Children and Young Peoples Services,Head of Early Help Inclusion & Vulnerable Children.,088115,Young Parents Programme 088115,Supplies and Services,384302,Miscellaneous Expenses,06-Feb-2022,7960706068,AMZNMktplace,5999,Activity expenses,39.96,6.68,33.28
Children and Young Peoples Services,Head of Early Help Inclusion & Vulnerable Children.,088115,Young Parents Programme 088115,Supplies and Services,384302,Miscellaneous Expenses,06-Feb-2022,7960706070,AMZNMktplace,5999,Activity expenses,39.96,6.68,33.28
Children and Young Peoples Services,Head of Early Help Inclusion & Vulnerable Children.,088115,Young Parents Programme 088115,Supplies and Services,384302,Miscellaneous Expenses,06-Feb-2022,7960706072,AMZNMktplace,5999,Activity expenses,133.48,22.29,111.19
Children and Young Peoples Services,Head of Early Help Inclusion & Vulnerable Children.,088115,Young Parents Programme 088115,Supplies and Services,384302,Miscellaneous Expenses,06-Feb-2022,7960706074,AMZNMktplace,5999,Activity expenses,49.95,8.35,41.60
Children and Young Peoples Services,Head of Childrens Social Care,085341,High Etherley Satelite Home,Supplies and Services,384999,Miscellaneous Expenses,06-Feb-2022,7960706152,CROOK GOLF CLUB,7997,Other expenses,43.80,0.00,43.80
Children and Young Peoples Services,Head of Childrens Social Care,085341,High Etherley Satelite Home,Supplies and Services,304999,Equipment and Materials,06-Feb-2022,7960706154,HOME BARGAINS,5251,Misc equipment tools and materials,12.29,0.00,12.29
Children and Young Peoples Services,Head of Childrens Social Care,085341,High Etherley Satelite Home,Supplies and Services,328041,Clothing uniforms and laundry E328,06-Feb-2022,7960706156,TK MAXX,5331,Clothing uniforms and laundry,22.99,0.00,22.99
Children and Young Peoples Services,Head of Early Help Inclusion & Vulnerable Children.,085954,Walworth,Supplies and Services,324117,Provisions E324,06-Feb-2022,7960706236,TESCO STORES 6329,5411,Catering costs - provisions,49.63,0.00,49.63
Children and Young Peoples Services,Head of Childrens Social Care,085358,Orchard House Sacriston Solo Home,Supplies and Services,324117,Provisions E324,06-Feb-2022,7960706308,TESCO STORES 6334,5411,Catering costs - provisions,8.25,0.00,8.25
Children and Young Peoples Services,Head of Education and Skills,071732,Dean Bank Childcare,Supplies and Services,324117,Provisions E324,06-Feb-2022,7960706338,SAINSBURYS S/MKTS,5411,Catering costs - provisions,47.48,0.00,47.48
Children and Young Peoples Services,Head of Early Help Inclusion & Vulnerable Children.,085965,Barnard,Transfer Payments,515002,Social Services Clients,06-Feb-2022,7960706384,SPORTSDIRECT.COM,5691,Pocket money,82.99,0.00,82.99
Children and Young Peoples Services,Head of Childrens Social Care,085341,High Etherley Satelite Home,Supplies and Services,304999,Equipment and Materials,06-Feb-2022,7960706456,ontopup.com,5968,Misc equipment tools and materials,23.78,0.00,23.78
Children and Young Peoples Services,Head of Childrens Social Care,085334,West Rainton Satelite Home,Supplies and Services,324117,Provisions E324,06-Feb-2022,7960706536,TESCO STORES 2371,5411,Catering costs - provisions,110.00,0.00,110.00
Children and Young Peoples Services,Head of Childrens Social Care,085332,Middlestone Moor CU,Supplies and Services,324117,Provisions E324,06-Feb-2022,7960706618,ASDA STORES,5411,Catering costs - provisions,28.92,0.00,28.92
Children and Young Peoples Services,Head of Childrens Social Care,085351,Framwellgate Moor CU,Supplies and Services,304403,Equipment and Materials,06-Feb-2022,7960706642,AMZNMktplace,5999,Other consumables,34.09,5.68,28.41
Children and Young Peoples Services,Head of Childrens Social Care,085351,Framwellgate Moor CU,Supplies and Services,324117,Provisions E324,06-Feb-2022,7960706644,TESCO STORES 2371,5411,Catering costs - provisions,50.00,0.00,50.00
Children and Young Peoples Services,Head of Childrens Social Care,085334,West Rainton Satelite Home,Supplies and Services,324117,Provisions E324,06-Feb-2022,7960706740,TESCO STORES 2278,5411,Catering costs - provisions,12.30,0.00,12.30
Children and Young Peoples Services,Head of Childrens Social Care,085334,West Rainton Satelite Home,Supplies and Services,344033,Telephones,06-Feb-2022,7960706742,O2 UK PAY & GO,4814,Telephones general-all costs,10.00,0.00,10.00
Regeneration Economy and Growth,Business Durham CL0850,030689,Inward Investment and Aftercare,Supplies and Services,342222,Computers and Communications,07-Feb-2022,000007967883182,FASTHOSTS INTERNET,4816,Comp hardware purch-network servers,6.34,0.00,6.34
Resources BK0010,Digital and Customer Services,065432,Web Development Group,Supplies and Services,342033,Computers and Communications,07-Feb-2022,000007967883188,WPMU DEV INCSUBFEE.COM,7372,Computer hardware,14.07,0.00,14.07
Children and Young Peoples Services,Head of Childrens Social Care,085600,Service Improvement Team Quality Assurance,Supplies and Services,384999,Miscellaneous Expenses,07-Feb-2022,000007967883190,Amazon.co.uk LI90W6T45,5969,Other expenses,300.00,0.00,300.00
Children and Young Peoples Services,Head of Childrens Social Care,085501,Child Care Cases Legal Expenses,Supplies and Services,304403,Equipment and Materials,07-Feb-2022,000007967883200,SUNDERLAND CC,9399,Other consumables,11.00,0.00,11.00
Regeneration Economy and Growth,Culture Sport and Tourism,030705,Visit County Durham 030705,Employees,040149,Recruitment Instruction and Training,07-Feb-2022,000007967883244,M TRAINING,8299,Training-all costs,264.00,44.00,220.00
Regeneration Economy and Growth,Culture Sport and Tourism,030705,Visit County Durham 030705,Supplies and Services,304259,Equipment and Materials,07-Feb-2022,000007967883246,FASTHOSTS INTERNET,4816,Equipment-purchase and rental,6.34,1.06,5.28
Regeneration Economy and Growth,Development and Housing,031634,LOCAL LETTINGS AGENCY,Transport,235073,Public Transport,07-Feb-2022,000007967883358,BLUELINE TAXIS,4121,Travel-clients/students/children,16.60,0.00,16.60
Regeneration Economy and Growth,Culture Sport and Tourism,054813,Gala Theatre - Technical,Supplies and Services,304259,Equipment and Materials,07-Feb-2022,000007967883534,AMZNMktplace,5999,Equipment-purchase and rental,87.92,0.00,87.92
Neighbourhoods and Climate Change,Environmental Services,026591,C&G - Hardwick Park,Supplies and Services,304259,Equipment and Materials,07-Feb-2022,000007967883538,AMZNMktplace,5999,Equipment-purchase and rental,85.49,14.25,71.24
Regeneration Economy and Growth,Business Durham CL0850,030690,Durham Dales Centre - Tourist Information Centre,Supplies and Services,328041,Clothing uniforms and laundry E328,07-Feb-2022,000007967883564,M GOLUNSKI AND CO,5621,Clothing uniforms and laundry,423.98,0.00,423.98
Regeneration Economy and Growth,Business Durham CL0850,030690,Durham Dales Centre - Tourist Information Centre,Supplies and Services,304403,Equipment and Materials,07-Feb-2022,000007967883568,GREETINGS C BY NT LTD,5947,Other consumables,194.26,0.00,194.26
Children and Young Peoples Services,Head of Childrens Social Care,071448,Newton Aycliffe One Point Hub,Supplies and Services,304259,Equipment and Materials,07-Feb-2022,000007967883640,AMZNMktplace,5999,Equipment-purchase and rental,385.98,64.40,321.58
Children and Young Peoples Services,Head of Early Help Inclusion & Vulnerable Children.,088107,Wheatley Hill & N. Aycliffe Family Centre,Supplies and Services,304259,Equipment and Materials,07-Feb-2022,000007967883644,AMZNMKTPLACE AMAZON.CO,5999,Equipment-purchase and rental,22.99,3.83,19.16
Neighbourhoods and Climate Change,Environmental Services,010551,Fleet - Chilton Fleet,Supplies and Services,304252,Equipment and Materials,07-Feb-2022,000007967883704,EASI GEARS LIMITED,5533,Equipment-repairsserviceinsurance,681.60,113.60,568.00
Regeneration Economy and Growth,Culture Sport and Tourism,054399,Local Delivery-Libraries,Supplies and Services,312009,Newspapers books and periodicals E312,07-Feb-2022,000007967883842,Amazon.co.uk YO67I8Y15,5969,Newspapers books and periodicals,15.36,0.00,15.36
Children and Young Peoples Services,Head of Education and Skills,071802,Louisa Cent Nursery,Supplies and Services,324117,Provisions E324,07-Feb-2022,000007967884022,ASDA SUPERSTORE,5411,Catering costs - provisions,11.33,0.00,11.33
Regeneration Economy and Growth,Culture Sport and Tourism,011263,Louisa Centre 011263,Supplies and Services,384999,Miscellaneous Expenses,07-Feb-2022,000007967884106,Amazon.co.uk BV9IU5C35,5969,Other expenses,66.35,11.06,55.29
Regeneration Economy and Growth,Culture Sport and Tourism,011263,Louisa Centre 011263,Supplies and Services,384999,Miscellaneous Expenses,07-Feb-2022,000007967884108,Amazon.co.uk LI8GB8CL5,5969,Other expenses,8.50,1.42,7.08
Regeneration Economy and Growth,Culture Sport and Tourism,011263,Louisa Centre 011263,Supplies and Services,304403,Equipment and Materials,07-Feb-2022,000007967884112,AMZNMktplace,5999,Other consumables,26.46,4.41,22.05
Regeneration Economy and Growth,Culture Sport and Tourism,011263,Louisa Centre 011263,Supplies and Services,304403,Equipment and Materials,07-Feb-2022,000007967884112 - 1,AMZNMktplace,5999,Other consumables,0.04,,0.04
Regeneration Economy and Growth,Culture Sport and Tourism,054233,Bishop Auckland Town Hall Library,Supplies and Services,324117,Provisions E324,07-Feb-2022,000007967884122,HERON FOODS,5411,Catering costs - provisions,18.10,0.00,18.10
Regeneration Economy and Growth,Development and Housing,030776,LINKCD Flexible Fund,Supplies and Services,328041,Clothing uniforms and laundry E328,07-Feb-2022,000007967884136,DOROTHY PERKINS,5691,Clothing uniforms and laundry,17.19,0.00,17.19
Regeneration Economy and Growth,Business Durham CL0850,030694,Plexus 2,Supplies and Services,384999,Miscellaneous Expenses,07-Feb-2022,000007967884258,Amazon.co.uk G02YB1JO5,5969,Other expenses,7.89,0.00,7.89
Regeneration Economy and Growth,Corporate Property and Land,011275,Catering -Durham Leadership Centre,Supplies and Services,324117,Provisions E324,07-Feb-2022,000007967941238,JR HOLLAND FOODSERVICE,5499,Catering costs - provisions,77.66,0.00,77.66
Regeneration Economy and Growth,Culture Sport and Tourism,054235,Bishop Auckland Town Hall Cafe,Supplies and Services,324117,Provisions E324,07-Feb-2022,000007967941240,JR HOLLAND FOODSERVICE,5499,Catering costs - provisions,386.81,0.00,386.81
Adult and Health Services,Head of Adults,055643,Hawthorn House LD Respite Unit,Supplies and Services,324117,Provisions E324,07-Feb-2022,000007967941244,JR HOLLAND FOODSERVICE,5499,Catering costs - provisions,19.26,0.00,19.26
Neighbourhoods and Climate Change,Environmental Services,011060,C&G - Hardwick Park Catering,Supplies and Services,324117,Provisions E324,07-Feb-2022,000007967941248,JR HOLLAND FOODSERVICE,5499,Catering costs - provisions,36.95,0.00,36.95
Regeneration Economy and Growth,Corporate Property and Land,021234,Catering - Locomotion,Supplies and Services,384999,Miscellaneous Expenses,07-Feb-2022,000007967941250,ON A ROLL SANDWICH COM,5199,Other expenses,154.13,0.00,154.13
Regeneration Economy and Growth,Development and Housing,031634,LOCAL LETTINGS AGENCY,Supplies and Services,338099,Services,07-Feb-2022,000007969611872,TOWN AND CITY MANA,5722,Other services,824.16,0.00,824.16
Dedicated Schools Grant BG0015,DSG Schools Block,349102,Blue Coat CE Aided Junior - Extended School Services,Supplies and Services,384075,Miscellaneous Expenses,07-Feb-2022,000007969611896,SAINSBURYS.CO.UK,5411,Catering - School Breakfast Club,58.82,0.00,58.82
Regeneration Economy and Growth,Development and Housing,031500,Housing Solutions - Core,Supplies and Services,304259,Equipment and Materials,07-Feb-2022,000007969611986,GEN REGISTER OFFICE,9399,Equipment-purchase and rental,14.00,0.00,14.00
Children and Young Peoples Services,Head of Early Help Inclusion & Vulnerable Children.,088107,Wheatley Hill & N. Aycliffe Family Centre,Supplies and Services,304259,Equipment and Materials,07-Feb-2022,000007969612060,AMZNMKTPLACE AMAZON.CO,5999,Equipment-purchase and rental,21.39,3.57,17.82
Children and Young Peoples Services,Head of Early Help Inclusion & Vulnerable Children.,088107,Wheatley Hill & N. Aycliffe Family Centre,Supplies and Services,304259,Equipment and Materials,07-Feb-2022,000007969612062,AMZNMKTPLACE AMAZON.CO,5999,Equipment-purchase and rental,14.99,2.50,12.49
Regeneration Economy and Growth,Corporate Property and Land,020073,Bldg Serv - R&M Div 73 - Gas Servicing,Supplies and Services,372009,Subscriptions E372,07-Feb-2022,000007969612124,CAPITA GAS,8699,Subscriptions 372009,974.98,0.00,974.98
Children and Young Peoples Services,Head of Education and Skills,078554,Adult Skills-Main,Supplies and Services,304403,Equipment and Materials,07-Feb-2022,000007969612134,AMZNMKTPLACE AMAZON.CO,5999,Other consumables,13.48,2.25,11.23
Regeneration Economy and Growth,Culture Sport and Tourism,011263,Louisa Centre 011263,Supplies and Services,304221,Equipment and Materials,07-Feb-2022,000007969612182,SCREWFIX DIRECT,5211,Direct materials,169.98,0.00,169.98
Adult and Health Services,Head of Adults,052229,Countywide AMHP Team,Supplies and Services,338048,Services,07-Feb-2022,000007969612236,HMCTS GRIMSBY&SCUNTHOR,9222,Court costs 338048,81.00,0.00,81.00
Regeneration Economy and Growth,Culture Sport and Tourism,054233,Bishop Auckland Town Hall Library,Supplies and Services,304403,Equipment and Materials,07-Feb-2022,000007969612398,HOLLAND & BARRETT,5999,Other consumables,11.97,0.00,11.97
Adult and Health Services,Head of Adults,055309,Peterlee Pathways,Supplies and Services,304403,Equipment and Materials,07-Feb-2022,000007969612494,AMZNMKTPLACE AMAZON.CO,5999,Other consumables,17.98,3.00,14.98
Regeneration Economy and Growth,Corporate Property and Land,030691,Catering - Durham Dales Centre,Supplies and Services,324117,Provisions E324,07-Feb-2022,000007973850370,BATLEYS PERTH,5300,Catering costs - provisions,20.94,3.49,17.45
Regeneration Economy and Growth,Corporate Property and Land,030691,Catering - Durham Dales Centre,Supplies and Services,324117,Provisions E324,07-Feb-2022,000007973850370 - 1,BATLEYS PERTH,5300,Catering costs - provisions,63.76,,63.76
Neighbourhoods and Climate Change,Environmental Services,011060,C&G - Hardwick Park Catering,Supplies and Services,324117,Provisions E324,07-Feb-2022,000007973850378,BATLEYS PERTH,5300,Catering costs - provisions,10.42,0.00,10.42
Neighbourhoods and Climate Change,Environmental Services,011060,C&G - Hardwick Park Catering,Supplies and Services,324117,Provisions E324,07-Feb-2022,000007973850380,BATLEYS PERTH,5300,Catering costs - provisions,38.58,0.00,38.58
Regeneration Economy and Growth,Corporate Property and Land,021235,Catering - Wharton Park,Supplies and Services,324117,Provisions E324,07-Feb-2022,000007973850388,BATLEYS PERTH,5300,Catering costs - provisions,252.36,42.06,210.30
Regeneration Economy and Growth,Corporate Property and Land,021235,Catering - Wharton Park,Supplies and Services,324117,Provisions E324,07-Feb-2022,000007973850388 - 1,BATLEYS PERTH,5300,Catering costs - provisions,4.59,,4.59
Regeneration Economy and Growth,Culture Sport and Tourism,054812,Gala Theatre - Catering etc,Supplies and Services,324117,Provisions E324,07-Feb-2022,000007973850390,BATLEYS PERTH,5300,Catering costs - provisions,92.82,15.47,77.35
Regeneration Economy and Growth,Culture Sport and Tourism,054812,Gala Theatre - Catering etc,Supplies and Services,324117,Provisions E324,07-Feb-2022,000007973850390 - 1,BATLEYS PERTH,5300,Catering costs - provisions,119.06,,119.06
Children and Young Peoples Services,Head of Childrens Social Care,085358,Orchard House Sacriston Solo Home,Supplies and Services,372009,Subscriptions E372,07-Feb-2022,7960706306,NETFLIX.COM,4899,Subscriptions 372009,13.99,0.00,13.99
Children and Young Peoples Services,Head of Education and Skills,075035,DurhamDirections Re-engagement,Supplies and Services,364301,Grants to Voluntary Organisations,07-Feb-2022,7967883242,WWW.GONORTHEAST.CO.UK,4111,Hardship,4.00,0.00,4.00
Children and Young Peoples Services,Head of Childrens Social Care,085332,Middlestone Moor CU,Supplies and Services,304999,Equipment and Materials,07-Feb-2022,7967883304,EBAY COMMERCE UK LTD,5311,Misc equipment tools and materials,3.99,0.00,3.99
Children and Young Peoples Services,Head of Childrens Social Care,085332,Middlestone Moor CU,Supplies and Services,304999,Equipment and Materials,07-Feb-2022,7967883312,EBAY COMMERCE UK LTD,5311,Misc equipment tools and materials,9.49,0.00,9.49
Children and Young Peoples Services,Head of Childrens Social Care,085332,Middlestone Moor CU,Supplies and Services,304999,Equipment and Materials,07-Feb-2022,7967883318,EBAY COMMERCE UK LTD,5311,Misc equipment tools and materials,10.98,0.00,10.98
Children and Young Peoples Services,Head of Childrens Social Care,085332,Middlestone Moor CU,Supplies and Services,304999,Equipment and Materials,07-Feb-2022,7967883322,EBAY COMMERCE UK LTD,5311,Misc equipment tools and materials,3.99,0.00,3.99
Children and Young Peoples Services,Head of Childrens Social Care,085332,Middlestone Moor CU,Supplies and Services,324117,Provisions E324,07-Feb-2022,7967883328,TESCO STORES 2371,5411,Catering costs - provisions,93.57,0.00,93.57
Children and Young Peoples Services,Head of Education and Skills,078100,Curric and Professional Development 078100,Supplies and Services,342033,Computers and Communications,07-Feb-2022,7967883344,STK Shutterstock,7333,Computer hardware,11.16,1.86,9.30
Children and Young Peoples Services,Head of Education and Skills,078100,Curric and Professional Development 078100,Supplies and Services,342033,Computers and Communications,07-Feb-2022,7967883344 - 1,STK Shutterstock,7333,Computer hardware,11.64,,11.64
Children and Young Peoples Services,Head of Childrens Social Care,085334,West Rainton Satelite Home,Supplies and Services,324117,Provisions E324,07-Feb-2022,7967883348,TESCO STORES 2371,5411,Catering costs - provisions,2.10,0.00,2.10
Children and Young Peoples Services,Head of Early Help Inclusion & Vulnerable Children.,085965,Barnard,Supplies and Services,384999,Miscellaneous Expenses,07-Feb-2022,7967883428,Amazon.co.uk 367IN25B5,5969,Other expenses,31.98,5.34,26.64
Children and Young Peoples Services,Head of Early Help Inclusion & Vulnerable Children.,085954,Walworth,Supplies and Services,304403,Equipment and Materials,07-Feb-2022,7967883432,AMZNMktplace,5999,Other consumables,41.98,7.00,34.98
Children and Young Peoples Services,Head of Early Help Inclusion & Vulnerable Children.,085954,Walworth,Supplies and Services,304403,Equipment and Materials,07-Feb-2022,7967883436,AMZNMktplace,5999,Other consumables,14.78,2.46,12.32
Children and Young Peoples Services,Head of Early Help Inclusion & Vulnerable Children.,085954,Walworth,Supplies and Services,304403,Equipment and Materials,07-Feb-2022,7967883438,AMZNMktplace,5999,Other consumables,29.76,4.96,24.80
Children and Young Peoples Services,Head of Early Help Inclusion & Vulnerable Children.,085954,Walworth,Supplies and Services,304403,Equipment and Materials,07-Feb-2022,7967883438 - 1,AMZNMktplace,5999,Other consumables,7.89,,7.89
Children and Young Peoples Services,Head of Early Help Inclusion & Vulnerable Children.,085952,Secure Education,Supplies and Services,324117,Provisions E324,07-Feb-2022,7967883442,TESCO STORES 6329,5411,Catering costs - provisions,45.21,0.00,45.21
Resources BK0010,Procurement Sales & Business Services,065503,Business Support - Spectrum,Supplies and Services,304999,Equipment and Materials,07-Feb-2022,7967883464,WWW.PLANET-LEISURE.CO.,7933,Misc equipment tools and materials,44.75,0.00,44.75
Children and Young Peoples Services,Head of Childrens Social Care,085358,Orchard House Sacriston Solo Home,Supplies and Services,324117,Provisions E324,07-Feb-2022,7967883510,ASDA GROCERIES ONLINE,5411,Catering costs - provisions,0.28,0.00,0.28
Children and Young Peoples Services,Head of Childrens Social Care,085358,Orchard House Sacriston Solo Home,Supplies and Services,324117,Provisions E324,07-Feb-2022,7967883512,ASDA GROCERIES ONLINE,5411,Catering costs - provisions,152.37,0.00,152.37
Children and Young Peoples Services,Head of Education and Skills,071732,Dean Bank Childcare,Supplies and Services,324117,Provisions E324,07-Feb-2022,7967883524,B&M 035 - SHILDON,5399,Catering costs - provisions,45.98,0.00,45.98
Children and Young Peoples Services,Head of Education and Skills,071732,Dean Bank Childcare,Supplies and Services,304403,Equipment and Materials,07-Feb-2022,7967883528,AMZNMktplace,5999,Other consumables,9.98,0.00,9.98
Children and Young Peoples Services,Head of Education and Skills,071732,Dean Bank Childcare,Supplies and Services,304403,Equipment and Materials,07-Feb-2022,7967883530,AMZNMktplace,5999,Other consumables,26.94,0.00,26.94
Children and Young Peoples Services,Head of Early Help Inclusion & Vulnerable Children.,085962,Aycliffe Secure - Durham,Supplies and Services,304403,Equipment and Materials,07-Feb-2022,7967883544,AMZNMktplace,5999,Other consumables,12.99,2.17,10.82
Children and Young Peoples Services,Head of Early Help Inclusion & Vulnerable Children.,088104,BA/BC/Crook Intensive Family Support Team,Supplies and Services,384302,Miscellaneous Expenses,07-Feb-2022,7967883710,AMZNMktplace,5999,Activity expenses,18.99,3.17,15.82
Children and Young Peoples Services,Head of Childrens Social Care,085342,16 Hickstead Rise (previously 9 Cedar Ave),Supplies and Services,324117,Provisions E324,07-Feb-2022,7967883746,TESCO STORES 2916,5411,Catering costs - provisions,34.69,0.00,34.69
Children and Young Peoples Services,Head of Education and Skills,071732,Dean Bank Childcare,Supplies and Services,324117,Provisions E324,07-Feb-2022,7967883790,ASDA GROCERIES ONLINE,5411,Catering costs - provisions,68.84,0.00,68.84
Children and Young Peoples Services,Head of Education and Skills,071732,Dean Bank Childcare,Supplies and Services,324117,Provisions E324,07-Feb-2022,7967883792,ASDA GROCERIES ONLINE,5411,Catering costs - provisions,-0.46,0.00,-0.46
Children and Young Peoples Services,Head of Childrens Social Care,085351,Framwellgate Moor CU,Supplies and Services,304403,Equipment and Materials,07-Feb-2022,7967883796,AMZNMktplace,5999,Other consumables,24.39,4.07,20.32
Resources BK0010,Procurement Sales & Business Services,065502,Business Support - Crook,Supplies and Services,384999,Miscellaneous Expenses,07-Feb-2022,7967883888,Amazon.co.uk NZ9RW5NG5,5969,Other expenses,10.99,0.00,10.99
Resources BK0010,Procurement Sales & Business Services,065502,Business Support - Crook,Supplies and Services,384999,Miscellaneous Expenses,07-Feb-2022,7967883892,Amazon.co.uk PF6YO1VS5,5969,Other expenses,165.48,27.58,137.90
Resources BK0010,Procurement Sales & Business Services,065502,Business Support - Crook,Supplies and Services,384999,Miscellaneous Expenses,07-Feb-2022,7967883892 - 1,Amazon.co.uk PF6YO1VS5,5969,Other expenses,60.30,,60.30
Children and Young Peoples Services,Head of Early Help Inclusion & Vulnerable Children.,071492,One Point - Central,Supplies and Services,352001,Conference Expenses,07-Feb-2022,7967883896,GOVERNMENT EVENTS,7922,Conferencesseminars fees etc,382.80,0.00,382.80
Children and Young Peoples Services,Head of Early Help Inclusion & Vulnerable Children.,074000,National Supporting Families Programme,Transfer Payments,525033,Other,07-Feb-2022,7967883898,ASDA GEORGE COM LEEDS,5411,Grants to individuals,139.49,23.25,116.24
Children and Young Peoples Services,Head of Childrens Social Care,085333,Coxhoe Satelite Home,Supplies and Services,324117,Provisions E324,07-Feb-2022,7967884018,TESCO STORES 2916,5411,Catering costs - provisions,130.05,0.00,130.05
Children and Young Peoples Services,Head of Early Help Inclusion & Vulnerable Children.,085962,Aycliffe Secure - Durham,Supplies and Services,304403,Equipment and Materials,07-Feb-2022,7967884114,AMZNMktplace,5999,Other consumables,31.52,5.27,26.25
Children and Young Peoples Services,Head of Early Help Inclusion & Vulnerable Children.,085962,Aycliffe Secure - Durham,Supplies and Services,304403,Equipment and Materials,07-Feb-2022,7967884118,AMZNMktplace,5999,Other consumables,10.00,1.67,8.33
Children and Young Peoples Services,Head of Childrens Social Care,085551,Short Break Services-Park Hse Sher,Supplies and Services,304999,Equipment and Materials,07-Feb-2022,7967884244,HOME BARGAINS,5251,Misc equipment tools and materials,4.93,0.00,4.93
Children and Young Peoples Services,Head of Childrens Social Care,085551,Short Break Services-Park Hse Sher,Supplies and Services,304999,Equipment and Materials,07-Feb-2022,7967884246,HOME BARGAINS,5251,Misc equipment tools and materials,1.94,0.00,1.94
Children and Young Peoples Services,Head of Childrens Social Care,085551,Short Break Services-Park Hse Sher,Supplies and Services,324117,Provisions E324,07-Feb-2022,7967884248,TESCO STORES 2371,5411,Catering costs - provisions,24.81,0.00,24.81
Resources BK0010,Procurement Sales & Business Services,065503,Business Support - Spectrum,Supplies and Services,304403,Equipment and Materials,07-Feb-2022,7967884270,AMZNMktplace,5999,Other consumables,7.64,1.28,6.36
Resources BK0010,Procurement Sales & Business Services,065503,Business Support - Spectrum,Supplies and Services,304403,Equipment and Materials,07-Feb-2022,7967884274,AMZNMktplace,5999,Other consumables,15.80,2.64,13.16
Resources BK0010,Procurement Sales & Business Services,065503,Business Support - Spectrum,Supplies and Services,324117,Provisions E324,07-Feb-2022,7967884276,WILKO.COM,5399,Catering costs - provisions,53.50,0.00,53.50
Resources BK0010,Procurement Sales & Business Services,065503,Business Support - Spectrum,Supplies and Services,304403,Equipment and Materials,07-Feb-2022,7967884280,AMZNMKTPLACE AMAZON.CO,5999,Other consumables,197.40,32.90,164.50
Resources BK0010,Procurement Sales & Business Services,065503,Business Support - Spectrum,Supplies and Services,304403,Equipment and Materials,07-Feb-2022,7967884280 - 1,AMZNMKTPLACE AMAZON.CO,5999,Other consumables,0.20,,0.20
Resources BK0010,Procurement Sales & Business Services,065503,Business Support - Spectrum,Supplies and Services,304403,Equipment and Materials,07-Feb-2022,7967884282,AMZNMktplace,5999,Other consumables,17.98,3.00,14.98
Resources BK0010,Procurement Sales & Business Services,065503,Business Support - Spectrum,Supplies and Services,304403,Equipment and Materials,07-Feb-2022,7967884288,AMZNMktplace,5999,Other consumables,33.39,5.60,27.79
Resources BK0010,Procurement Sales & Business Services,065503,Business Support - Spectrum,Supplies and Services,304403,Equipment and Materials,07-Feb-2022,7967884290,AMZNMktplace,5999,Other consumables,15.80,2.64,13.16
Resources BK0010,Procurement Sales & Business Services,065503,Business Support - Spectrum,Supplies and Services,304403,Equipment and Materials,07-Feb-2022,7967884294,AMZNMktplace,5999,Other consumables,97.58,16.28,81.30
Resources BK0010,Procurement Sales & Business Services,065503,Business Support - Spectrum,Supplies and Services,304403,Equipment and Materials,07-Feb-2022,7967884296,AMZNMktplace,5999,Other consumables,67.60,11.28,56.32
Children and Young Peoples Services,Head of Childrens Social Care,085341,High Etherley Satelite Home,Supplies and Services,348037,Subsistence E348,07-Feb-2022,7969611828,MCDONALDS,5812,Subsistence,4.79,0.00,4.79
Children and Young Peoples Services,Head of Early Help Inclusion & Vulnerable Children.,085965,Barnard,Supplies and Services,304259,Equipment and Materials,07-Feb-2022,7969611932,JD SPORTS INTERNET,5941,Equipment-purchase and rental,116.99,0.00,116.99
Children and Young Peoples Services,Head of Education and Skills,071732,Dean Bank Childcare,Supplies and Services,324117,Provisions E324,07-Feb-2022,7969611990,Wm Morrisons Store Pic,5411,Catering costs - provisions,56.02,0.00,56.02
Children and Young Peoples Services,Head of Childrens Social Care,085364,Children Looked After Team 1,Supplies and Services,338045,Services,07-Feb-2022,7969612092,GEN REGISTER OFFICE,9399,Legal expenses 338045,11.00,0.00,11.00
Children and Young Peoples Services,Head of Childrens Social Care,085342,16 Hickstead Rise (previously 9 Cedar Ave),Supplies and Services,352001,Conference Expenses,07-Feb-2022,7969612126,TVLICENSING.CO.UK,7392,Conferencesseminars fees etc,159.00,0.00,159.00
Children and Young Peoples Services,Head of Early Help Inclusion & Vulnerable Children.,088110,Easington & Peterlee Intensive Family Support Team,Supplies and Services,364301,Grants to Voluntary Organisations,07-Feb-2022,7969612242,SAINSBURYS S/MKTS,5411,Hardship,126.22,0.00,126.22
Resources BK0010,Digital and Customer Services,065432,Web Development Group,Supplies and Services,342033,Computers and Communications,08-Feb-2022,000007967883192,WPMU DEV INCSUBFEE.COM,7372,Computer hardware,0.39,0.00,0.39
Children and Young Peoples Services,Head of Childrens Social Care,085561,Social Work Academy,Supplies and Services,304403,Equipment and Materials,08-Feb-2022,000007969611810,AMZNMktplace,5999,Other consumables,357.01,0.00,357.01
Dedicated Schools Grant BG0015,DSG Schools Block,417607,Greenfield Community College 004176 - Performing Arts,Supplies and Services,304403,Equipment and Materials,08-Feb-2022,000007969611816,AMZNMKTPLACE AMAZON.CO,5999,Other consumables,8.00,1.33,6.67
Dedicated Schools Grant BG0015,DSG Schools Block,417607,Greenfield Community College 004176 - Performing Arts,Supplies and Services,304403,Equipment and Materials,08-Feb-2022,000007969611818,AMZNMKTPLACE AMAZON.CO,5999,Other consumables,8.00,1.33,6.67
Dedicated Schools Grant BG0015,DSG Schools Block,417610,Greenfield Community College 004176 - Computing and Business,Supplies and Services,304335,Equipment and Materials,08-Feb-2022,000007969611822,TEACH COMPUTER SCIENCE,7372,ICT supplies etc,60.00,0.00,60.00
Regeneration Economy and Growth,Culture Sport and Tourism,030712,VCD - Project Delivery,Supplies and Services,384199,Miscellaneous Expenses,08-Feb-2022,000007969611834,PAYPAL WEBALON,5817,Other hired and contracted services,5.76,0.00,5.76
Regeneration Economy and Growth,Culture Sport and Tourism,054233,Bishop Auckland Town Hall Library,Supplies and Services,324117,Provisions E324,08-Feb-2022,000007969611906,WILKO RETAIL LIMITED,5399,Catering costs - provisions,3.50,0.00,3.50
Regeneration Economy and Growth,Development and Housing,030772,CLLD South,Employees,040149,Recruitment Instruction and Training,08-Feb-2022,000007969611950,HSQE LTD,8299,Training-all costs,32.40,5.40,27.00
Neighbourhoods and Climate Change,Environmental Services,010301,C&G - North Grounds Maintenance,Supplies and Services,384199,Miscellaneous Expenses,08-Feb-2022,000007969612008,GARY WATSON MO TECH LI,5571,Other hired and contracted services,320.14,0.00,320.14
Neighbourhoods and Climate Change,Environmental Services,010301,C&G - North Grounds Maintenance,Supplies and Services,304999,Equipment and Materials,08-Feb-2022,000007969612010,EXPRESS CHAINS,780,Misc equipment tools and materials,15.00,0.00,15.00
Neighbourhoods and Climate Change,Environmental Services,010301,C&G - North Grounds Maintenance,Supplies and Services,304403,Equipment and Materials,08-Feb-2022,000007969612012,BESCOL,5231,Other consumables,45.60,0.00,45.60
Regeneration Economy and Growth,Development and Housing,031623,Rough Sleeping,Transport,235073,Public Transport,08-Feb-2022,000007969612018,BLUELINE TAXIS,4121,Travel-clients/students/children,35.00,0.00,35.00
Regeneration Economy and Growth,Development and Housing,030771,Durham Advance Flexible Fund,Transport,235057,Public Transport,08-Feb-2022,000007969612022,WWW.GONORTHEAST.CO.UK,4111,Staff travelling,6.00,0.00,6.00
Regeneration Economy and Growth,Development and Housing,030771,Durham Advance Flexible Fund,Supplies and Services,348037,Subsistence E348,08-Feb-2022,000007969612024,ZTL REfUSE C.I.C.,5812,Subsistence,1.00,0.00,1.00
Regeneration Economy and Growth,Development and Housing,030771,Durham Advance Flexible Fund,Transport,235057,Public Transport,08-Feb-2022,000007969612026,WWW.GONORTHEAST.CO.UK,4111,Staff travelling,34.00,0.00,34.00
Neighbourhoods and Climate Change,Environmental Services,010367,C&G - South Grounds Maintenance,Supplies and Services,304221,Equipment and Materials,08-Feb-2022,000007969612102,S&A BUILDERS MERCHANTS,5211,Direct materials,201.56,0.00,201.56
Neighbourhoods and Climate Change,Environmental Services,019100,Fleet - Strategic Fleet,Supplies and Services,304403,Equipment and Materials,08-Feb-2022,000007969612108,AMZNMktplace,5999,Other consumables,87.87,0.00,87.87
Resources BK0010,Resources Management CK0450,069000,Resources Management 069000,Supplies and Services,344033,Telephones,08-Feb-2022,000007969612458,APPLE.COM/BILL,5735,Telephones general-all costs,0.79,0.00,0.79
Resources BK0010,Finance & Transactional Services,065162,Resources and Regeneration Finance,Supplies and Services,372009,Subscriptions E372,08-Feb-2022,000007969612460,CREATIVE_FED,8699,Subscriptions 372009,25.00,0.00,25.00
Resources BK0010,Procurement Sales & Business Services,065501,Business Support - Executive Support,Supplies and Services,332047,Printing Stationery and Gen Off Exps,08-Feb-2022,000007969612462,Amazon.co.uk 7S0044U75,5969,Stationery,23.99,4.00,19.99
Regeneration Economy and Growth,Communications Management,060270,Communications and Marketing,Supplies and Services,372009,Subscriptions E372,08-Feb-2022,000007969612464,LINKEDIN-730 3981503,7311,Subscriptions 372009,112.45,0.00,112.45
Dedicated Schools Grant BG0015,DSG High Needs Block,079050,SENSS-Sensory,Supplies and Services,340001,Postages E340,08-Feb-2022,000007969612466,ROYAL MAIL REDIRECTION,9402,Postages,216.00,0.00,216.00
Adult and Health Services,Head of Adults,055309,Peterlee Pathways,Supplies and Services,304999,Equipment and Materials,08-Feb-2022,000007969612496,HOME BARGAINS PETERLEE,5251,Misc equipment tools and materials,68.50,0.00,68.50
Adult and Health Services,Head of Adults,055309,Peterlee Pathways,Supplies and Services,304999,Equipment and Materials,08-Feb-2022,000007969612498,HOME BARGAINS PETERLEE,5251,Misc equipment tools and materials,17.97,0.00,17.97
Neighbourhoods and Climate Change,Environmental Services,010367,C&G - South Grounds Maintenance,Supplies and Services,304221,Equipment and Materials,08-Feb-2022,000007969612512,CARRS BILLINGTON SPENN,5599,Direct materials,276.50,0.00,276.50
Regeneration Economy and Growth,Development and Housing,030770,Durham Advance,Supplies and Services,384999,Miscellaneous Expenses,08-Feb-2022,000007969612522,PETS AT HOME LTD,5995,Other expenses,15.00,0.00,15.00
Regeneration Economy and Growth,Culture Sport and Tourism,054235,Bishop Auckland Town Hall Cafe,Supplies and Services,324117,Provisions E324,08-Feb-2022,000007969681260,JR HOLLAND FOODSERVICE,5499,Catering costs - provisions,49.98,0.00,49.98
Regeneration Economy and Growth,Culture Sport and Tourism,054812,Gala Theatre - Catering etc,Supplies and Services,324117,Provisions E324,08-Feb-2022,000007969681262,JR HOLLAND FOODSERVICE,5499,Catering costs - provisions,61.23,0.00,61.23
Regeneration Economy and Growth,Corporate Property and Land,021242,Catering - County Hall,Supplies and Services,324117,Provisions E324,08-Feb-2022,000007973742726,SAINSBURY`S S/MKT,5411,Catering costs - provisions,29.27,0.00,29.27
Regeneration Economy and Growth,Culture Sport and Tourism,054813,Gala Theatre - Technical,Supplies and Services,304259,Equipment and Materials,08-Feb-2022,000007973742802,AMZNMKTPLACE AMAZON.CO,5999,Equipment-purchase and rental,26.65,0.00,26.65
Neighbourhoods and Climate Change,Environmental Services,011058,C&G - Wharton Park,Supplies and Services,384999,Miscellaneous Expenses,08-Feb-2022,000007973742876,FINDEL EDUCATION,5969,Other expenses,31.26,0.00,31.26
Neighbourhoods and Climate Change,Environmental Services,010367,C&G - South Grounds Maintenance,Supplies and Services,304221,Equipment and Materials,08-Feb-2022,000007973743002,HOMEBASE LTD 822,5200,Direct materials,63.80,0.00,63.80
Neighbourhoods and Climate Change,Environmental Services,010367,C&G - South Grounds Maintenance,Supplies and Services,304221,Equipment and Materials,08-Feb-2022,000007973743006,SCREWFIX DIR. LTD,5211,Direct materials,41.74,0.00,41.74
Resources BK0010,Digital and Customer Services,065323,Operations - Installations,Supplies and Services,304639,Equipment and Materials,08-Feb-2022,000007973743202,SCREWFIX DIRECT,5211,Technicians-supplies,14.80,0.00,14.80
Regeneration Economy and Growth,Business Durham CL0850,030694,Plexus 2,Supplies and Services,304403,Equipment and Materials,08-Feb-2022,000007973743608,AMZNMKTPLACE AMAZON.CO,5999,Other consumables,-12.75,0.00,-12.75
Regeneration Economy and Growth,Development and Housing,030770,Durham Advance,Supplies and Services,304259,Equipment and Materials,08-Feb-2022,000007973743610,SPORTSDIRECT.COM,5941,Equipment-purchase and rental,101.11,0.00,101.11
Regeneration Economy and Growth,Corporate Property and Land,030691,Catering - Durham Dales Centre,Supplies and Services,384999,Miscellaneous Expenses,08-Feb-2022,000007973850368,G M PACKAGING UK LIMIT,5046,Other expenses,84.02,0.00,84.02
Neighbourhoods and Climate Change,Environmental Services,011060,C&G - Hardwick Park Catering,Supplies and Services,324117,Provisions E324,08-Feb-2022,000007973850382,BATLEYS PERTH,5300,Catering costs - provisions,-41.22,0.00,-41.22
Regeneration Economy and Growth,Corporate Property and Land,021234,Catering - Locomotion,Supplies and Services,324117,Provisions E324,08-Feb-2022,000007973850384,BATLEYS PERTH,5300,Catering costs - provisions,300.90,50.15,250.75
Regeneration Economy and Growth,Corporate Property and Land,021234,Catering - Locomotion,Supplies and Services,324117,Provisions E324,08-Feb-2022,000007973850384 - 1,BATLEYS PERTH,5300,Catering costs - provisions,25.76,,25.76
Neighbourhoods and Climate Change,Environmental Services,010919,C&G - Countryside Site Management,Supplies and Services,304403,Equipment and Materials,08-Feb-2022,000007978094838,RS COMPONENTS,5065,Other consumables,39.46,0.00,39.46
Children and Young Peoples Services,Head of Early Help Inclusion & Vulnerable Children.,085954,Walworth,Supplies and Services,304403,Equipment and Materials,08-Feb-2022,7967883446,AMZNMktplace,5999,Other consumables,15.95,2.66,13.29
Children and Young Peoples Services,Head of Early Help Inclusion & Vulnerable Children.,085962,Aycliffe Secure - Durham,Supplies and Services,384999,Miscellaneous Expenses,08-Feb-2022,7967883548,Amazon.co.uk JW5KF3QF5,5969,Other expenses,28.95,4.83,24.12
Children and Young Peoples Services,Head of Early Help Inclusion & Vulnerable Children.,085962,Aycliffe Secure - Durham,Supplies and Services,304403,Equipment and Materials,08-Feb-2022,7967883552,AMZNMktplace,5999,Other consumables,20.96,3.49,17.47
Children and Young Peoples Services,Head of Early Help Inclusion & Vulnerable Children.,085962,Aycliffe Secure - Durham,Supplies and Services,304403,Equipment and Materials,08-Feb-2022,7967883556,AMZNMktplace,5999,Other consumables,13.00,2.17,10.83
Children and Young Peoples Services,Head of Early Help Inclusion & Vulnerable Children.,088115,Young Parents Programme 088115,Supplies and Services,384302,Miscellaneous Expenses,08-Feb-2022,7969611792,ASDA GROCERIES ONLINE,5411,Activity expenses,76.37,0.00,76.37
Children and Young Peoples Services,Head of Early Help Inclusion & Vulnerable Children.,088115,Young Parents Programme 088115,Supplies and Services,384302,Miscellaneous Expenses,08-Feb-2022,7969611794,ASDA GROCERIES ONLINE,5411,Activity expenses,-0.45,0.00,-0.45
Children and Young Peoples Services,Head of Education and Skills,071801,Selby Cottage Childcare Centre,Supplies and Services,304403,Equipment and Materials,08-Feb-2022,7969611800,AMZNMktplace,5999,Other consumables,12.99,2.17,10.82
Children and Young Peoples Services,Head of Education and Skills,071801,Selby Cottage Childcare Centre,Supplies and Services,304999,Equipment and Materials,08-Feb-2022,7969611802,Amazon Prime MW1GG8UJ5,5968,Misc equipment tools and materials,7.99,0.00,7.99
Children and Young Peoples Services,Head of Education and Skills,071801,Selby Cottage Childcare Centre,Supplies and Services,324117,Provisions E324,08-Feb-2022,7969611804,B&M 688 WASHINGTON,5399,Catering costs - provisions,80.48,0.00,80.48
Children and Young Peoples Services,Head of Education and Skills,071801,Selby Cottage Childcare Centre,Supplies and Services,324117,Provisions E324,08-Feb-2022,7969611806,ASDA GROCERIES ONLINE,5411,Catering costs - provisions,52.62,0.00,52.62
Children and Young Peoples Services,Head of Childrens Social Care,085334,West Rainton Satelite Home,Supplies and Services,324117,Provisions E324,08-Feb-2022,7969611864,B&M 681 - DURHAM,5399,Catering costs - provisions,274.90,0.00,274.90
Children and Young Peoples Services,Head of Childrens Social Care,085334,West Rainton Satelite Home,Supplies and Services,324117,Provisions E324,08-Feb-2022,7969611866,TESCO STORES 2371,5411,Catering costs - provisions,95.57,0.00,95.57
Children and Young Peoples Services,Head of Early Help Inclusion & Vulnerable Children.,071489,Winter Family Fund,Supplies and Services,384700,Miscellaneous Expenses,08-Feb-2022,7969611900,FRANKS THE FLOORING ST,5713,Miscellaneous grants,498.00,0.00,498.00
Children and Young Peoples Services,Head of Early Help Inclusion & Vulnerable Children.,088104,BA/BC/Crook Intensive Family Support Team,Supplies and Services,304259,Equipment and Materials,08-Feb-2022,7969611902,ASDA GROCERIES ONLINE,5411,Equipment-purchase and rental,62.65,0.00,62.65
Children and Young Peoples Services,Head of Early Help Inclusion & Vulnerable Children.,088104,BA/BC/Crook Intensive Family Support Team,Supplies and Services,304259,Equipment and Materials,08-Feb-2022,7969611904,ASDA GROCERIES ONLINE,5411,Equipment-purchase and rental,-40.00,0.00,-40.00
Children and Young Peoples Services,Head of Childrens Social Care,085332,Middlestone Moor CU,Supplies and Services,304403,Equipment and Materials,08-Feb-2022,7969611908,AMZNMKTPLACE AMAZON.CO,5999,Other consumables,89.94,15.00,74.94
Children and Young Peoples Services,Head of Childrens Social Care,085332,Middlestone Moor CU,Supplies and Services,304403,Equipment and Materials,08-Feb-2022,7969611910,AMZNMktplace,5999,Other consumables,109.99,18.33,91.66
Children and Young Peoples Services,Head of Early Help Inclusion & Vulnerable Children.,085954,Walworth,Supplies and Services,304403,Equipment and Materials,08-Feb-2022,7969611934,AMZNMktplace,5999,Other consumables,19.95,3.33,16.62
Children and Young Peoples Services,Head of Early Help Inclusion & Vulnerable Children.,085957,Secure Management,Supplies and Services,304259,Equipment and Materials,08-Feb-2022,7969611936,Amazon MP3,5735,Equipment-purchase and rental,0.98,0.00,0.98
Children and Young Peoples Services,Head of Early Help Inclusion & Vulnerable Children.,085957,Secure Management,Supplies and Services,304259,Equipment and Materials,08-Feb-2022,7969611938,Amazon MP3,5735,Equipment-purchase and rental,0.98,0.00,0.98
Children and Young Peoples Services,Head of Early Help Inclusion & Vulnerable Children.,085957,Secure Management,Supplies and Services,304259,Equipment and Materials,08-Feb-2022,7969611940,Amazon MP3,5735,Equipment-purchase and rental,0.98,0.00,0.98
Children and Young Peoples Services,Head of Early Help Inclusion & Vulnerable Children.,085957,Secure Management,Supplies and Services,304259,Equipment and Materials,08-Feb-2022,7969611942,Amazon MP3,5735,Equipment-purchase and rental,0.98,0.00,0.98
Children and Young Peoples Services,Head of Early Help Inclusion & Vulnerable Children.,085957,Secure Management,Supplies and Services,304259,Equipment and Materials,08-Feb-2022,7969611944,Amazon MP3,5735,Equipment-purchase and rental,0.98,0.00,0.98
Children and Young Peoples Services,Head of Early Help Inclusion & Vulnerable Children.,085954,Walworth,Supplies and Services,324117,Provisions E324,08-Feb-2022,7969611946,TESCO STORES 6329,5411,Catering costs - provisions,60.40,0.00,60.40
Children and Young Peoples Services,Head of Childrens Social Care,085511,Emergency Duty Team,Transport,235057,Public Transport,08-Feb-2022,7969611948,BLUE LINE TAXIS,4121,Staff travelling,21.10,0.00,21.10
Children and Young Peoples Services,Head of Education and Skills,071732,Dean Bank Childcare,Supplies and Services,304403,Equipment and Materials,08-Feb-2022,7969611992,AMZNMKTPLACE AMAZON.CO,5999,Other consumables,19.02,0.00,19.02
Children and Young Peoples Services,Head of Education and Skills,071732,Dean Bank Childcare,Supplies and Services,324117,Provisions E324,08-Feb-2022,7969611994,ASDA SUPERSTORE 4987,5411,Catering costs - provisions,5.80,0.00,5.80
Children and Young Peoples Services,Head of Early Help Inclusion & Vulnerable Children.,085962,Aycliffe Secure - Durham,Supplies and Services,328041,Clothing uniforms and laundry E328,08-Feb-2022,7969611996,Etsy.com - HybridShoot,5699,Clothing uniforms and laundry,29.99,0.00,29.99
Children and Young Peoples Services,Head of Early Help Inclusion & Vulnerable Children.,085962,Aycliffe Secure - Durham,Supplies and Services,304999,Equipment and Materials,08-Feb-2022,7969611998,WWW.PLANET-LEISURE.CO.,7933,Misc equipment tools and materials,26.85,0.00,26.85
Children and Young Peoples Services,Head of Early Help Inclusion & Vulnerable Children.,071445,Chester le Street One Point Hub,Supplies and Services,308011,Furniture,08-Feb-2022,7969612028,IKEA LTD SHOP ONLINE,5712,Furniture repair and replacement,115.00,0.00,115.00
Children and Young Peoples Services,Head of Early Help Inclusion & Vulnerable Children.,071445,Chester le Street One Point Hub,Supplies and Services,304403,Equipment and Materials,08-Feb-2022,7969612030,AMZNMktplace,5999,Other consumables,5.99,1.00,4.99
Children and Young Peoples Services,Head of Early Help Inclusion & Vulnerable Children.,071445,Chester le Street One Point Hub,Supplies and Services,304403,Equipment and Materials,08-Feb-2022,7969612032,AMZNMktplace,5999,Other consumables,30.98,5.16,25.82
Children and Young Peoples Services,Head of Early Help Inclusion & Vulnerable Children.,088104,BA/BC/Crook Intensive Family Support Team,Supplies and Services,364301,Grants to Voluntary Organisations,08-Feb-2022,7969612090,WWW.EMBLEMATIC.CO.UK,5611,Hardship,28.00,0.00,28.00
Children and Young Peoples Services,Head of Early Help Inclusion & Vulnerable Children.,088115,Young Parents Programme 088115,Supplies and Services,384302,Miscellaneous Expenses,08-Feb-2022,7969612094,ASDA STORES,5411,Activity expenses,48.35,0.00,48.35
Children and Young Peoples Services,Head of Early Help Inclusion & Vulnerable Children.,088108,Spennymoor & Shildon Intensive Family Support Team,Supplies and Services,304259,Equipment and Materials,08-Feb-2022,7969612096,ASDA STORES,5411,Equipment-purchase and rental,19.20,0.00,19.20
Children and Young Peoples Services,Head of Childrens Social Care,085351,Framwellgate Moor CU,Supplies and Services,384999,Miscellaneous Expenses,08-Feb-2022,7969612142,Amazon.co.uk RW7MV25G5,5969,Other expenses,32.46,5.41,27.05
Children and Young Peoples Services,Head of Childrens Social Care,085351,Framwellgate Moor CU,Supplies and Services,324117,Provisions E324,08-Feb-2022,7969612144,B&M 681 - DURHAM,5399,Catering costs - provisions,42.10,0.00,42.10
Children and Young Peoples Services,Head of Childrens Social Care,085351,Framwellgate Moor CU,Supplies and Services,324117,Provisions E324,08-Feb-2022,7969612146,ASDA GROCERIES ONLINE,5411,Catering costs - provisions,186.62,0.00,186.62
Children and Young Peoples Services,Head of Childrens Social Care,085351,Framwellgate Moor CU,Supplies and Services,324117,Provisions E324,08-Feb-2022,7969612148,ASDA GROCERIES ONLINE,5411,Catering costs - provisions,-1.70,0.00,-1.70
Children and Young Peoples Services,Head of Childrens Social Care,085334,West Rainton Satelite Home,Supplies and Services,324117,Provisions E324,08-Feb-2022,7969612184,ASDA SUPERSTORE,5411,Catering costs - provisions,31.98,0.00,31.98
Children and Young Peoples Services,Head of Early Help Inclusion & Vulnerable Children.,088111,Easington Horden & Seascape Family Centre,Supplies and Services,364301,Grants to Voluntary Organisations,08-Feb-2022,7969612244,MAXWELLS DIY,5231,Hardship,51.60,0.00,51.60
Children and Young Peoples Services,Head of Childrens Social Care,085332,Middlestone Moor CU,Supplies and Services,304999,Equipment and Materials,08-Feb-2022,7969612270,Microsoft Console 1 Mo,5816,Misc equipment tools and materials,7.99,0.00,7.99
Children and Young Peoples Services,Head of Early Help Inclusion & Vulnerable Children.,085801,CDYJS - Support,Supplies and Services,304403,Equipment and Materials,08-Feb-2022,7969612274,AMZNMktplace,5999,Other consumables,3.69,0.00,3.69
Children and Young Peoples Services,Head of Early Help Inclusion & Vulnerable Children.,085801,CDYJS - Support,Supplies and Services,304403,Equipment and Materials,08-Feb-2022,7969612276,AMZNMktplace,5999,Other consumables,31.98,5.33,26.65
Children and Young Peoples Services,Head of Early Help Inclusion & Vulnerable Children.,085801,CDYJS - Support,Supplies and Services,304403,Equipment and Materials,08-Feb-2022,7969612278,AMZNMktplace,5999,Other consumables,5.62,2.44,3.18
Children and Young Peoples Services,Head of Early Help Inclusion & Vulnerable Children.,085801,CDYJS - Support,Supplies and Services,304403,Equipment and Materials,08-Feb-2022,7969612280,AMZNMktplace,5999,Other consumables,14.64,2.44,12.20
Children and Young Peoples Services,Head of Early Help Inclusion & Vulnerable Children.,085801,CDYJS - Support,Supplies and Services,304403,Equipment and Materials,08-Feb-2022,7969612280 - 1,AMZNMktplace,5999,Other consumables,7.34,,7.34
Children and Young Peoples Services,Head of Early Help Inclusion & Vulnerable Children.,085801,CDYJS - Support,Supplies and Services,324117,Provisions E324,08-Feb-2022,7969612282,GREGGS,5462,Catering costs - provisions,20.00,0.00,20.00
Children and Young Peoples Services,Head of Early Help Inclusion & Vulnerable Children.,085801,CDYJS - Support,Employees,040149,Recruitment Instruction and Training,08-Feb-2022,7969612284,WWW.NMRN.ORG.UK,8398,Training-all costs,16.00,0.00,16.00
Children and Young Peoples Services,Head of Early Help Inclusion & Vulnerable Children.,085801,CDYJS - Support,Supplies and Services,324117,Provisions E324,08-Feb-2022,7969612286,TESCO GIFT CARD,5411,Catering costs - provisions,150.00,0.00,150.00
Children and Young Peoples Services,Head of Early Help Inclusion & Vulnerable Children.,085801,CDYJS - Support,Supplies and Services,304403,Equipment and Materials,08-Feb-2022,7969612288,AMZNMktplace,5999,Other consumables,9.36,1.56,7.80
Children and Young Peoples Services,Head of Early Help Inclusion & Vulnerable Children.,085801,CDYJS - Support,Supplies and Services,304403,Equipment and Materials,08-Feb-2022,7969612288 - 1,AMZNMktplace,5999,Other consumables,13.05,,13.05
Children and Young Peoples Services,Head of Childrens Social Care,085351,Framwellgate Moor CU,Employees,040149,Recruitment Instruction and Training,08-Feb-2022,7969612344,MILL HOUSE RIDING CENT,8299,Training-all costs,30.00,0.00,30.00
Children and Young Peoples Services,Head of Childrens Social Care,085333,Coxhoe Satelite Home,Supplies and Services,324117,Provisions E324,08-Feb-2022,7969612348,TESCO STORES 2916,5411,Catering costs - provisions,33.13,0.00,33.13
Children and Young Peoples Services,Head of Childrens Social Care,085333,Coxhoe Satelite Home,Supplies and Services,324117,Provisions E324,08-Feb-2022,7969612350,TESCO STORES 2916,5411,Catering costs - provisions,27.67,0.00,27.67
Children and Young Peoples Services,Head of Education and Skills,076001,Music Service,Supplies and Services,324117,Provisions E324,08-Feb-2022,7969612502,ASDA SUPERSTORE 4987,5411,Catering costs - provisions,10.59,0.00,10.59
Resources BK0010,Procurement Sales & Business Services,065503,Business Support - Spectrum,Supplies and Services,304403,Equipment and Materials,08-Feb-2022,7969612526,AMZNMktplace,5999,Other consumables,148.80,24.80,124.00
Resources BK0010,Procurement Sales & Business Services,065503,Business Support - Spectrum,Supplies and Services,304403,Equipment and Materials,08-Feb-2022,7969612526 - 1,AMZNMktplace,5999,Other consumables,0.10,,0.10
Resources BK0010,Procurement Sales & Business Services,065503,Business Support - Spectrum,Supplies and Services,304403,Equipment and Materials,08-Feb-2022,7969612528,AMZNMktplace,5999,Other consumables,28.59,4.79,23.80
Resources BK0010,Procurement Sales & Business Services,065503,Business Support - Spectrum,Supplies and Services,324117,Provisions E324,08-Feb-2022,7969612530,ASDA GEORGE COM LEEDS,5411,Catering costs - provisions,38.95,0.00,38.95
Resources BK0010,Procurement Sales & Business Services,065503,Business Support - Spectrum,Supplies and Services,384999,Miscellaneous Expenses,08-Feb-2022,7969612532,Amazon.co.uk 2L5D56N84,5969,Other expenses,23.99,4.00,19.99
Resources BK0010,Procurement Sales & Business Services,065503,Business Support - Spectrum,Supplies and Services,304403,Equipment and Materials,08-Feb-2022,7969612536,AMZNMktplace,5999,Other consumables,47.40,7.92,39.48
Children and Young Peoples Services,Head of Childrens Social Care,085612,Families First Consett,Supplies and Services,364301,Grants to Voluntary Organisations,08-Feb-2022,7973742380,ARGOS LTD,5310,Hardship,49.00,0.00,49.00
Children and Young Peoples Services,Head of Education and Skills,071801,Selby Cottage Childcare Centre,Supplies and Services,308011,Furniture,08-Feb-2022,7973742392,THE RANGE,5719,Furniture repair and replacement,75.16,0.00,75.16
Children and Young Peoples Services,Head of Childrens Social Care,085334,West Rainton Satelite Home,Supplies and Services,328041,Clothing uniforms and laundry E328,08-Feb-2022,7973742518,ARGOS LTD,5310,Clothing uniforms and laundry,91.00,0.00,91.00
Children and Young Peoples Services,Head of Childrens Social Care,085334,West Rainton Satelite Home,Supplies and Services,308011,Furniture,08-Feb-2022,7973742522,The Range,5719,Furniture repair and replacement,74.86,0.00,74.86
Children and Young Peoples Services,Head of Childrens Social Care,085341,High Etherley Satelite Home,Supplies and Services,348037,Subsistence E348,08-Feb-2022,7973742998,MCDONALD`S,5812,Subsistence,12.58,0.00,12.58
Children and Young Peoples Services,Head of Early Help Inclusion & Vulnerable Children.,088111,Easington Horden & Seascape Family Centre,Supplies and Services,304259,Equipment and Materials,08-Feb-2022,7973743224,AMZNMKTPLACE AMAZON.CO,5999,Equipment-purchase and rental,13.98,2.33,11.65
Resources BK0010,Procurement Sales & Business Services,065503,Business Support - Spectrum,Supplies and Services,304403,Equipment and Materials,08-Feb-2022,7973743642,AMZNMKTPLACE AMAZON.CO,5999,Other consumables,20.70,3.45,17.25
Regeneration Economy and Growth,Business Durham CL0850,030689,Inward Investment and Aftercare,Supplies and Services,304999,Equipment and Materials,09-Feb-2022,000007973742366,MAILCHIMP MISC,5968,Misc equipment tools and materials,87.07,0.00,87.07
Resources BK0010,Finance & Transactional Services,065170,Welfare Rights 065170,Employees,040149,Recruitment Instruction and Training,09-Feb-2022,000007973742426,WWW.CPAG.ORG.UK,8398,Training-all costs,139.65,0.00,139.65
Regeneration Economy and Growth,Culture Sport and Tourism,011217,Commercial Management 011217,Supplies and Services,344033,Telephones,09-Feb-2022,000007973742428,ZOOM.US 888-799-9666,4814,Telephones general-all costs,119.90,0.00,119.90
Dedicated Schools Grant BG0015,DSG Schools Block,417607,Greenfield Community College 004176 - Performing Arts,Supplies and Services,304403,Equipment and Materials,09-Feb-2022,000007973742446,WWW.TERRALEC.COM,5722,Other consumables,128.95,21.49,107.46
Regeneration Economy and Growth,Culture Sport and Tourism,030705,Visit County Durham 030705,Supplies and Services,304259,Equipment and Materials,09-Feb-2022,000007973742468,FASTHOSTS INTERNET,4816,Equipment-purchase and rental,30.00,5.00,25.00
Adult and Health Services,Head of Adults,055302,Durham Pathways,Supplies and Services,384999,Miscellaneous Expenses,09-Feb-2022,000007973742526,Amazon.co.uk 2L1VF8JG4,5969,Other expenses,176.17,29.37,146.80
Neighbourhoods and Climate Change,Environmental Services,031249,North Pennines - Nature for Climate,Supplies and Services,304259,Equipment and Materials,09-Feb-2022,000007973742546,OM Digital Solutions G,5732,Equipment-purchase and rental,332.10,0.00,332.10
Neighbourhoods and Climate Change,Environmental Services,010367,C&G - South Grounds Maintenance,Supplies and Services,304403,Equipment and Materials,09-Feb-2022,000007973742604,SumUp the family co,5999,Other consumables,4.00,0.00,4.00
Neighbourhoods and Climate Change,Environmental Services,010367,C&G - South Grounds Maintenance,Supplies and Services,304999,Equipment and Materials,09-Feb-2022,000007973742608,Harelaw sawmill delive,5251,Misc equipment tools and materials,41.16,6.86,34.30
Regeneration Economy and Growth,Culture Sport and Tourism,054233,Bishop Auckland Town Hall Library,Supplies and Services,304403,Equipment and Materials,09-Feb-2022,000007973742634,AMZNMktplace,5999,Other consumables,32.99,5.50,27.49
Regeneration Economy and Growth,Culture Sport and Tourism,054233,Bishop Auckland Town Hall Library,Supplies and Services,324117,Provisions E324,09-Feb-2022,000007973742636,TESCO STORES 2971,5411,Catering costs - provisions,8.60,0.00,8.60
Regeneration Economy and Growth,Development and Housing,030771,Durham Advance Flexible Fund,Supplies and Services,328041,Clothing uniforms and laundry E328,09-Feb-2022,000007973742640,EBAY COMMERCE UK LTD,5311,Clothing uniforms and laundry,8.99,0.00,8.99
Regeneration Economy and Growth,Development and Housing,030771,Durham Advance Flexible Fund,Supplies and Services,328041,Clothing uniforms and laundry E328,09-Feb-2022,000007973742642,EBAY COMMERCE UK LTD,5311,Clothing uniforms and laundry,61.99,0.00,61.99
Regeneration Economy and Growth,Development and Housing,030771,Durham Advance Flexible Fund,Supplies and Services,328041,Clothing uniforms and laundry E328,09-Feb-2022,000007973742646,EBAY COMMERCE UK LTD,5311,Clothing uniforms and laundry,7.00,0.00,7.00
Regeneration Economy and Growth,Development and Housing,030771,Durham Advance Flexible Fund,Supplies and Services,328041,Clothing uniforms and laundry E328,09-Feb-2022,000007973742650,EBAY COMMERCE UK LTD,5311,Clothing uniforms and laundry,13.60,0.00,13.60
Regeneration Economy and Growth,Development and Housing,030771,Durham Advance Flexible Fund,Supplies and Services,328041,Clothing uniforms and laundry E328,09-Feb-2022,000007973742654,EBAY COMMERCE UK LTD,5311,Clothing uniforms and laundry,5.99,0.00,5.99
Regeneration Economy and Growth,Development and Housing,030771,Durham Advance Flexible Fund,Supplies and Services,304403,Equipment and Materials,09-Feb-2022,000007973742656,AMZNMktplace,5999,Other consumables,3.99,0.67,3.32
Regeneration Economy and Growth,Development and Housing,031576,B& B - Temp Accom,Supplies and Services,364320,Grants to Voluntary Organisations,09-Feb-2022,000007973742748,THE PUNCH BOWL,5812,Accommodation assistance,250.00,0.00,250.00
Regeneration Economy and Growth,Culture Sport and Tourism,054813,Gala Theatre - Technical,Supplies and Services,304259,Equipment and Materials,09-Feb-2022,000007973742810,Amazon.co.uk 2L6D28314,5969,Equipment-purchase and rental,12.90,0.00,12.90
Regeneration Economy and Growth,Culture Sport and Tourism,011277,Technical - Events Delivery,Supplies and Services,304259,Equipment and Materials,09-Feb-2022,000007973742812,CURRYS ONLINE,5732,Equipment-purchase and rental,378.00,0.00,378.00
Resources BK0010,People & Talent Management,010984,Training and Development,Employees,040149,Recruitment Instruction and Training,09-Feb-2022,000007973742868,PAYPAL NPORS LTD,8699,Training-all costs,48.00,0.00,48.00
Dedicated Schools Grant BG0015,DSG Schools Block,418507,Belmont Community School 004185 - Performing Arts,Supplies and Services,304403,Equipment and Materials,09-Feb-2022,000007973742968,AMZNMktplace,5999,Other consumables,22.42,3.74,18.68
Dedicated Schools Grant BG0015,DSG Schools Block,418507,Belmont Community School 004185 - Performing Arts,Supplies and Services,304403,Equipment and Materials,09-Feb-2022,000007973742970,TESCO STORES 2371,5411,Other consumables,42.00,0.00,42.00
Dedicated Schools Grant BG0015,DSG Schools Block,702812,Villa Real School 7028 - IT,Supplies and Services,304403,Equipment and Materials,09-Feb-2022,000007973742980,AMZNMktplace,5999,Other consumables,6.99,2.83,4.16
Adult and Health Services,Head of Adults,055643,Hawthorn House LD Respite Unit,Supplies and Services,304403,Equipment and Materials,09-Feb-2022,000007973743020,AMZNMktplace,5999,Other consumables,12.90,0.00,12.90
Adult and Health Services,Head of Adults,055643,Hawthorn House LD Respite Unit,Supplies and Services,304403,Equipment and Materials,09-Feb-2022,000007973743022,AMZNMktplace,5999,Other consumables,21.89,3.65,18.24
Regeneration Economy and Growth,Culture Sport and Tourism,054399,Local Delivery-Libraries,Supplies and Services,312009,Newspapers books and periodicals E312,09-Feb-2022,000007973743132,Amazon.co.uk 2L63A33Q4,5969,Newspapers books and periodicals,7.35,0.00,7.35
Neighbourhoods and Climate Change,Environmental Services,010301,C&G - North Grounds Maintenance,Supplies and Services,304999,Equipment and Materials,09-Feb-2022,000007973743308,GUSTHARTS,5072,Misc equipment tools and materials,57.12,0.00,57.12
Neighbourhoods and Climate Change,Environmental Services,031118,E&D - Seascape,Supplies and Services,348037,Subsistence E348,09-Feb-2022,000007973743378,iZ THE ORIGINAL F,5812,Subsistence,18.00,0.00,18.00
Neighbourhoods and Climate Change,Environmental Services,031118,E&D - Seascape,Supplies and Services,348037,Subsistence E348,09-Feb-2022,000007973743380,ZTL THE ORIGINAL FAUST,5812,Subsistence,6.70,0.00,6.70
Regeneration Economy and Growth,Culture Sport and Tourism,054233,Bishop Auckland Town Hall Library,Supplies and Services,324117,Provisions E324,09-Feb-2022,000007973743476,WILKO RETAIL LIMITED,5399,Catering costs - provisions,10.60,0.00,10.60
Regeneration Economy and Growth,Culture Sport and Tourism,054233,Bishop Auckland Town Hall Library,Supplies and Services,324117,Provisions E324,09-Feb-2022,000007973743480,HERON FOODS,5411,Catering costs - provisions,17.38,0.00,17.38
Neighbourhoods and Climate Change,Partnerships & Community Engagement Div.,060472,Humanitarian Support programme,Supplies and Services,308011,Furniture,09-Feb-2022,000007973743600,247blinds.co.uk,5714,Furniture repair and replacement,266.04,44.34,221.70
Neighbourhoods and Climate Change,Partnerships & Community Engagement Div.,060472,Humanitarian Support programme,Supplies and Services,308011,Furniture,09-Feb-2022,000007973743600 - 1,247blinds.co.uk,5714,Furniture repair and replacement,0.03,,0.03
Regeneration Economy and Growth,Business Durham CL0850,030694,Plexus 2,Supplies and Services,304999,Equipment and Materials,09-Feb-2022,000007973743602,Amazon Prime 2L6S28NJ4,5968,Misc equipment tools and materials,7.99,0.00,7.99
Regeneration Economy and Growth,Business Durham CL0850,030694,Plexus 2,Supplies and Services,304403,Equipment and Materials,09-Feb-2022,000007973743606,AMZNMktplace,5999,Other consumables,15.99,0.00,15.99
Regeneration Economy and Growth,Corporate Property and Land,030691,Catering - Durham Dales Centre,Supplies and Services,324117,Provisions E324,09-Feb-2022,000007973850372,JR HOLLAND FOODSERVICE,5499,Catering costs - provisions,85.51,0.00,85.51
Adult and Health Services,Head of Adults,055643,Hawthorn House LD Respite Unit,Supplies and Services,324117,Provisions E324,09-Feb-2022,000007973850374,JR HOLLAND FOODSERVICE,5499,Catering costs - provisions,12.69,0.00,12.69
Adult and Health Services,Head of Adults,055643,Hawthorn House LD Respite Unit,Supplies and Services,324117,Provisions E324,09-Feb-2022,000007973850376,JR HOLLAND FOODSERVICE,5499,Catering costs - provisions,11.50,0.00,11.50
Regeneration Economy and Growth,Corporate Property and Land,021234,Catering - Locomotion,Supplies and Services,324117,Provisions E324,09-Feb-2022,000007973850386,JR HOLLAND FOODSERVICE,5499,Catering costs - provisions,55.51,0.00,55.51
Regeneration Economy and Growth,Culture Sport and Tourism,054812,Gala Theatre - Catering etc,Supplies and Services,324117,Provisions E324,09-Feb-2022,000007973850392,JR HOLLAND FOODSERVICE,5499,Catering costs - provisions,19.98,0.00,19.98
Resources BK0010,Finance & Transactional Services,065180,Collections,Supplies and Services,338045,Services,09-Feb-2022,000007978094600,HMCTS DURHAM012,9222,Legal expenses 338045,781.00,0.00,781.00
Regeneration Economy and Growth,Culture Sport and Tourism,054604,Seven Hills Spennymoor,Supplies and Services,340001,Postages E340,09-Feb-2022,000007978094620,WWW.NEOPOST.CO.UK,5111,Postages,400.00,0.00,400.00
Neighbourhoods and Climate Change,Environmental Services,010367,C&G - South Grounds Maintenance,Supplies and Services,304221,Equipment and Materials,09-Feb-2022,000007978094688,SCREWFIX DIRECT,5211,Direct materials,17.48,2.91,14.57
Regeneration Economy and Growth,Development and Housing,030776,LINKCD Flexible Fund,Supplies and Services,304259,Equipment and Materials,09-Feb-2022,000007978094692,WWW.DURHAM.GOV.UK,9399,Equipment-purchase and rental,45.00,0.00,45.00
Regeneration Economy and Growth,Development and Housing,030771,Durham Advance Flexible Fund,Supplies and Services,304259,Equipment and Materials,09-Feb-2022,000007978094716,GEN REGISTER OFFICE,9399,Equipment-purchase and rental,14.00,0.00,14.00
Children and Young Peoples Services,Head of Education and Skills,071802,Louisa Cent Nursery,Supplies and Services,324117,Provisions E324,09-Feb-2022,000007978095102,ALDI 11 774,5411,Catering costs - provisions,6.69,0.00,6.69
Adult and Health Services,Head of Adults,055309,Peterlee Pathways,Supplies and Services,324117,Provisions E324,09-Feb-2022,000007978095192,SAINSBURYS S/MKTS,5411,Catering costs - provisions,7.75,0.00,7.75
Regeneration Economy and Growth,Business Durham CL0850,030694,Plexus 2,Supplies and Services,304403,Equipment and Materials,09-Feb-2022,000007978095222,AMZNMKTPLACE AMAZON.CO,5999,Other consumables,12.88,0.00,12.88
Resources BK0010,Digital and Customer Services,065481,Technical Services 065481,Supplies and Services,304403,Equipment and Materials,09-Feb-2022,000009915610809,RS COMPONENTS,5065,Other consumables,61.85,0.00,61.85
Children and Young Peoples Services,Head of Early Help Inclusion & Vulnerable Children.,085962,Aycliffe Secure - Durham,Supplies and Services,304403,Equipment and Materials,09-Feb-2022,7969612000,AMZNMktplace,5999,Other consumables,5.99,1.00,4.99
Children and Young Peoples Services,Head of Childrens Social Care,085342,16 Hickstead Rise (previously 9 Cedar Ave),Supplies and Services,372009,Subscriptions E372,09-Feb-2022,7969612128,NETFLIX.COM,4899,Subscriptions 372009,13.99,0.00,13.99
Children and Young Peoples Services,Head of Early Help Inclusion & Vulnerable Children.,085801,CDYJS - Support,Supplies and Services,304403,Equipment and Materials,09-Feb-2022,7969612290,AMZNMktplace,5999,Other consumables,1.98,0.33,1.65
Resources BK0010,Procurement Sales & Business Services,065503,Business Support - Spectrum,Supplies and Services,384999,Miscellaneous Expenses,09-Feb-2022,7969612534,Amazon.co.uk 2L7W79NT4,5969,Other expenses,34.99,5.83,29.16
Children and Young Peoples Services,Head of Education and Skills,071801,Selby Cottage Childcare Centre,Supplies and Services,304403,Equipment and Materials,09-Feb-2022,7973742396,AMZNMktplace,5999,Other consumables,19.78,3.30,16.48
Children and Young Peoples Services,Head of Education and Skills,071801,Selby Cottage Childcare Centre,Supplies and Services,324117,Provisions E324,09-Feb-2022,7973742400,TESCO STORES 2278,5411,Catering costs - provisions,7.20,0.00,7.20
Children and Young Peoples Services,Head of Childrens Social Care,085342,16 Hickstead Rise (previously 9 Cedar Ave),Supplies and Services,304999,Equipment and Materials,09-Feb-2022,7973742478,HOME BARGAINS,5251,Misc equipment tools and materials,9.96,0.00,9.96
Children and Young Peoples Services,Head of Childrens Social Care,085342,16 Hickstead Rise (previously 9 Cedar Ave),Supplies and Services,324117,Provisions E324,09-Feb-2022,7973742482,TESCO STORES 6329,5411,Catering costs - provisions,110.20,0.00,110.20
Children and Young Peoples Services,Head of Childrens Social Care,085342,16 Hickstead Rise (previously 9 Cedar Ave),Supplies and Services,324117,Provisions E324,09-Feb-2022,7973742484,STARBUCKS BISHOP AUCKL,5499,Catering costs - provisions,13.10,0.00,13.10
Children and Young Peoples Services,Head of Childrens Social Care,085332,Middlestone Moor CU,Supplies and Services,324117,Provisions E324,09-Feb-2022,7973742492,HOME BARGAINS SPENNYMO,5251,Catering costs - provisions,55.04,0.00,55.04
Children and Young Peoples Services,Head of Childrens Social Care,085332,Middlestone Moor CU,Supplies and Services,324117,Provisions E324,09-Feb-2022,7973742496,HOME BARGAINS SPENNYMO,5251,Catering costs - provisions,1.49,0.00,1.49
Children and Young Peoples Services,Head of Childrens Social Care,085332,Middlestone Moor CU,Supplies and Services,324117,Provisions E324,09-Feb-2022,7973742498,ASDA SUPERSTORE 4987,5411,Catering costs - provisions,153.23,0.00,153.23
Children and Young Peoples Services,Head of Education and Skills,078100,Curric and Professional Development 078100,Supplies and Services,304403,Equipment and Materials,09-Feb-2022,7973742514,ADOBE PRODUCTS,5734,Other consumables,25.28,4.21,21.07
Children and Young Peoples Services,Head of Childrens Social Care,085341,High Etherley Satelite Home,Supplies and Services,324117,Provisions E324,09-Feb-2022,7973742540,TESCO STORES 6329,5411,Catering costs - provisions,31.88,0.00,31.88
Children and Young Peoples Services,Head of Early Help Inclusion & Vulnerable Children.,085965,Barnard,Supplies and Services,328041,Clothing uniforms and laundry E328,09-Feb-2022,7973742694,www.rococlothing.co.uk,5641,Clothing uniforms and laundry,94.95,0.00,94.95
Children and Young Peoples Services,Head of Early Help Inclusion & Vulnerable Children.,085957,Secure Management,Supplies and Services,304259,Equipment and Materials,09-Feb-2022,7973742696,Amazon MP3,5735,Equipment-purchase and rental,0.98,0.00,0.98
Children and Young Peoples Services,Head of Early Help Inclusion & Vulnerable Children.,085957,Secure Management,Supplies and Services,304259,Equipment and Materials,09-Feb-2022,7973742700,Amazon MP3,5735,Equipment-purchase and rental,0.98,0.00,0.98
Children and Young Peoples Services,Head of Early Help Inclusion & Vulnerable Children.,085965,Barnard,Supplies and Services,304403,Equipment and Materials,09-Feb-2022,7973742704,AMZNMktplace,5999,Other consumables,33.99,5.67,28.32
Children and Young Peoples Services,Head of Early Help Inclusion & Vulnerable Children.,085965,Barnard,Supplies and Services,304403,Equipment and Materials,09-Feb-2022,7973742708,AMZNMktplace,5999,Other consumables,60.00,10.00,50.00
Children and Young Peoples Services,Head of Early Help Inclusion & Vulnerable Children.,085965,Barnard,Supplies and Services,304403,Equipment and Materials,09-Feb-2022,7973742710,AMZNMktplace,5999,Other consumables,86.95,14.49,72.46
Children and Young Peoples Services,Head of Early Help Inclusion & Vulnerable Children.,085962,Aycliffe Secure - Durham,Supplies and Services,324117,Provisions E324,09-Feb-2022,7973742714,TESCO STORES 6329,5411,Catering costs - provisions,77.34,0.00,77.34
Children and Young Peoples Services,Head of Early Help Inclusion & Vulnerable Children.,085965,Barnard,Supplies and Services,384999,Miscellaneous Expenses,09-Feb-2022,7973742716,Amazon.co.uk 2L3Z82T44,5969,Other expenses,4.39,0.00,4.39
Children and Young Peoples Services,Head of Education and Skills,071732,Dean Bank Childcare,Supplies and Services,304403,Equipment and Materials,09-Feb-2022,7973742794,AMZNMKTPLACE AMAZON.CO,5999,Other consumables,24.98,0.00,24.98
Children and Young Peoples Services,Head of Education and Skills,071732,Dean Bank Childcare,Supplies and Services,304259,Equipment and Materials,09-Feb-2022,7973742796,Amazon Music 2L45A23Q4,5735,Equipment-purchase and rental,14.99,0.00,14.99
Children and Young Peoples Services,Head of Early Help Inclusion & Vulnerable Children.,071445,Chester le Street One Point Hub,Supplies and Services,304259,Equipment and Materials,09-Feb-2022,7973742840,GATESHEAD COUNCIL MOTO,9399,Equipment-purchase and rental,35.00,0.00,35.00
Children and Young Peoples Services,Head of Early Help Inclusion & Vulnerable Children.,071445,Chester le Street One Point Hub,Supplies and Services,304259,Equipment and Materials,09-Feb-2022,7973742844,GATESHEAD COUNCIL MOTO,9399,Equipment-purchase and rental,11.00,0.00,11.00
Children and Young Peoples Services,Head of Education and Skills,071802,Louisa Cent Nursery,Supplies and Services,324117,Provisions E324,09-Feb-2022,7973743026,ASDA SUPERSTORE,5411,Catering costs - provisions,4.85,0.00,4.85
Children and Young Peoples Services,Head of Childrens Social Care,085342,16 Hickstead Rise (previously 9 Cedar Ave),Supplies and Services,324117,Provisions E324,09-Feb-2022,7973743050,TESCO STORES 2916,5411,Catering costs - provisions,136.47,0.00,136.47
Resources BK0010,Procurement Sales & Business Services,065502,Business Support - Crook,Supplies and Services,344033,Telephones,09-Feb-2022,7973743170,SMARTY CO UK,4814,Telephones general-all costs,6.00,0.00,6.00
Resources BK0010,Procurement Sales & Business Services,065502,Business Support - Crook,Supplies and Services,304259,Equipment and Materials,09-Feb-2022,7973743174,DARLINGTON BC INTERNET,9399,Equipment-purchase and rental,22.00,0.00,22.00
Children and Young Peoples Services,Head of Early Help Inclusion & Vulnerable Children.,088111,Easington Horden & Seascape Family Centre,Supplies and Services,364301,Grants to Voluntary Organisations,09-Feb-2022,7973743226,ASDA STORES,5411,Hardship,111.80,0.00,111.80
Children and Young Peoples Services,Head of Early Help Inclusion & Vulnerable Children.,085801,CDYJS - Support,Supplies and Services,332047,Printing Stationery and Gen Off Exps,09-Feb-2022,7973743312,Vue Entertainment Ltd,7832,Stationery,9.98,0.00,9.98
Children and Young Peoples Services,Head of Early Help Inclusion & Vulnerable Children.,085801,CDYJS - Support,Supplies and Services,304403,Equipment and Materials,09-Feb-2022,7973743318,AMZNMKTPLACE AMAZON.CO,5999,Other consumables,13.29,2.22,11.07
Children and Young Peoples Services,Head of Early Help Inclusion & Vulnerable Children.,088107,Wheatley Hill & N. Aycliffe Family Centre,Supplies and Services,324117,Provisions E324,09-Feb-2022,7973743456,ASDA GROCERIES ONLINE,5411,Catering costs - provisions,33.88,0.00,33.88
Children and Young Peoples Services,Head of Early Help Inclusion & Vulnerable Children.,088107,Wheatley Hill & N. Aycliffe Family Centre,Supplies and Services,324117,Provisions E324,09-Feb-2022,7973743460,ASDA GROCERIES ONLINE,5411,Catering costs - provisions,-1.30,0.00,-1.30
Children and Young Peoples Services,Head of Childrens Social Care,085332,Middlestone Moor CU,Supplies and Services,328041,Clothing uniforms and laundry E328,09-Feb-2022,7973743464,BOOHOO.COM,5691,Clothing uniforms and laundry,32.39,0.00,32.39
Children and Young Peoples Services,Head of Childrens Social Care,085334,West Rainton Satelite Home,Supplies and Services,324117,Provisions E324,09-Feb-2022,7973743562,JULIES DELI,5499,Catering costs - provisions,33.20,0.00,33.20
Resources BK0010,Procurement Sales & Business Services,065503,Business Support - Spectrum,Supplies and Services,304403,Equipment and Materials,09-Feb-2022,7973743638,AMZNMKTPLACE AMAZON.CO,5999,Other consumables,14.99,2.50,12.49
Resources BK0010,Procurement Sales & Business Services,065503,Business Support - Spectrum,Supplies and Services,304403,Equipment and Materials,09-Feb-2022,7973743648,AMZNMktplace,5999,Other consumables,53.94,9.00,44.94
Resources BK0010,Procurement Sales & Business Services,065503,Business Support - Spectrum,Supplies and Services,304403,Equipment and Materials,09-Feb-2022,7973743654,AMZNMktplace,5999,Other consumables,15.28,2.56,12.72
Resources BK0010,Procurement Sales & Business Services,065503,Business Support - Spectrum,Supplies and Services,304403,Equipment and Materials,09-Feb-2022,7973743658,AMZNMktplace,5999,Other consumables,192.30,32.16,160.14
Resources BK0010,Procurement Sales & Business Services,065503,Business Support - Spectrum,Supplies and Services,304403,Equipment and Materials,09-Feb-2022,7973743660,AMZNMktplace,5999,Other consumables,49.20,8.21,40.99
Resources BK0010,Procurement Sales & Business Services,065503,Business Support - Spectrum,Supplies and Services,304999,Equipment and Materials,09-Feb-2022,7973743662,WWW.INFINITEAIR.CO.UK,7991,Misc equipment tools and materials,259.00,0.00,259.00
Resources BK0010,Procurement Sales & Business Services,065503,Business Support - Spectrum,Supplies and Services,304403,Equipment and Materials,09-Feb-2022,7973743668,AMZNMktplace,5999,Other consumables,9.98,1.66,8.32
Resources BK0010,Procurement Sales & Business Services,065503,Business Support - Spectrum,Supplies and Services,304403,Equipment and Materials,09-Feb-2022,7973743672,AMZNMktplace,5999,Other consumables,100.63,16.78,83.85
Resources BK0010,Procurement Sales & Business Services,065503,Business Support - Spectrum,Supplies and Services,304403,Equipment and Materials,09-Feb-2022,7973743678,AMZNMktplace,5999,Other consumables,27.80,4.64,23.16
Children and Young Peoples Services,Head of Early Help Inclusion & Vulnerable Children.,085965,Barnard,Supplies and Services,304259,Equipment and Materials,09-Feb-2022,7978094736,JD SPORTS INTERNET,5941,Equipment-purchase and rental,73.00,0.00,73.00
Children and Young Peoples Services,Head of Early Help Inclusion & Vulnerable Children.,071445,Chester le Street One Point Hub,Supplies and Services,304259,Equipment and Materials,09-Feb-2022,7978094820,Durham County CNCL,9399,Equipment-purchase and rental,11.00,0.00,11.00
Children and Young Peoples Services,Head of Childrens Social Care,085351,Framwellgate Moor CU,Supplies and Services,328041,Clothing uniforms and laundry E328,09-Feb-2022,7978094958,ARGOS LTD,5310,Clothing uniforms and laundry,68.95,0.00,68.95
Resources BK0010,Procurement Sales & Business Services,065502,Business Support - Crook,Supplies and Services,304259,Equipment and Materials,09-Feb-2022,7978095012,BIRMINGHAM REGISTER,9399,Equipment-purchase and rental,25.50,0.00,25.50
Children and Young Peoples Services,Head of Early Help Inclusion & Vulnerable Children.,071487,Reducing Anti-Social Behaviour,Third Party Payments,430100,Rendered by Private Contractors,09-Feb-2022,7978095046,INCREDIBLE YEARS,7399,Payments to sub-contractors,"10,143.80",0.00,10143.80
Children and Young Peoples Services,Head of Childrens Social Care,085351,Framwellgate Moor CU,Supplies and Services,324117,Provisions E324,09-Feb-2022,7978095092,CO-OP GROUP 310016,5411,Catering costs - provisions,29.38,0.00,29.38
Children and Young Peoples Services,Head of Childrens Social Care,085341,High Etherley Satelite Home,Supplies and Services,304221,Equipment and Materials,09-Feb-2022,7978095186,B & Q 1120,5200,Direct materials,20.42,0.00,20.42
Children and Young Peoples Services,Head of Childrens Social Care,085341,High Etherley Satelite Home,Vehicles Equipment Furniture and Fittings,912521,Purchase-furniture and fittings,09-Feb-2022,7978095188,ARGOS LTD,5310,Purchase-furniture and fittings,20.00,0.00,20.00
Resources BK0010,Procurement Sales & Business Services,065503,Business Support - Spectrum,Supplies and Services,328041,Clothing uniforms and laundry E328,09-Feb-2022,7978095226,WWW.THEWORKS.CO.UK,5310,Clothing uniforms and laundry,393.00,0.00,393.00
Regeneration Economy and Growth,Business Durham CL0850,030689,Inward Investment and Aftercare,Supplies and Services,304999,Equipment and Materials,10-Feb-2022,000007973742372,MAILCHIMP MISC,5968,Misc equipment tools and materials,2.39,0.00,2.39
Regeneration Economy and Growth,Culture Sport and Tourism,054813,Gala Theatre - Technical,Supplies and Services,304259,Equipment and Materials,10-Feb-2022,000007973742814,SPROUTVIDEO LLC,7399,Equipment-purchase and rental,148.08,0.00,148.08
Regeneration Economy and Growth,Culture Sport and Tourism,054813,Gala Theatre - Technical,Supplies and Services,304259,Equipment and Materials,10-Feb-2022,000007973742816,SPROUTVIDEO LLC,7399,Equipment-purchase and rental,4.07,0.00,4.07
Regeneration Economy and Growth,Business Durham CL0850,030689,Inward Investment and Aftercare,Third Party Payments,430100,Rendered by Private Contractors,10-Feb-2022,000007978094566,BLS monday.com,7399,Payments to sub-contractors,148.80,0.00,148.80
Regeneration Economy and Growth,Business Durham CL0850,030689,Inward Investment and Aftercare,Supplies and Services,336005,Advertising E336,10-Feb-2022,000007978094568,LINKEDIN-754 0389184,7311,Advertising other than for staff,31.89,0.00,31.89
Children and Young Peoples Services,Head of Childrens Social Care,085404,COMF bid Targeted interventions for CYPS,Supplies and Services,384999,Miscellaneous Expenses,10-Feb-2022,000007978094602,Amazon.co.uk 2L6OK3ED4,5969,Other expenses,478.00,0.00,478.00
Resources BK0010,Digital and Customer Services,065256,Nodes/Circuits,Supplies and Services,304999,Equipment and Materials,10-Feb-2022,000007978094604,FS.COM GBP,5072,Misc equipment tools and materials,462.00,0.00,462.00
Resources BK0010,Digital and Customer Services,065256,Nodes/Circuits,Supplies and Services,304999,Equipment and Materials,10-Feb-2022,000007978094606,FS.COM GBP,5072,Misc equipment tools and materials,464.00,0.00,464.00
Resources BK0010,Digital and Customer Services,065487,ICT Telephony Recharges,Supplies and Services,304403,Equipment and Materials,10-Feb-2022,000007978094608,AMZNMktplace,5999,Other consumables,308.50,51.50,257.00
Dedicated Schools Grant BG0015,DSG Schools Block,110013,The Woodlands 1100 - Primary,Supplies and Services,332047,Printing Stationery and Gen Off Exps,10-Feb-2022,000007978094610,AMZNMktplace,5999,Stationery,22.99,3.83,19.16
Neighbourhoods and Climate Change,Environmental Services,010383,C&G - South Street Cleansing,Supplies and Services,304999,Equipment and Materials,10-Feb-2022,000007978094618,Snowballs,5251,Misc equipment tools and materials,287.56,0.00,287.56
Regeneration Economy and Growth,Culture Sport and Tourism,054312,Wingate Library,Supplies and Services,304252,Equipment and Materials,10-Feb-2022,000007978094622,AMZNMktplace,5999,Equipment-repairsserviceinsurance,23.99,4.00,19.99
Regeneration Economy and Growth,Development and Housing,031623,Rough Sleeping,Transport,235073,Public Transport,10-Feb-2022,000007978094664,BLUELINE TAXIS,4121,Travel-clients/students/children,91.90,0.00,91.90
Neighbourhoods and Climate Change,Environmental Services,031249,North Pennines - Nature for Climate,Supplies and Services,304259,Equipment and Materials,10-Feb-2022,000007978094670,OM Digital Solutions G,5732,Equipment-purchase and rental,332.10,0.00,332.10
Regeneration Economy and Growth,Culture Sport and Tourism,054233,Bishop Auckland Town Hall Library,Supplies and Services,324117,Provisions E324,10-Feb-2022,000007978094710,WILKO RETAIL LIMITED,5399,Catering costs - provisions,11.00,0.00,11.00
Regeneration Economy and Growth,Culture Sport and Tourism,054233,Bishop Auckland Town Hall Library,Supplies and Services,324117,Provisions E324,10-Feb-2022,000007978094712,TESCO STORES 2971,5411,Catering costs - provisions,9.20,0.00,9.20
Regeneration Economy and Growth,Development and Housing,030771,Durham Advance Flexible Fund,Supplies and Services,324117,Provisions E324,10-Feb-2022,000007978094714,cygnetyarns.com,5399,Catering costs - provisions,398.16,0.00,398.16
Children and Young Peoples Services,Head of Childrens Social Care - Excluded Services,085001,Durham Safeguarding Childrens Partnership,Supplies and Services,372009,Subscriptions E372,10-Feb-2022,000007978094782,NOMINET UK,7392,Subscriptions 372009,14.04,2.34,11.70
Resources BK0010,Digital and Customer Services,070204,School Services - Systems,Supplies and Services,372009,Subscriptions E372,10-Feb-2022,000007978094784,NOMINET UK,7392,Subscriptions 372009,46.80,7.80,39.00
Regeneration Economy and Growth,Culture Sport and Tourism,011277,Technical - Events Delivery,Supplies and Services,304259,Equipment and Materials,10-Feb-2022,000007978094804,AMZNMktplace,5999,Equipment-purchase and rental,77.97,0.00,77.97
Neighbourhoods and Climate Change,Environmental Services,010301,C&G - North Grounds Maintenance,Supplies and Services,384199,Miscellaneous Expenses,10-Feb-2022,000007978094812,GARY WATSON MO TECH LI,5571,Other hired and contracted services,89.99,0.00,89.99
Neighbourhoods and Climate Change,Environmental Services,010301,C&G - North Grounds Maintenance,Supplies and Services,304403,Equipment and Materials,10-Feb-2022,000007978094814,BESCOL,5231,Other consumables,38.76,0.00,38.76
Neighbourhoods and Climate Change,Environmental Services,011058,C&G - Wharton Park,Supplies and Services,304403,Equipment and Materials,10-Feb-2022,000007978094840,AMZNMktplace,5999,Other consumables,2.94,0.49,2.45
Children and Young Peoples Services,Head of Early Help Inclusion & Vulnerable Children.,088115,Young Parents Programme 088115,Supplies and Services,384302,Miscellaneous Expenses,10-Feb-2022,000007978094852,Amazon.co.uk 2L1EJ7AR4,5969,Activity expenses,40.68,6.78,33.90
Children and Young Peoples Services,Head of Early Help Inclusion & Vulnerable Children.,088115,Young Parents Programme 088115,Supplies and Services,384302,Miscellaneous Expenses,10-Feb-2022,000007978094852 - 1,Amazon.co.uk 2L1EJ7AR4,5969,Activity expenses,0.04,,0.04
Children and Young Peoples Services,Head of Early Help Inclusion & Vulnerable Children.,088115,Young Parents Programme 088115,Supplies and Services,384302,Miscellaneous Expenses,10-Feb-2022,000007978094854,Amazon.co.uk 2L3Y90EI4,5969,Activity expenses,119.84,20.00,99.84
Children and Young Peoples Services,Head of Early Help Inclusion & Vulnerable Children.,088115,Young Parents Programme 088115,Supplies and Services,384302,Miscellaneous Expenses,10-Feb-2022,000007978094856,AMZNMktplace,5999,Activity expenses,19.99,3.33,16.66
Children and Young Peoples Services,Head of Early Help Inclusion & Vulnerable Children.,088115,Young Parents Programme 088115,Supplies and Services,384302,Miscellaneous Expenses,10-Feb-2022,000007978094858,AMZNMktplace,5999,Activity expenses,75.96,12.68,63.28
Children and Young Peoples Services,Head of Early Help Inclusion & Vulnerable Children.,088115,Young Parents Programme 088115,Supplies and Services,384302,Miscellaneous Expenses,10-Feb-2022,000007978094860,AMZNMktplace,5999,Activity expenses,75.96,12.68,63.28
Children and Young Peoples Services,Head of Early Help Inclusion & Vulnerable Children.,088115,Young Parents Programme 088115,Supplies and Services,384302,Miscellaneous Expenses,10-Feb-2022,000007978094862,AMZNMKTPLACE AMAZON.CO,5999,Activity expenses,12.00,2.00,10.00
Children and Young Peoples Services,Head of Early Help Inclusion & Vulnerable Children.,088115,Young Parents Programme 088115,Supplies and Services,384302,Miscellaneous Expenses,10-Feb-2022,000007978094862 - 1,AMZNMKTPLACE AMAZON.CO,5999,Activity expenses,0.14,,0.14
Children and Young Peoples Services,Head of Early Help Inclusion & Vulnerable Children.,088115,Young Parents Programme 088115,Supplies and Services,384302,Miscellaneous Expenses,10-Feb-2022,000007978094864,AMZNMKTPLACE AMAZON.CO,5999,Activity expenses,235.00,39.20,195.80
Children and Young Peoples Services,Head of Early Help Inclusion & Vulnerable Children.,088115,Young Parents Programme 088115,Supplies and Services,384302,Miscellaneous Expenses,10-Feb-2022,000007978094866,AMZNMKTPLACE AMAZON.CO,5999,Activity expenses,3.01,0.50,2.51
Dedicated Schools Grant BG0015,DSG Schools Block,702812,Villa Real School 7028 - IT,Supplies and Services,304403,Equipment and Materials,10-Feb-2022,000007978094906,AMZNMktplace,5999,Other consumables,27.84,4.64,23.20
Regeneration Economy and Growth,Development and Housing,031533,Syrian Refugee Humanitarian Support,Supplies and Services,348037,Subsistence E348,10-Feb-2022,000007978094908,LEBANEAT,5812,Subsistence,41.17,0.00,41.17
Neighbourhoods and Climate Change,Environmental Services,010367,C&G - South Grounds Maintenance,Third Party Payments,430100,Rendered by Private Contractors,10-Feb-2022,000007978094918,SQ CATHEDRAL LOCK AND,1520,Payments to sub-contractors,8.40,0.00,8.40
Neighbourhoods and Climate Change,Environmental Services,010367,C&G - South Grounds Maintenance,Supplies and Services,304221,Equipment and Materials,10-Feb-2022,000007978094920,JT ATKINSON & SONS LTD,5211,Direct materials,86.41,0.00,86.41
Neighbourhoods and Climate Change,Environmental Services,019100,Fleet - Strategic Fleet,Supplies and Services,304403,Equipment and Materials,10-Feb-2022,000007978094924,AMZNMktplace,5999,Other consumables,73.90,0.00,73.90
Adult and Health Services,Head of Adults,055643,Hawthorn House LD Respite Unit,Supplies and Services,384999,Miscellaneous Expenses,10-Feb-2022,000007978094928,Amazon.co.uk 2L88M2E34,5969,Other expenses,32.99,5.50,27.49
Neighbourhoods and Climate Change,Environmental Services,031233,North Pennines - Pennine Peatlife,Supplies and Services,348037,Subsistence E348,10-Feb-2022,000007978094988,MANAO THAI,5814,Subsistence,21.90,0.00,21.90
Neighbourhoods and Climate Change,Environmental Services,031233,North Pennines - Pennine Peatlife,Supplies and Services,348037,Subsistence E348,10-Feb-2022,000007978094990,THE FOOD PIT,5813,Subsistence,7.50,0.00,7.50
Neighbourhoods and Climate Change,Environmental Services,031233,North Pennines - Pennine Peatlife,Supplies and Services,324117,Provisions E324,10-Feb-2022,000007978094992,HOLY GUACAMOLEY,5811,Catering costs - provisions,9.95,0.00,9.95
Neighbourhoods and Climate Change,Environmental Services,031233,North Pennines - Pennine Peatlife,Supplies and Services,324117,Provisions E324,10-Feb-2022,000007978094994,THE GREEK KITCHEN,5811,Catering costs - provisions,15.90,0.00,15.90
Neighbourhoods and Climate Change,Environmental Services,031233,North Pennines - Pennine Peatlife,Supplies and Services,324117,Provisions E324,10-Feb-2022,000007978094996,THE GREEK KITCHEN,5811,Catering costs - provisions,9.95,0.00,9.95
Neighbourhoods and Climate Change,Environmental Services,031233,North Pennines - Pennine Peatlife,Transport,235057,Public Transport,10-Feb-2022,000007978094998,THE RIVERWALK CAR PARK,7523,Staff travelling,10.00,0.00,10.00
Neighbourhoods and Climate Change,Environmental Services,031202,North Pennines - Peatscapes,Supplies and Services,332047,Printing Stationery and Gen Off Exps,10-Feb-2022,000007978095000,RYMAN,5943,Stationery,14.98,0.00,14.98
Neighbourhoods and Climate Change,Environmental Services,031233,North Pennines - Pennine Peatlife,Supplies and Services,324117,Provisions E324,10-Feb-2022,000007978095002,The Coffee House,5462,Catering costs - provisions,10.00,0.00,10.00
Resources BK0010,Digital and Customer Services,065335,School Services - Implementations,Supplies and Services,304639,Equipment and Materials,10-Feb-2022,000007978095016,LAPTOP-LCD-SCREEN,5732,Technicians-supplies,56.94,0.00,56.94
Regeneration Economy and Growth,Communications Management,060270,Communications and Marketing,Supplies and Services,372009,Subscriptions E372,10-Feb-2022,000007978095182,FACEBK VYFBEBP4B2,7311,Subscriptions 372009,500.00,0.00,500.00
Neighbourhoods and Climate Change,Environmental Services,031200,North Pennines Core,Supplies and Services,344033,Telephones,10-Feb-2022,000007978095210,ZOOM.US 888-799-9666,4814,Telephones general-all costs,422.16,0.00,422.16
Neighbourhoods and Climate Change,Environmental Services,010367,C&G - South Grounds Maintenance,Supplies and Services,304221,Equipment and Materials,10-Feb-2022,000007978095218,CARRS BILLINGTON SPENN,5599,Direct materials,51.44,0.00,51.44
Neighbourhoods and Climate Change,Partnerships & Community Engagement Div.,060472,Humanitarian Support programme,Supplies and Services,324117,Provisions E324,10-Feb-2022,000007978095220,ASDA STORES LTD 4313,5411,Catering costs - provisions,45.75,7.63,38.12
Regeneration Economy and Growth,Corporate Property and Land,011275,Catering -Durham Leadership Centre,Supplies and Services,324117,Provisions E324,10-Feb-2022,000007978147596,JR HOLLAND FOODSERVICE,5499,Catering costs - provisions,23.34,0.00,23.34
Regeneration Economy and Growth,Corporate Property and Land,011275,Catering -Durham Leadership Centre,Supplies and Services,324117,Provisions E324,10-Feb-2022,000007978147598,JR HOLLAND FOODSERVICE,5499,Catering costs - provisions,1.73,0.00,1.73
Regeneration Economy and Growth,Corporate Property and Land,011275,Catering -Durham Leadership Centre,Supplies and Services,324117,Provisions E324,10-Feb-2022,000007978147600,JR HOLLAND FOODSERVICE,5499,Catering costs - provisions,18.78,0.00,18.78
Regeneration Economy and Growth,Culture Sport and Tourism,011265,Empire Theatre (Operations),Supplies and Services,324117,Provisions E324,10-Feb-2022,000007978147602,JR HOLLAND FOODSERVICE,5499,Catering costs - provisions,22.70,0.00,22.70
Regeneration Economy and Growth,Culture Sport and Tourism,011265,Empire Theatre (Operations),Supplies and Services,324117,Provisions E324,10-Feb-2022,000007978147604,JR HOLLAND FOODSERVICE,5499,Catering costs - provisions,116.21,0.00,116.21
Regeneration Economy and Growth,Corporate Property and Land,030691,Catering - Durham Dales Centre,Supplies and Services,324117,Provisions E324,10-Feb-2022,000007978147606,JR HOLLAND FOODSERVICE,5499,Catering costs - provisions,5.80,0.00,5.80
Regeneration Economy and Growth,Corporate Property and Land,030691,Catering - Durham Dales Centre,Supplies and Services,324117,Provisions E324,10-Feb-2022,000007978147608,JR HOLLAND FOODSERVICE,5499,Catering costs - provisions,30.10,0.00,30.10
Regeneration Economy and Growth,Culture Sport and Tourism,054235,Bishop Auckland Town Hall Cafe,Supplies and Services,324117,Provisions E324,10-Feb-2022,000007978147610,JR HOLLAND FOODSERVICE,5499,Catering costs - provisions,211.61,0.00,211.61
Neighbourhoods and Climate Change,Environmental Services,011060,C&G - Hardwick Park Catering,Supplies and Services,324117,Provisions E324,10-Feb-2022,000007978147612,JR HOLLAND FOODSERVICE,5499,Catering costs - provisions,38.82,0.00,38.82
Regeneration Economy and Growth,Corporate Property and Land,021235,Catering - Wharton Park,Supplies and Services,324117,Provisions E324,10-Feb-2022,000007978147614,JR HOLLAND FOODSERVICE,5499,Catering costs - provisions,8.35,0.00,8.35
Regeneration Economy and Growth,Corporate Property and Land,021235,Catering - Wharton Park,Supplies and Services,324117,Provisions E324,10-Feb-2022,000007978147616,JR HOLLAND FOODSERVICE,5499,Catering costs - provisions,20.02,0.00,20.02
Regeneration Economy and Growth,Corporate Property and Land,021235,Catering - Wharton Park,Supplies and Services,324117,Provisions E324,10-Feb-2022,000007978147618,JR HOLLAND FOODSERVICE,5499,Catering costs - provisions,24.81,0.00,24.81
Neighbourhoods and Climate Change,Environmental Services,010367,C&G - South Grounds Maintenance,Supplies and Services,304221,Equipment and Materials,10-Feb-2022,000007984282754,TOOLSTATION LIMITED,5211,Direct materials,12.48,0.00,12.48
Neighbourhoods and Climate Change,Environmental Services,011058,C&G - Wharton Park,Supplies and Services,304221,Equipment and Materials,10-Feb-2022,000007984282966,SCREWFIX DIRECT,5211,Direct materials,29.99,0.00,29.99
Children and Young Peoples Services,Head of Early Help Inclusion & Vulnerable Children.,088115,Young Parents Programme 088115,Supplies and Services,384302,Miscellaneous Expenses,10-Feb-2022,000007984283056,AMZNMKTPLACE AMAZON.CO,5999,Activity expenses,30.51,5.10,25.41
Neighbourhoods and Climate Change,Environmental Services,019100,Fleet - Strategic Fleet,Supplies and Services,304403,Equipment and Materials,10-Feb-2022,000007984283202,AMZNMKTPLACE AMAZON.CO,5999,Other consumables,50.93,0.00,50.93
Adult and Health Services,Head of Adults,055310,Positive Journeys (Tudhoe),Supplies and Services,324117,Provisions E324,10-Feb-2022,000007984284182,ALDI 59 774,5411,Catering costs - provisions,6.97,0.00,6.97
Neighbourhoods and Climate Change,Partnerships & Community Engagement Div.,060472,Humanitarian Support programme,Supplies and Services,308011,Furniture,10-Feb-2022,000007984284420,The Range,5719,Furniture repair and replacement,200.70,33.45,167.25
Neighbourhoods and Climate Change,Partnerships & Community Engagement Div.,060472,Humanitarian Support programme,Supplies and Services,308011,Furniture,10-Feb-2022,000007984284420 - 1,The Range,5719,Furniture repair and replacement,0.03,,0.03
Neighbourhoods and Climate Change,Environmental Services,011060,C&G - Hardwick Park Catering,Supplies and Services,384999,Miscellaneous Expenses,10-Feb-2022,000007984380312,G M PACKAGING UK LIMIT,5046,Other expenses,13.32,0.00,13.32
Neighbourhoods and Climate Change,Environmental Services,011060,C&G - Hardwick Park Catering,Supplies and Services,324117,Provisions E324,10-Feb-2022,000007984380314,BATLEYS PERTH,5300,Catering costs - provisions,82.98,13.83,69.15
Neighbourhoods and Climate Change,Environmental Services,011060,C&G - Hardwick Park Catering,Supplies and Services,324117,Provisions E324,10-Feb-2022,000007984380314 - 1,BATLEYS PERTH,5300,Catering costs - provisions,149.66,,149.66
Regeneration Economy and Growth,Corporate Property and Land,011296,Catering - Crimdon Dene Hub,Supplies and Services,324117,Provisions E324,10-Feb-2022,000009979372109,BATLEYS PERTH,5300,Catering costs - provisions,261.96,43.66,218.30
Regeneration Economy and Growth,Corporate Property and Land,011296,Catering - Crimdon Dene Hub,Supplies and Services,324117,Provisions E324,10-Feb-2022,000009979372109 - 1,BATLEYS PERTH,5300,Catering costs - provisions,44.17,,44.17
Children and Young Peoples Services,Head of Early Help Inclusion & Vulnerable Children.,085965,Barnard,Supplies and Services,328041,Clothing uniforms and laundry E328,10-Feb-2022,7973742720,Nike GBP,5655,Clothing uniforms and laundry,89.90,0.00,89.90
Children and Young Peoples Services,Head of Early Help Inclusion & Vulnerable Children.,088101,Bullion Lane & Brandon Family Centre,Supplies and Services,304259,Equipment and Materials,10-Feb-2022,7978094572,AMZNMktplace,5999,Equipment-purchase and rental,52.64,8.77,43.87
Children and Young Peoples Services,Head of Early Help Inclusion & Vulnerable Children.,088101,Bullion Lane & Brandon Family Centre,Supplies and Services,304259,Equipment and Materials,10-Feb-2022,7978094574,AMZNMktplace,5999,Equipment-purchase and rental,16.01,2.67,13.34
Children and Young Peoples Services,Head of Education and Skills,071801,Selby Cottage Childcare Centre,Supplies and Services,324117,Provisions E324,10-Feb-2022,7978094598,WILKO RETAIL LIMITED,5399,Catering costs - provisions,65.40,0.00,65.40
Children and Young Peoples Services,Head of Childrens Social Care,085341,High Etherley Satelite Home,Supplies and Services,324117,Provisions E324,10-Feb-2022,7978094666,TESCO STORES 6329,5411,Catering costs - provisions,40.55,0.00,40.55
Children and Young Peoples Services,Head of Early Help Inclusion & Vulnerable Children.,088104,BA/BC/Crook Intensive Family Support Team,Supplies and Services,384302,Miscellaneous Expenses,10-Feb-2022,7978094706,VUE BSL LTD,7832,Activity expenses,201.50,0.00,201.50
Children and Young Peoples Services,Head of Early Help Inclusion & Vulnerable Children.,088105,W/Close and Willington Family Centre,Supplies and Services,384302,Miscellaneous Expenses,10-Feb-2022,7978094708,VUE BSL LTD,7832,Activity expenses,201.50,0.00,201.50
Children and Young Peoples Services,Head of Early Help Inclusion & Vulnerable Children.,085957,Secure Management,Supplies and Services,340001,Postages E340,10-Feb-2022,7978094738,TSB Returns Ltd,4215,Postages,2.50,0.00,2.50
Children and Young Peoples Services,Head of Early Help Inclusion & Vulnerable Children.,085962,Aycliffe Secure - Durham,Supplies and Services,328041,Clothing uniforms and laundry E328,10-Feb-2022,7978094740,SPORTSDIRECT.COM,5691,Clothing uniforms and laundry,36.98,0.00,36.98
Children and Young Peoples Services,Head of Early Help Inclusion & Vulnerable Children.,085957,Secure Management,Supplies and Services,304259,Equipment and Materials,10-Feb-2022,7978094742,Amazon MP3,5735,Equipment-purchase and rental,0.98,0.00,0.98
Children and Young Peoples Services,Head of Early Help Inclusion & Vulnerable Children.,085965,Barnard,Supplies and Services,304403,Equipment and Materials,10-Feb-2022,7978094744,AMZNMktplace,5999,Other consumables,19.00,0.00,19.00
Children and Young Peoples Services,Head of Early Help Inclusion & Vulnerable Children.,085965,Barnard,Supplies and Services,304403,Equipment and Materials,10-Feb-2022,7978094746,AMZNMKTPLACE AMAZON.CO,5999,Other consumables,25.90,4.32,21.58
Children and Young Peoples Services,Head of Early Help Inclusion & Vulnerable Children.,085965,Barnard,Supplies and Services,384999,Miscellaneous Expenses,10-Feb-2022,7978094748,Amazon.co.uk 2L3ES8E44,5969,Other expenses,4.99,0.83,4.16
Children and Young Peoples Services,Head of Early Help Inclusion & Vulnerable Children.,085965,Barnard,Supplies and Services,304403,Equipment and Materials,10-Feb-2022,7978094750,AMZNMktplace,5999,Other consumables,96.33,0.00,96.33
Children and Young Peoples Services,Head of Early Help Inclusion & Vulnerable Children.,085954,Walworth,Supplies and Services,304403,Equipment and Materials,10-Feb-2022,7978094752,AMZNMktplace,5999,Other consumables,35.52,5.92,29.60
Children and Young Peoples Services,Head of Childrens Social Care,085511,Emergency Duty Team,Supplies and Services,352001,Conference Expenses,10-Feb-2022,7978094754,H52STANLEY,7011,Conferencesseminars fees etc,55.00,0.00,55.00
Resources BK0010,Procurement Sales & Business Services,065503,Business Support - Spectrum,Supplies and Services,304259,Equipment and Materials,10-Feb-2022,7978094760,HM PASSPORT OFFICE,9399,Equipment-purchase and rental,75.50,0.00,75.50
Children and Young Peoples Services,Head of Early Help Inclusion & Vulnerable Children.,088108,Spennymoor & Shildon Intensive Family Support Team,Supplies and Services,384302,Miscellaneous Expenses,10-Feb-2022,7978094900,Amazon.co.uk 2L9121E54,5969,Activity expenses,20.69,0.00,20.69
Children and Young Peoples Services,Head of Early Help Inclusion & Vulnerable Children.,088105,W/Close and Willington Family Centre,Supplies and Services,384302,Miscellaneous Expenses,10-Feb-2022,7978094902,AMZNMktplace,5999,Activity expenses,25.98,4.34,21.64
Children and Young Peoples Services,Head of Early Help Inclusion & Vulnerable Children.,088105,W/Close and Willington Family Centre,Supplies and Services,364301,Grants to Voluntary Organisations,10-Feb-2022,7978094904,ASDA STORES,5411,Hardship,165.00,0.00,165.00
Children and Young Peoples Services,Head of Childrens Social Care,085333,Coxhoe Satelite Home,Supplies and Services,324117,Provisions E324,10-Feb-2022,7978094934,TESCO STORES 2371,5411,Catering costs - provisions,182.12,0.00,182.12
Children and Young Peoples Services,Head of Childrens Social Care,085333,Coxhoe Satelite Home,Supplies and Services,324117,Provisions E324,10-Feb-2022,7978094936,TESCO STORES 2371,5411,Catering costs - provisions,47.85,0.00,47.85
Children and Young Peoples Services,Head of Childrens Social Care,085351,Framwellgate Moor CU,Supplies and Services,324117,Provisions E324,10-Feb-2022,7978094960,WILKO RETAIL LIMITED,5399,Catering costs - provisions,13.90,0.00,13.90
Children and Young Peoples Services,Head of Childrens Social Care,085334,West Rainton Satelite Home,Supplies and Services,324117,Provisions E324,10-Feb-2022,7978095004,TESCO STORES 5457,5411,Catering costs - provisions,60.81,0.00,60.81
Children and Young Peoples Services,Head of Early Help Inclusion & Vulnerable Children.,085965,Barnard,Supplies and Services,304259,Equipment and Materials,10-Feb-2022,7978095038,SP STEVEN BROWN ART,5399,Equipment-purchase and rental,179.99,0.00,179.99
Children and Young Peoples Services,Head of Early Help Inclusion & Vulnerable Children.,085956,Lumley,Supplies and Services,304259,Equipment and Materials,10-Feb-2022,7978095040,AMZNMktplace,5999,Equipment-purchase and rental,45.99,7.67,38.32
Children and Young Peoples Services,Head of Childrens Social Care,085332,Middlestone Moor CU,Transport,235057,Public Transport,10-Feb-2022,7978095146,ARRIVA UK BUS,4131,Staff travelling,30.00,0.00,30.00
Children and Young Peoples Services,Head of Childrens Social Care,085352,New Childrens Home (previously Tow Law),Supplies and Services,384999,Miscellaneous Expenses,10-Feb-2022,7978095160,BODYCARE,5977,Other expenses,29.93,0.00,29.93
Children and Young Peoples Services,Head of Childrens Social Care,085352,New Childrens Home (previously Tow Law),Supplies and Services,324117,Provisions E324,10-Feb-2022,7978095162,Shakeoholic,5441,Catering costs - provisions,4.95,0.00,4.95
Children and Young Peoples Services,Head of Childrens Social Care,085612,Families First Consett,Supplies and Services,364301,Grants to Voluntary Organisations,10-Feb-2022,7984282120,ARGOS LTD,5310,Hardship,234.95,0.00,234.95
Children and Young Peoples Services,Head of Early Help Inclusion & Vulnerable Children.,088105,W/Close and Willington Family Centre,Supplies and Services,304259,Equipment and Materials,10-Feb-2022,7984282484,AMZNMKTPLACE AMAZON.CO,5999,Equipment-purchase and rental,31.98,5.34,26.64
Children and Young Peoples Services,Head of Early Help Inclusion & Vulnerable Children.,085962,Aycliffe Secure - Durham,Supplies and Services,304259,Equipment and Materials,10-Feb-2022,7984282616,JD SPORTS INTERNET,5941,Equipment-purchase and rental,15.99,0.00,15.99
Resources BK0010,Procurement Sales & Business Services,065503,Business Support - Spectrum,Supplies and Services,304259,Equipment and Materials,10-Feb-2022,7984282720,GEN REGISTER OFFICE,9399,Equipment-purchase and rental,11.00,0.00,11.00
Children and Young Peoples Services,Head of Early Help Inclusion & Vulnerable Children.,088104,BA/BC/Crook Intensive Family Support Team,Supplies and Services,384302,Miscellaneous Expenses,10-Feb-2022,7984283154,ARGOS LTD,5310,Activity expenses,30.45,0.00,30.45
Children and Young Peoples Services,Head of Childrens Social Care,085351,Framwellgate Moor CU,Supplies and Services,328041,Clothing uniforms and laundry E328,10-Feb-2022,7984283356,THE WORKS,5310,Clothing uniforms and laundry,10.00,0.00,10.00
Children and Young Peoples Services,Head of Early Help Inclusion & Vulnerable Children.,085965,Barnard,Supplies and Services,304259,Equipment and Materials,10-Feb-2022,7984283690,AMZNMKTPLACE AMAZON.CO,5999,Equipment-purchase and rental,9.96,1.66,8.30
Children and Young Peoples Services,Head of Early Help Inclusion & Vulnerable Children.,085965,Barnard,Supplies and Services,304259,Equipment and Materials,10-Feb-2022,7984283690 - 1,AMZNMKTPLACE AMAZON.CO,5999,Equipment-purchase and rental,19.72,,19.72
Resources BK0010,Procurement Sales & Business Services,065503,Business Support - Spectrum,Supplies and Services,304259,Equipment and Materials,10-Feb-2022,7984283714,WWW.DURHAM.GOV.UK,9399,Equipment-purchase and rental,11.00,0.00,11.00
Children and Young Peoples Services,Head of Childrens Social Care,085352,New Childrens Home (previously Tow Law),Supplies and Services,304259,Equipment and Materials,10-Feb-2022,7984284070,JD SPORTS 193,5941,Equipment-purchase and rental,141.00,0.00,141.00
Children and Young Peoples Services,Head of Childrens Social Care,085352,New Childrens Home (previously Tow Law),Supplies and Services,328041,Clothing uniforms and laundry E328,10-Feb-2022,7984284074,PRIMARK 670 GATESHEAD,5651,Clothing uniforms and laundry,22.00,0.00,22.00
Resources BK0010,Procurement Sales & Business Services,065503,Business Support - Spectrum,Supplies and Services,304259,Equipment and Materials,10-Feb-2022,9921489263,GEN REGISTER OFFICE,9399,Equipment-purchase and rental,-7.50,0.00,-7.50
Regeneration Economy and Growth,Culture Sport and Tourism,010601,Spennymoor Leisure Cr - General,Supplies and Services,304259,Equipment and Materials,11-Feb-2022,000007978094964,Amazon.co.uk 2L3WC31G4,5969,Equipment-purchase and rental,293.14,48.86,244.28
Regeneration Economy and Growth,Culture Sport and Tourism,010601,Spennymoor Leisure Cr - General,Supplies and Services,304259,Equipment and Materials,11-Feb-2022,000007978094966,Amazon.co.uk 2L7OM11K4,5969,Equipment-purchase and rental,293.14,48.86,244.28
Resources BK0010,Digital and Customer Services,065482,Data Centres,Supplies and Services,304403,Equipment and Materials,11-Feb-2022,000007984282192,AMZNMktplace,5999,Other consumables,147.99,24.67,123.32
Resources BK0010,Digital and Customer Services,065482,Data Centres,Supplies and Services,304403,Equipment and Materials,11-Feb-2022,000007984282194,AMZNMktplace,5999,Other consumables,36.88,6.15,30.73
Resources BK0010,Digital and Customer Services,065256,Nodes/Circuits,Supplies and Services,304999,Equipment and Materials,11-Feb-2022,000007984282198,FS.COM GBP,5072,Misc equipment tools and materials,468.00,0.00,468.00
Resources BK0010,Digital and Customer Services,065256,Nodes/Circuits,Supplies and Services,304999,Equipment and Materials,11-Feb-2022,000007984282204,FS.COM GBP,5072,Misc equipment tools and materials,416.00,0.00,416.00
Resources BK0010,Digital and Customer Services,065256,Nodes/Circuits,Supplies and Services,304999,Equipment and Materials,11-Feb-2022,000007984282208,FS.COM GBP,5072,Misc equipment tools and materials,425.00,0.00,425.00
Children and Young Peoples Services,Head of Childrens Social Care,085501,Child Care Cases Legal Expenses,Supplies and Services,304403,Equipment and Materials,11-Feb-2022,000007984282276,MIDDLESBROUGH COUNCIL,9399,Other consumables,11.00,0.00,11.00
Regeneration Economy and Growth,Culture Sport and Tourism,054108,Durham Clayport Library,Supplies and Services,304259,Equipment and Materials,11-Feb-2022,000007984282304,DEFIBSTORE LTD,5047,Equipment-purchase and rental,108.00,18.00,90.00
Regeneration Economy and Growth,Development and Housing,030771,Durham Advance Flexible Fund,Supplies and Services,304259,Equipment and Materials,11-Feb-2022,000007984282508,GEN REGISTER OFFICE,9399,Equipment-purchase and rental,14.00,0.00,14.00
Regeneration Economy and Growth,Business Durham CL0850,030690,Durham Dales Centre - Tourist Information Centre,Supplies and Services,304403,Equipment and Materials,11-Feb-2022,000007984282906,JOE DAVIES (MANCHESTER,5947,Other consumables,376.12,0.00,376.12
Regeneration Economy and Growth,Development and Housing,030771,Durham Advance Flexible Fund,Supplies and Services,324117,Provisions E324,11-Feb-2022,000007984282936,TESCO STORES 2916,5411,Catering costs - provisions,3.60,0.00,3.60
Resources BK0010,People & Talent Management,010984,Training and Development,Supplies and Services,304403,Equipment and Materials,11-Feb-2022,000007984282960,TAHDAH VERIFIED,5734,Other consumables,71.00,0.00,71.00
Neighbourhoods and Climate Change,Environmental Services,031238,North Pennines - Tees Swale,Supplies and Services,304999,Equipment and Materials,11-Feb-2022,000007984282992,WEASDALE NURSERIES LTD,5261,Misc equipment tools and materials,351.48,0.00,351.48
Neighbourhoods and Climate Change,Environmental Services,031200,North Pennines Core,Supplies and Services,340001,Postages E340,11-Feb-2022,000007984282998,POST OFFICE COUNTER,9402,Postages,3.20,0.00,3.20
Neighbourhoods and Climate Change,Environmental Services,031238,North Pennines - Tees Swale,Supplies and Services,384999,Miscellaneous Expenses,11-Feb-2022,000007984283006,BAKER ROSS,5970,Other expenses,18.90,0.00,18.90
Children and Young Peoples Services,Head of Childrens Social Care,085552,Services for Disabled Children,Supplies and Services,384302,Miscellaneous Expenses,11-Feb-2022,000007984283050,Euroflorist UK Ltd,5992,Activity expenses,28.98,0.00,28.98
Children and Young Peoples Services,Head of Early Help Inclusion & Vulnerable Children.,088115,Young Parents Programme 088115,Supplies and Services,384302,Miscellaneous Expenses,11-Feb-2022,000007984283058,WWW.THEWORKS.CO.UK,5310,Activity expenses,40.00,0.00,40.00
Children and Young Peoples Services,Head of Childrens Social Care,085552,Services for Disabled Children,Supplies and Services,338045,Services,11-Feb-2022,000007984283060,WWW.DURHAM.GOV.UK,9399,Legal expenses 338045,33.00,0.00,33.00
Resources BK0010,Legal & Democratic Services,060131,County Records,Supplies and Services,304259,Equipment and Materials,11-Feb-2022,000007984283102,Picstop.co.uk,5732,Equipment-purchase and rental,13.88,0.00,13.88
Dedicated Schools Grant BG0015,DSG Schools Block,418507,Belmont Community School 004185 - Performing Arts,Supplies and Services,364301,Grants to Voluntary Organisations,11-Feb-2022,000007984283146,TESCO STORES 2371,5411,Hardship,21.60,0.00,21.60
Regeneration Economy and Growth,Development and Housing,030735,Economic Development - Employability,Supplies and Services,324117,Provisions E324,11-Feb-2022,000007984283262,SAINSBURY`S S/MKT,5411,Catering costs - provisions,2.40,0.00,2.40
Regeneration Economy and Growth,Development and Housing,030735,Economic Development - Employability,Supplies and Services,324117,Provisions E324,11-Feb-2022,000007984283268,SAINSBURY`S S/MKT,5411,Catering costs - provisions,5.40,0.00,5.40
Regeneration Economy and Growth,Development and Housing,030735,Economic Development - Employability,Supplies and Services,324117,Provisions E324,11-Feb-2022,000007984283270,SAINSBURY`S S/MKT,5411,Catering costs - provisions,1.45,0.00,1.45
Regeneration Economy and Growth,Culture Sport and Tourism,011291,Peterlee Leisure Centre,Supplies and Services,304259,Equipment and Materials,11-Feb-2022,000007984283368,AMZNMktplace,5999,Equipment-purchase and rental,23.99,4.00,19.99
Regeneration Economy and Growth,Culture Sport and Tourism,011286,Wolsingham School Leisure Centre,Employees,040149,Recruitment Instruction and Training,11-Feb-2022,000007984283374,PREMIER GLOBAL,8299,Training-all costs,599.00,0.00,599.00
Regeneration Economy and Growth,Corporate Property and Land,021242,Catering - County Hall,Supplies and Services,342033,Computers and Communications,11-Feb-2022,000007984283590,MISCO,5732,Computer hardware,52.69,0.00,52.69
Neighbourhoods and Climate Change,Environmental Services,031118,E&D - Seascape,Supplies and Services,348037,Subsistence E348,11-Feb-2022,000007984283878,COSTA COFFEE 43037585,5814,Subsistence,5.00,0.00,5.00
Children and Young Peoples Services,Head of Education and Skills,071802,Louisa Cent Nursery,Supplies and Services,324117,Provisions E324,11-Feb-2022,000007984283906,ASDA GROCERIES ONLINE,5411,Catering costs - provisions,171.92,0.00,171.92
Regeneration Economy and Growth,Culture Sport and Tourism,054233,Bishop Auckland Town Hall Library,Supplies and Services,324117,Provisions E324,11-Feb-2022,000007984284044,HERON FOODS,5411,Catering costs - provisions,14.94,0.00,14.94
Regeneration Economy and Growth,Culture Sport and Tourism,054233,Bishop Auckland Town Hall Library,Supplies and Services,324117,Provisions E324,11-Feb-2022,000007984284048,ASDA STORES,5411,Catering costs - provisions,21.40,0.00,21.40
